Workbook

Sheet Initial Benefits
B2: Member Details | E2: Retirement/Invalidity Pay | L2: Spouse's Pension
B3: Gender > | C3: =IF(Data2!F1=TRUE,"MALE","FEMALE") -> FEMALE | E3: Starting From | F3: At Years of Age | G3: Fully Indexed (per annum) | H3: Partly Indexed (per annum) | I3: Loss (per annum) | J3: After Commutation (per annum) | L3: Fully Indexed (per annum) | M3: Partly Indexed (per annum) | N3: Loss (per annum)
B5: Date of Birth >
B6: Date of Retirement >
B7: Uncommuted Retirement Pay > | E7: =C6 -> 00:00:00 | F7: =IF(OR($C$5=0,$C$6=0),0,INT((E7-$C$5)/365.25)) -> 0 | G7: =Data1!P10 -> 0 | H7: =IF(G7=0,0,Data1!Q10) -> 0 | I7: =Data1!R10 -> 0 | J7: =Data1!S10 -> 0 | L7: =Data1!T10 -> 0 | M7: =IF(L7=0,0,Data1!U10) -> 0 | N7: =Data1!V10 -> 0
B8: Number of Years which can be Commuted | C8: =Data2!J32 -> 0 | E8: =IF(E7=0,0,DATE(YEAR(E7)+1,MONTH(E7),DAY(E7))) -> 00:00:00 | F8: =IF(OR($C$5=0,$C$6=0),0,INT((E8-$C$5)/365.25)) -> 0 | G8: =Data1!P11 -> 0 | H8: =IF(G8=0,0,Data1!Q11) -> 0 | I8: =IF(G8=0,0,Data1!R11) -> 0 | J8: =Data1!S11 -> 0 | L8: =Data1!T11 -> 0 | M8: =IF(L8=0,0,Data1!U11) -> 0 | N8: =IF(L8=0,0,Data1!V11) -> 0
B9: Commutation Entitlement | C9: =C7*C8 -> 0 | E9: =IF(E8=0,0,DATE(YEAR(E8)+1,MONTH(E8),DAY(E8))) -> 00:00:00 | F9: 0 | G9: =Data1!P12 -> 0 | H9: =IF(G9=0,0,Data1!Q12) -> 0 | I9: =IF(G9=0,0,Data1!R12) -> 0 | J9: =Data1!S12 -> 0 | L9: =Data1!T12 -> 0 | M9: =IF(L9=0,0,Data1!U12) -> 0 | N9: =IF(L9=0,0,Data1!V12) -> 0
B10: Reduced Retirement Pay | C10: =C7-Data2!J31 -> 0 | E10: 00:00:00 | F10: 0 | G10: =Data1!P13 -> 0 | H10: =IF(G10=0,0,Data1!Q13) -> 0 | I10: =IF(G10=0,0,Data1!R13) -> 0 | J10: =Data1!S13 -> 0 | L10: =Data1!T13 -> 0 | M10: =IF(L10=0,0,Data1!U13) -> 0 | N10: =IF(L10=0,0,Data1!V13) -> 0
B11: Amount Commuted > | E11: 00:00:00 | F11: 0 | G11: =Data1!P14 -> 0 | H11: =IF(G11=0,0,Data1!Q14) -> 0 | I11: =IF(G11=0,0,Data1!R14) -> 0 | J11: =Data1!S14 -> 0 | L11: =Data1!T14 -> 0 | M11: =IF(L11=0,0,Data1!U14) -> 0 | N11: =IF(L11=0,0,Data1!V14) -> 0
B12: Commuted Retirement Pay > | E12: 00:00:00 | F12: 0 | G12: =Data1!P15 -> 0 | H12: =IF(G12=0,0,Data1!Q15) -> 0 | I12: =IF(G12=0,0,Data1!R15) -> 0 | J12: =Data1!S15 -> 0 | L12: =Data1!T15 -> 0 | M12: =IF(L12=0,0,Data1!U15) -> 0 | N12: =IF(L12=0,0,Data1!V15) -> 0
E13: 00:00:00 | F13: 0 | G13: =Data1!P16 -> 0 | H13: =IF(G13=0,0,Data1!Q16) -> 0 | I13: =IF(G13=0,0,Data1!R16) -> 0 | J13: =Data1!S16 -> 0 | L13: =Data1!T16 -> 0 | M13: =IF(L13=0,0,Data1!U16) -> 0 | N13: =IF(L13=0,0,Data1!V16) -> 0
B14: Gross Fortnightly Pension as at 3/01/2019 > | E14: 00:00:00 | F14: 0 | G14: =Data1!P17 -> 0 | H14: =IF(G14=0,0,Data1!Q17) -> 0 | I14: =IF(G14=0,0,Data1!R17) -> 0 | J14: =Data1!S17 -> 0 | L14: =Data1!T17 -> 0 | M14: =IF(L14=0,0,Data1!U17) -> 0 | N14: =IF(L14=0,0,Data1!V17) -> 0
E15: 00:00:00 | F15: 0 | G15: =Data1!P18 -> 0 | H15: =IF(G15=0,0,Data1!Q18) -> 0 | I15: =IF(G15=0,0,Data1!R18) -> 0 | J15: =Data1!S18 -> 0 | L15: =Data1!T18 -> 0 | M15: =IF(L15=0,0,Data1!U18) -> 0 | N15: =IF(L15=0,0,Data1!V18) -> 0
B16: Future Indexation Rate (per annum) > | C16: 0.02 | E16: 00:00:00 | F16: 0 | G16: =Data1!P19 -> 0 | H16: =IF(G16=0,0,Data1!Q19) -> 0 | I16: =IF(G16=0,0,Data1!R19) -> 0 | J16: =Data1!S19 -> 0 | L16: =Data1!T19 -> 0 | M16: =IF(L16=0,0,Data1!U19) -> 0 | N16: =IF(L16=0,0,Data1!V19) -> 0
E17: 00:00:00 | F17: 0 | G17: =Data1!P20 -> 0 | H17: =IF(G17=0,0,Data1!Q20) -> 0 | I17: =IF(G17=0,0,Data1!R20) -> 0 | J17: =Data1!S20 -> 0 | L17: =Data1!T20 -> 0 | M17: =IF(L17=0,0,Data1!U20) -> 0 | N17: =IF(L17=0,0,Data1!V20) -> 0
B18: Part of Retirement Pay which is Indexed | C18: =IF(OR(C23=0,Data2!I32=0),0,1-Data2!I32/C23) -> 0 | E18: 00:00:00 | F18: 0 | G18: =Data1!P21 -> 0 | H18: =IF(G18=0,0,Data1!Q21) -> 0 | I18: =IF(G18=0,0,Data1!R21) -> 0 | J18: =Data1!S21 -> 0 | L18: =Data1!T21 -> 0 | M18: =IF(L18=0,0,Data1!U21) -> 0 | N18: =IF(L18=0,0,Data1!V21) -> 0
B19: Part which is Indexed for Spouse's Pension | C19: =IF(C23=0,0,1-4/C23) -> 0 | E19: 00:00:00 | F19: 0 | G19: =Data1!P22 -> 0 | H19: =IF(G19=0,0,Data1!Q22) -> 0 | I19: =IF(G19=0,0,Data1!R22) -> 0 | J19: =Data1!S22 -> 0 | L19: =Data1!T22 -> 0 | M19: =IF(L19=0,0,Data1!U22) -> 0 | N19: =IF(L19=0,0,Data1!V22) -> 0
E20: 00:00:00 | F20: 0 | G20: =Data1!P23 -> 0 | H20: =IF(G20=0,0,Data1!Q23) -> 0 | I20: =IF(G20=0,0,Data1!R23) -> 0 | J20: =Data1!S23 -> 0 | L20: =Data1!T23 -> 0 | M20: =IF(L20=0,0,Data1!U23) -> 0 | N20: =IF(L20=0,0,Data1!V23) -> 0
B21: Age on Retirement (30 to 65) | C21: =IF(C5>0=TRUE,IF(C6>C5,INT((C6-C5)/365.25),0),0) -> 0 | E21: 00:00:00 | F21: 0 | G21: =Data1!P24 -> 0 | H21: =IF(G21=0,0,Data1!Q24) -> 0 | I21: =IF(G21=0,0,Data1!R24) -> 0 | J21: =Data1!S24 -> 0 | L21: =Data1!T24 -> 0 | M21: =IF(L21=0,0,Data1!U24) -> 0 | N21: =IF(L21=0,0,Data1!V24) -> 0
E22: 00:00:00 | F22: 0 | G22: =Data1!P25 -> 0 | H22: =IF(G22=0,0,Data1!Q25) -> 0 | I22: =IF(G22=0,0,Data1!R25) -> 0 | J22: =Data1!S25 -> 0 | L22: =Data1!T25 -> 0 | M22: =IF(L22=0,0,Data1!U25) -> 0 | N22: =IF(L22=0,0,Data1!V25) -> 0
B23: 1960-1962 Life Expectancy | C23: =IF(AND(C21>29,C21<66),IF(Data1!F1=TRUE,LOOKUP(C21,Data2!A4:A39,Data2!B4:B39),LOOKUP(C21,Data2!A4:A39,Data2!C4:C39)),0) -> 0 | E23: 00:00:00 | F23: 0 | G23: =Data1!P26 -> 0 | H23: =IF(G23=0,0,Data1!Q26) -> 0 | I23: =IF(G23=0,0,Data1!R26) -> 0 | J23: =Data1!S26 -> 0 | L23: =Data1!T26 -> 0 | M23: =IF(L23=0,0,Data1!U26) -> 0 | N23: =IF(L23=0,0,Data1!V26) -> 0
B24: Age at 1960-1962 Life Expectancy | C24: =IF(C23=0,0,C21+C23) -> 0 | E24: 00:00:00 | F24: 0 | G24: =Data1!P27 -> 0 | H24: =IF(G24=0,0,Data1!Q27) -> 0 | I24: =IF(G24=0,0,Data1!R27) -> 0 | J24: =Data1!S27 -> 0 | L24: =Data1!T27 -> 0 | M24: =IF(L24=0,0,Data1!U27) -> 0 | N24: =IF(L24=0,0,Data1!V27) -> 0
B25: 2015-2017 Life Expectancy | C25: =IF(AND(C21>29,C21<66),IF(Data1!F1=TRUE,LOOKUP(C24,Data2!A5:A54,Data2!D5:D54),LOOKUP(C24,Data2!A5:A54,Data2!E5:E54)),0) -> 0 | E25: 00:00:00 | F25: 0 | G25: =Data1!P28 -> 0 | H25: =IF(G25=0,0,Data1!Q28) -> 0 | I25: =IF(G25=0,0,Data1!R28) -> 0 | J25: =Data1!S28 -> 0 | L25: =Data1!T28 -> 0 | M25: =IF(L25=0,0,Data1!U28) -> 0 | N25: =IF(L25=0,0,Data1!V28) -> 0
B26: Age at 2015-2017 Life Expectancy | C26: =IF(C23=0,0,C21+C23+C25) -> 0 | E26: 00:00:00 | F26: 0 | G26: =Data1!P29 -> 0 | H26: =IF(G26=0,0,Data1!Q29) -> 0 | I26: =IF(G26=0,0,Data1!R29) -> 0 | J26: =Data1!S29 -> 0 | L26: =Data1!T29 -> 0 | M26: =IF(L26=0,0,Data1!U29) -> 0 | N26: =IF(L26=0,0,Data1!V29) -> 0

Sheet Future Benefits
B2: Member Details | E2: Retirement/Invalidity Pay | L2: Spouse's Pension
B3: Gender > | C3: =IF(Data1!F1=TRUE,"MALE","FEMALE") -> MALE | E3: Starting From | F3: At Years of Age | G3: Fully Indexed (per annum) | H3: Partly Indexed (per annum) | I3: Loss (per annum) | J3: After Commutation (per annum) | L3: Fully Indexed (per annum) | M3: Partly Indexed (per annum) | N3: Loss (per annum)
B5: Date of Birth > | C5: ='Initial Benefits'!C5 -> 00:00:00
B6: Date of Retirement > | C6: ='Initial Benefits'!C6 -> 00:00:00
B7: Uncommuted Retirement Pay > | C7: ='Initial Benefits'!C7 -> 0 | E7: =TODAY() -> 2019-02-25 | F7: ='Future Losses'!F7 -> 0 | G7: =Data2!P10 -> 0 | H7: =IF(G7=0,0,Data2!Q10) -> 0 | I7: ='Future Losses'!G7 -> 0 | J7: =Data2!S10 -> 0 | L7: =Data2!T10 -> 0 | M7: =IF(L7=0,0,Data2!U10) -> 0 | N7: ='Future Losses'!I7 -> 0
B8: Number of Years which can be Commuted | C8: =Data2!J32 -> 0 | E8: =DATE(YEAR(E7)+1,MONTH(E7),DAY(E7)) -> 2020-02-25 | F8: ='Future Losses'!F8 -> 0 | G8: =Data2!P11 -> 0 | H8: =IF(G8=0,0,Data2!Q11) -> 0 | I8: ='Future Losses'!G8 -> 0 | J8: =Data2!S11 -> 0 | L8: =Data2!T11 -> 0 | M8: =IF(L8=0,0,Data2!U11) -> 0 | N8: ='Future Losses'!I8 -> 0
B9: Commutation Entitlement | C9: =C7*C8 -> 0 | E9: 2021-02-25 | F9: ='Future Losses'!F9 -> 0 | G9: =Data2!P12 -> 0 | H9: =IF(G9=0,0,Data2!Q12) -> 0 | I9: ='Future Losses'!G9 -> 0 | J9: =Data2!S12 -> 0 | L9: =Data2!T12 -> 0 | M9: =IF(L9=0,0,Data2!U12) -> 0 | N9: ='Future Losses'!I9 -> 0
B10: Reduced Retirement Pay | C10: =C7-Data2!J31 -> 0 | E10: 2022-02-25 | F10: ='Future Losses'!F10 -> 0 | G10: =Data2!P13 -> 0 | H10: =IF(G10=0,0,Data2!Q13) -> 0 | I10: ='Future Losses'!G10 -> 0 | J10: =Data2!S13 -> 0 | L10: =Data2!T13 -> 0 | M10: =IF(L10=0,0,Data2!U13) -> 0 | N10: ='Future Losses'!I10 -> 0
B11: Amount Commuted > | C11: ='Initial Benefits'!C11 -> 0 | E11: 2023-02-25 | F11: ='Future Losses'!F11 -> 0 | G11: =Data2!P14 -> 0 | H11: =IF(G11=0,0,Data2!Q14) -> 0 | I11: ='Future Losses'!G11 -> 0 | J11: =Data2!S14 -> 0 | L11: =Data2!T14 -> 0 | M11: =IF(L11=0,0,Data2!U14) -> 0 | N11: ='Future Losses'!I11 -> 0
B12: Commuted Retirement Pay > | C12: ='Initial Benefits'!C12 -> 0 | E12: 2024-02-25 | F12: ='Future Losses'!F12 -> 0 | G12: =Data2!P15 -> 0 | H12: =IF(G12=0,0,Data2!Q15) -> 0 | I12: ='Future Losses'!G12 -> 0 | J12: =Data2!S15 -> 0 | L12: =Data2!T15 -> 0 | M12: =IF(L12=0,0,Data2!U15) -> 0 | N12: ='Future Losses'!I12 -> 0
E13: 2025-02-25 | F13: ='Future Losses'!F13 -> 0 | G13: =Data2!P16 -> 0 | H13: =IF(G13=0,0,Data2!Q16) -> 0 | I13: ='Future Losses'!G13 -> 0 | J13: =Data2!S16 -> 0 | L13: =Data2!T16 -> 0 | M13: =IF(L13=0,0,Data2!U16) -> 0 | N13: ='Future Losses'!I13 -> 0
B14: Gross Fortnightly Pension as at 3/01/2019 > | C14: ='Initial Benefits'!C14 -> 0 | E14: 2026-02-25 | F14: ='Future Losses'!F14 -> 0 | G14: =Data2!P17 -> 0 | H14: =IF(G14=0,0,Data2!Q17) -> 0 | I14: ='Future Losses'!G14 -> 0 | J14: =Data2!S17 -> 0 | L14: =Data2!T17 -> 0 | M14: =IF(L14=0,0,Data2!U17) -> 0 | N14: ='Future Losses'!I14 -> 0
E15: 2027-02-25 | F15: ='Future Losses'!F15 -> 0 | G15: =Data2!P18 -> 0 | H15: =IF(G15=0,0,Data2!Q18) -> 0 | I15: ='Future Losses'!G15 -> 0 | J15: =Data2!S18 -> 0 | L15: =Data2!T18 -> 0 | M15: =IF(L15=0,0,Data2!U18) -> 0 | N15: ='Future Losses'!I15 -> 0
B16: Future Indexation Rate (per annum) > | C16: ='Initial Benefits'!C16 -> 0.02 | E16: 2028-02-25 | F16: ='Future Losses'!F16 -> 0 | G16: =Data2!P19 -> 0 | H16: =IF(G16=0,0,Data2!Q19) -> 0 | I16: ='Future Losses'!G16 -> 0 | J16: =Data2!S19 -> 0 | L16: =Data2!T19 -> 0 | M16: =IF(L16=0,0,Data2!U19) -> 0 | N16: ='Future Losses'!I16 -> 0
E17: 2029-02-25 | F17: ='Future Losses'!F17 -> 0 | G17: =Data2!P20 -> 0 | H17: =IF(G17=0,0,Data2!Q20) -> 0 | I17: ='Future Losses'!G17 -> 0 | J17: =Data2!S20 -> 0 | L17: =Data2!T20 -> 0 | M17: =IF(L17=0,0,Data2!U20) -> 0 | N17: ='Future Losses'!I17 -> 0
B18: Part of Retirement Pay which is Indexed | C18: ='Initial Benefits'!C18 -> 0 | E18: 2030-02-25 | F18: ='Future Losses'!F18 -> 0 | G18: =Data2!P21 -> 0 | H18: =IF(G18=0,0,Data2!Q21) -> 0 | I18: ='Future Losses'!G18 -> 0 | J18: =Data2!S21 -> 0 | L18: =Data2!T21 -> 0 | M18: =IF(L18=0,0,Data2!U21) -> 0 | N18: ='Future Losses'!I18 -> 0
B19: Part which is Indexed for Spouse's Pension | C19: ='Initial Benefits'!C19 -> 0 | E19: 2031-02-25 | F19: ='Future Losses'!F19 -> 0 | G19: =Data2!P22 -> 0 | H19: =IF(G19=0,0,Data2!Q22) -> 0 | I19: ='Future Losses'!G19 -> 0 | J19: =Data2!S22 -> 0 | L19: =Data2!T22 -> 0 | M19: =IF(L19=0,0,Data2!U22) -> 0 | N19: ='Future Losses'!I19 -> 0
E20: 2032-02-25 | F20: ='Future Losses'!F20 -> 0 | G20: =Data2!P23 -> 0 | H20: =IF(G20=0,0,Data2!Q23) -> 0 | I20: ='Future Losses'!G20 -> 0 | J20: =Data2!S23 -> 0 | L20: =Data2!T23 -> 0 | M20: =IF(L20=0,0,Data2!U23) -> 0 | N20: ='Future Losses'!I20 -> 0
B21: Age on Retirement (30 to 65) | C21: ='Initial Benefits'!C21 -> 0 | E21: 2033-02-25 | F21: ='Future Losses'!F21 -> 0 | G21: =Data2!P24 -> 0 | H21: =IF(G21=0,0,Data2!Q24) -> 0 | I21: ='Future Losses'!G21 -> 0 | J21: =Data2!S24 -> 0 | L21: =Data2!T24 -> 0 | M21: =IF(L21=0,0,Data2!U24) -> 0 | N21: ='Future Losses'!I21 -> 0
E22: 2034-02-25 | F22: ='Future Losses'!F22 -> 0 | G22: =Data2!P25 -> 0 | H22: =IF(G22=0,0,Data2!Q25) -> 0 | I22: ='Future Losses'!G22 -> 0 | J22: =Data2!S25 -> 0 | L22: =Data2!T25 -> 0 | M22: =IF(L22=0,0,Data2!U25) -> 0 | N22: ='Future Losses'!I22 -> 0
B23: 1960-1962 Life Expectancy | C23: ='Initial Benefits'!C23 -> 0 | E23: 2035-02-25 | F23: ='Future Losses'!F23 -> 0 | G23: =Data2!P26 -> 0 | H23: =IF(G23=0,0,Data2!Q26) -> 0 | I23: ='Future Losses'!G23 -> 0 | J23: =Data2!S26 -> 0 | L23: =Data2!T26 -> 0 | M23: =IF(L23=0,0,Data2!U26) -> 0 | N23: ='Future Losses'!I23 -> 0
B24: Age at 1960-1962 Life Expectancy | C24: ='Initial Benefits'!C24 -> 0 | E24: 2036-02-25 | F24: ='Future Losses'!F24 -> 0 | G24: =Data2!P27 -> 0 | H24: =IF(G24=0,0,Data2!Q27) -> 0 | I24: ='Future Losses'!G24 -> 0 | J24: =Data2!S27 -> 0 | L24: =Data2!T27 -> 0 | M24: =IF(L24=0,0,Data2!U27) -> 0 | N24: ='Future Losses'!I24 -> 0
B25: 2015-2017 Life Expectancy | C25: ='Initial Benefits'!C25 -> 0 | E25: 2037-02-25 | F25: ='Future Losses'!F25 -> 0 | G25: =Data2!P28 -> 0 | H25: =IF(G25=0,0,Data2!Q28) -> 0 | I25: ='Future Losses'!G25 -> 0 | J25: =Data2!S28 -> 0 | L25: =Data2!T28 -> 0 | M25: =IF(L25=0,0,Data2!U28) -> 0 | N25: ='Future Losses'!I25 -> 0
B26: Age at 2015-2017 Life Expectancy | C26: ='Initial Benefits'!C26 -> 0 | E26: 2038-02-25 | F26: ='Future Losses'!F26 -> 0 | G26: =Data2!P29 -> 0 | H26: =IF(G26=0,0,Data2!Q29) -> 0 | I26: ='Future Losses'!G26 -> 0 | J26: =Data2!S29 -> 0 | L26: =Data2!T29 -> 0 | M26: =IF(L26=0,0,Data2!U29) -> 0 | N26: ='Future Losses'!I26 -> 0

Sheet Future Losses
B2: Member Details | E2: Losses due to Partial Indexation | K2: Commutation Payback | O2: Total Losses
B3: Gender > | C3: =IF(Data1!F1=TRUE,"MALE","FEMALE") -> MALE | E3: Starting From | F3: At Years of Age | G3: Retirement Pay Loss (per annum) | H3: Retirement Pay Total Loss | I3: Spouse’s Pension Loss (per annum) | K3: Total Amount Repaid | L3: Balance to be Repaid | M3: Repaid in excess of Amount Commuted | O3: Indexation Losses plus excess Commutation Repayments
B5: Date of Birth > | C5: ='Initial Benefits'!C5 -> 00:00:00
B6: Date of Retirement > | C6: ='Initial Benefits'!C6 -> 00:00:00
B7: Uncommuted Retirement Pay > | C7: ='Initial Benefits'!C7 -> 0 | E7: =TODAY() -> 2019-02-25 | F7: =IF('Initial Benefits'!$C$5=0,0,INT((E7-'Initial Benefits'!$C$5)/365.25)) -> 0 | G7: =IF(OR('Initial Benefits'!$C$14=0,Data2!N10<0),0,Data2!N10) -> 0 | H7: =IF(OR('Initial Benefits'!$C$14=0,Data2!M10<0),0,Data2!M10) -> 0 | I7: =IF(OR('Initial Benefits'!$C$14=0,Data2!O10<0),0,Data2!O10) -> 0 | K7: =(E7-'Initial Benefits'!$C$6)*Data2!$J$5 -> 0 | L7: =IF(K7-'Initial Benefits'!$C$11<0,'Initial Benefits'!$C$11-K7,0) -> 0 | M7: =IF(K7-'Initial Benefits'!$C$11>0,K7-'Initial Benefits'!$C$11, 0) -> 0 | O7: =H7+M7 -> 0
B8: Number of Years which can be Commuted | C8: =Data2!J32 -> 0 | E8: =DATE(YEAR(E7)+1,MONTH(E7),DAY(E7)) -> 2020-02-25 | F8: =IF('Initial Benefits'!$C$5=0,0,INT((E8-'Initial Benefits'!$C$5)/365.25)) -> 0 | G8: =IF(OR('Initial Benefits'!$C$14=0,Data2!N11<0),0,Data2!N11) -> 0 | H8: =IF(OR('Initial Benefits'!$C$14=0,Data2!M11<0),0,Data2!M11) -> 0 | I8: =IF(OR('Initial Benefits'!$C$14=0,Data2!O11<0),0,Data2!O11) -> 0 | K8: =(E8-'Initial Benefits'!$C$6)*Data2!$J$5 -> 0 | L8: =IF(K8-'Initial Benefits'!$C$11<0,'Initial Benefits'!$C$11-K8,0) -> 0 | M8: =IF(K8-'Initial Benefits'!$C$11>0,K8-'Initial Benefits'!$C$11, 0) -> 0 | O8: 0
B9: Commutation Entitlement | C9: =C7*C8 -> 0 | E9: 2021-02-25 | F9: =IF('Initial Benefits'!$C$5=0,0,INT((E9-'Initial Benefits'!$C$5)/365.25)) -> 0 | G9: =IF(OR('Initial Benefits'!$C$14=0,Data2!N12<0),0,Data2!N12) -> 0 | H9: =IF(OR('Initial Benefits'!$C$14=0,Data2!M12<0),0,Data2!M12) -> 0 | I9: =IF(OR('Initial Benefits'!$C$14=0,Data2!O12<0),0,Data2!O12) -> 0 | K9: =(E9-'Initial Benefits'!$C$6)*Data2!$J$5 -> 0 | L9: =IF(K9-'Initial Benefits'!$C$11<0,'Initial Benefits'!$C$11-K9,0) -> 0 | M9: =IF(K9-'Initial Benefits'!$C$11>0,K9-'Initial Benefits'!$C$11, 0) -> 0 | O9: 0
B10: Reduced Retirement Pay | C10: =C7-Data2!J31 -> 0 | E10: 2022-02-25 | F10: =IF('Initial Benefits'!$C$5=0,0,INT((E10-'Initial Benefits'!$C$5)/365.25)) -> 0 | G10: =IF(OR('Initial Benefits'!$C$14=0,Data2!N13<0),0,Data2!N13) -> 0 | H10: =IF(OR('Initial Benefits'!$C$14=0,Data2!M13<0),0,Data2!M13) -> 0 | I10: =IF(OR('Initial Benefits'!$C$14=0,Data2!O13<0),0,Data2!O13) -> 0 | K10: =(E10-'Initial Benefits'!$C$6)*Data2!$J$5 -> 0 | L10: =IF(K10-'Initial Benefits'!$C$11<0,'Initial Benefits'!$C$11-K10,0) -> 0 | M10: =IF(K10-'Initial Benefits'!$C$11>0,K10-'Initial Benefits'!$C$11, 0) -> 0 | O10: 0
B11: Amount Commuted > | C11: ='Initial Benefits'!C11 -> 0 | E11: 2023-02-25 | F11: =IF('Initial Benefits'!$C$5=0,0,INT((E11-'Initial Benefits'!$C$5)/365.25)) -> 0 | G11: =IF(OR('Initial Benefits'!$C$14=0,Data2!N14<0),0,Data2!N14) -> 0 | H11: =IF(OR('Initial Benefits'!$C$14=0,Data2!M14<0),0,Data2!M14) -> 0 | I11: =IF(OR('Initial Benefits'!$C$14=0,Data2!O14<0),0,Data2!O14) -> 0 | K11: =(E11-'Initial Benefits'!$C$6)*Data2!$J$5 -> 0 | L11: =IF(K11-'Initial Benefits'!$C$11<0,'Initial Benefits'!$C$11-K11,0) -> 0 | M11: =IF(K11-'Initial Benefits'!$C$11>0,K11-'Initial Benefits'!$C$11, 0) -> 0 | O11: 0
B12: Commuted Retirement Pay > | C12: ='Initial Benefits'!C12 -> 0 | E12: 2024-02-25 | F12: =IF('Initial Benefits'!$C$5=0,0,INT((E12-'Initial Benefits'!$C$5)/365.25)) -> 0 | G12: =IF(OR('Initial Benefits'!$C$14=0,Data2!N15<0),0,Data2!N15) -> 0 | H12: =IF(OR('Initial Benefits'!$C$14=0,Data2!M15<0),0,Data2!M15) -> 0 | I12: =IF(OR('Initial Benefits'!$C$14=0,Data2!O15<0),0,Data2!O15) -> 0 | K12: =(E12-'Initial Benefits'!$C$6)*Data2!$J$5 -> 0 | L12: =IF(K12-'Initial Benefits'!$C$11<0,'Initial Benefits'!$C$11-K12,0) -> 0 | M12: =IF(K12-'Initial Benefits'!$C$11>0,K12-'Initial Benefits'!$C$11, 0) -> 0 | O12: 0
E13: 2025-02-25 | F13: =IF('Initial Benefits'!$C$5=0,0,INT((E13-'Initial Benefits'!$C$5)/365.25)) -> 0 | G13: =IF(OR('Initial Benefits'!$C$14=0,Data2!N16<0),0,Data2!N16) -> 0 | H13: =IF(OR('Initial Benefits'!$C$14=0,Data2!M16<0),0,Data2!M16) -> 0 | I13: =IF(OR('Initial Benefits'!$C$14=0,Data2!O16<0),0,Data2!O16) -> 0 | K13: =(E13-'Initial Benefits'!$C$6)*Data2!$J$5 -> 0 | L13: =IF(K13-'Initial Benefits'!$C$11<0,'Initial Benefits'!$C$11-K13,0) -> 0 | M13: =IF(K13-'Initial Benefits'!$C$11>0,K13-'Initial Benefits'!$C$11, 0) -> 0 | O13: 0
B14: Gross Fortnightly Pension at at 3/01/2019 > | C14: ='Initial Benefits'!C14 -> 0 | E14: 2026-02-25 | F14: =IF('Initial Benefits'!$C$5=0,0,INT((E14-'Initial Benefits'!$C$5)/365.25)) -> 0 | G14: =IF(OR('Initial Benefits'!$C$14=0,Data2!N17<0),0,Data2!N17) -> 0 | H14: =IF(OR('Initial Benefits'!$C$14=0,Data2!M17<0),0,Data2!M17) -> 0 | I14: =IF(OR('Initial Benefits'!$C$14=0,Data2!O17<0),0,Data2!O17) -> 0 | K14: =(E14-'Initial Benefits'!$C$6)*Data2!$J$5 -> 0 | L14: =IF(K14-'Initial Benefits'!$C$11<0,'Initial Benefits'!$C$11-K14,0) -> 0 | M14: =IF(K14-'Initial Benefits'!$C$11>0,K14-'Initial Benefits'!$C$11, 0) -> 0 | O14: 0
E15: 2027-02-25 | F15: =IF('Initial Benefits'!$C$5=0,0,INT((E15-'Initial Benefits'!$C$5)/365.25)) -> 0 | G15: =IF(OR('Initial Benefits'!$C$14=0,Data2!N18<0),0,Data2!N18) -> 0 | H15: =IF(OR('Initial Benefits'!$C$14=0,Data2!M18<0),0,Data2!M18) -> 0 | I15: =IF(OR('Initial Benefits'!$C$14=0,Data2!O18<0),0,Data2!O18) -> 0 | K15: =(E15-'Initial Benefits'!$C$6)*Data2!$J$5 -> 0 | L15: =IF(K15-'Initial Benefits'!$C$11<0,'Initial Benefits'!$C$11-K15,0) -> 0 | M15: =IF(K15-'Initial Benefits'!$C$11>0,K15-'Initial Benefits'!$C$11, 0) -> 0 | O15: 0
B16: Future Indexation Rate (per annum) > | C16: ='Initial Benefits'!C16 -> 0.02 | E16: 2028-02-25 | F16: =IF('Initial Benefits'!$C$5=0,0,INT((E16-'Initial Benefits'!$C$5)/365.25)) -> 0 | G16: =IF(OR('Initial Benefits'!$C$14=0,Data2!N19<0),0,Data2!N19) -> 0 | H16: =IF(OR('Initial Benefits'!$C$14=0,Data2!M19<0),0,Data2!M19) -> 0 | I16: =IF(OR('Initial Benefits'!$C$14=0,Data2!O19<0),0,Data2!O19) -> 0 | K16: =(E16-'Initial Benefits'!$C$6)*Data2!$J$5 -> 0 | L16: =IF(K16-'Initial Benefits'!$C$11<0,'Initial Benefits'!$C$11-K16,0) -> 0 | M16: =IF(K16-'Initial Benefits'!$C$11>0,K16-'Initial Benefits'!$C$11, 0) -> 0 | O16: 0
E17: 2029-02-25 | F17: =IF('Initial Benefits'!$C$5=0,0,INT((E17-'Initial Benefits'!$C$5)/365.25)) -> 0 | G17: =IF(OR('Initial Benefits'!$C$14=0,Data2!N20<0),0,Data2!N20) -> 0 | H17: =IF(OR('Initial Benefits'!$C$14=0,Data2!M20<0),0,Data2!M20) -> 0 | I17: =IF(OR('Initial Benefits'!$C$14=0,Data2!O20<0),0,Data2!O20) -> 0 | K17: =(E17-'Initial Benefits'!$C$6)*Data2!$J$5 -> 0 | L17: =IF(K17-'Initial Benefits'!$C$11<0,'Initial Benefits'!$C$11-K17,0) -> 0 | M17: =IF(K17-'Initial Benefits'!$C$11>0,K17-'Initial Benefits'!$C$11, 0) -> 0 | O17: 0
B18: Part of Retirement Pay which is Indexed | C18: ='Initial Benefits'!C18 -> 0 | E18: 2030-02-25 | F18: =IF('Initial Benefits'!$C$5=0,0,INT((E18-'Initial Benefits'!$C$5)/365.25)) -> 0 | G18: =IF(OR('Initial Benefits'!$C$14=0,Data2!N21<0),0,Data2!N21) -> 0 | H18: =IF(OR('Initial Benefits'!$C$14=0,Data2!M21<0),0,Data2!M21) -> 0 | I18: =IF(OR('Initial Benefits'!$C$14=0,Data2!O21<0),0,Data2!O21) -> 0 | K18: =(E18-'Initial Benefits'!$C$6)*Data2!$J$5 -> 0 | L18: =IF(K18-'Initial Benefits'!$C$11<0,'Initial Benefits'!$C$11-K18,0) -> 0 | M18: =IF(K18-'Initial Benefits'!$C$11>0,K18-'Initial Benefits'!$C$11, 0) -> 0 | O18: 0
B19: Part which is Indexed for Spouse's Pension | C19: ='Initial Benefits'!C19 -> 0 | E19: 2031-02-25 | F19: =IF('Initial Benefits'!$C$5=0,0,INT((E19-'Initial Benefits'!$C$5)/365.25)) -> 0 | G19: =IF(OR('Initial Benefits'!$C$14=0,Data2!N22<0),0,Data2!N22) -> 0 | H19: =IF(OR('Initial Benefits'!$C$14=0,Data2!M22<0),0,Data2!M22) -> 0 | I19: =IF(OR('Initial Benefits'!$C$14=0,Data2!O22<0),0,Data2!O22) -> 0 | K19: =(E19-'Initial Benefits'!$C$6)*Data2!$J$5 -> 0 | L19: =IF(K19-'Initial Benefits'!$C$11<0,'Initial Benefits'!$C$11-K19,0) -> 0 | M19: =IF(K19-'Initial Benefits'!$C$11>0,K19-'Initial Benefits'!$C$11, 0) -> 0 | O19: 0
E20: 2032-02-25 | F20: =IF('Initial Benefits'!$C$5=0,0,INT((E20-'Initial Benefits'!$C$5)/365.25)) -> 0 | G20: =IF(OR('Initial Benefits'!$C$14=0,Data2!N23<0),0,Data2!N23) -> 0 | H20: =IF(OR('Initial Benefits'!$C$14=0,Data2!M23<0),0,Data2!M23) -> 0 | I20: =IF(OR('Initial Benefits'!$C$14=0,Data2!O23<0),0,Data2!O23) -> 0 | K20: =(E20-'Initial Benefits'!$C$6)*Data2!$J$5 -> 0 | L20: =IF(K20-'Initial Benefits'!$C$11<0,'Initial Benefits'!$C$11-K20,0) -> 0 | M20: =IF(K20-'Initial Benefits'!$C$11>0,K20-'Initial Benefits'!$C$11, 0) -> 0 | O20: 0
B21: Age on Retirement (30 to 65) | C21: ='Initial Benefits'!C21 -> 0 | E21: 2033-02-25 | F21: =IF('Initial Benefits'!$C$5=0,0,INT((E21-'Initial Benefits'!$C$5)/365.25)) -> 0 | G21: =IF(OR('Initial Benefits'!$C$14=0,Data2!N24<0),0,Data2!N24) -> 0 | H21: =IF(OR('Initial Benefits'!$C$14=0,Data2!M24<0),0,Data2!M24) -> 0 | I21: =IF(OR('Initial Benefits'!$C$14=0,Data2!O24<0),0,Data2!O24) -> 0 | K21: =(E21-'Initial Benefits'!$C$6)*Data2!$J$5 -> 0 | L21: =IF(K21-'Initial Benefits'!$C$11<0,'Initial Benefits'!$C$11-K21,0) -> 0 | M21: =IF(K21-'Initial Benefits'!$C$11>0,K21-'Initial Benefits'!$C$11, 0) -> 0 | O21: 0
E22: 2034-02-25 | F22: =IF('Initial Benefits'!$C$5=0,0,INT((E22-'Initial Benefits'!$C$5)/365.25)) -> 0 | G22: =IF(OR('Initial Benefits'!$C$14=0,Data2!N25<0),0,Data2!N25) -> 0 | H22: =IF(OR('Initial Benefits'!$C$14=0,Data2!M25<0),0,Data2!M25) -> 0 | I22: =IF(OR('Initial Benefits'!$C$14=0,Data2!O25<0),0,Data2!O25) -> 0 | K22: =(E22-'Initial Benefits'!$C$6)*Data2!$J$5 -> 0 | L22: =IF(K22-'Initial Benefits'!$C$11<0,'Initial Benefits'!$C$11-K22,0) -> 0 | M22: =IF(K22-'Initial Benefits'!$C$11>0,K22-'Initial Benefits'!$C$11, 0) -> 0 | O22: 0
B23: 1960-1962 Life Expectancy | C23: ='Initial Benefits'!C23 -> 0 | E23: 2035-02-25 | F23: =IF('Initial Benefits'!$C$5=0,0,INT((E23-'Initial Benefits'!$C$5)/365.25)) -> 0 | G23: =IF(OR('Initial Benefits'!$C$14=0,Data2!N26<0),0,Data2!N26) -> 0 | H23: =IF(OR('Initial Benefits'!$C$14=0,Data2!M26<0),0,Data2!M26) -> 0 | I23: =IF(OR('Initial Benefits'!$C$14=0,Data2!O26<0),0,Data2!O26) -> 0 | K23: =(E23-'Initial Benefits'!$C$6)*Data2!$J$5 -> 0 | L23: =IF(K23-'Initial Benefits'!$C$11<0,'Initial Benefits'!$C$11-K23,0) -> 0 | M23: =IF(K23-'Initial Benefits'!$C$11>0,K23-'Initial Benefits'!$C$11, 0) -> 0 | O23: 0
B24: Age at 1960-1962 Life Expectancy | C24: ='Initial Benefits'!C24 -> 0 | E24: 2036-02-25 | F24: =IF('Initial Benefits'!$C$5=0,0,INT((E24-'Initial Benefits'!$C$5)/365.25)) -> 0 | G24: =IF(OR('Initial Benefits'!$C$14=0,Data2!N27<0),0,Data2!N27) -> 0 | H24: =IF(OR('Initial Benefits'!$C$14=0,Data2!M27<0),0,Data2!M27) -> 0 | I24: =IF(OR('Initial Benefits'!$C$14=0,Data2!O27<0),0,Data2!O27) -> 0 | K24: =(E24-'Initial Benefits'!$C$6)*Data2!$J$5 -> 0 | L24: =IF(K24-'Initial Benefits'!$C$11<0,'Initial Benefits'!$C$11-K24,0) -> 0 | M24: =IF(K24-'Initial Benefits'!$C$11>0,K24-'Initial Benefits'!$C$11, 0) -> 0 | O24: 0
B25: 2015-2017 Life Expectancy | C25: ='Initial Benefits'!C25 -> 0 | E25: 2037-02-25 | F25: =IF('Initial Benefits'!$C$5=0,0,INT((E25-'Initial Benefits'!$C$5)/365.25)) -> 0 | G25: =IF(OR('Initial Benefits'!$C$14=0,Data2!N28<0),0,Data2!N28) -> 0 | H25: =IF(OR('Initial Benefits'!$C$14=0,Data2!M28<0),0,Data2!M28) -> 0 | I25: =IF(OR('Initial Benefits'!$C$14=0,Data2!O28<0),0,Data2!O28) -> 0 | K25: =(E25-'Initial Benefits'!$C$6)*Data2!$J$5 -> 0 | L25: =IF(K25-'Initial Benefits'!$C$11<0,'Initial Benefits'!$C$11-K25,0) -> 0 | M25: =IF(K25-'Initial Benefits'!$C$11>0,K25-'Initial Benefits'!$C$11, 0) -> 0 | O25: 0
B26: Age at 2015-2017 Life Expectancy | C26: ='Initial Benefits'!C26 -> 0 | E26: 2038-02-25 | F26: =IF('Initial Benefits'!$C$5=0,0,INT((E26-'Initial Benefits'!$C$5)/365.25)) -> 0 | G26: =IF(OR('Initial Benefits'!$C$14=0,Data2!N29<0),0,Data2!N29) -> 0 | H26: =IF(OR('Initial Benefits'!$C$14=0,Data2!M29<0),0,Data2!M29) -> 0 | I26: =IF(OR('Initial Benefits'!$C$14=0,Data2!O29<0),0,Data2!O29) -> 0 | K26: =(E26-'Initial Benefits'!$C$6)*Data2!$J$5 -> 0 | L26: =IF(K26-'Initial Benefits'!$C$11<0,'Initial Benefits'!$C$11-K26,0) -> 0 | M26: =IF(K26-'Initial Benefits'!$C$11>0,K26-'Initial Benefits'!$C$11, 0) -> 0 | O26: 0

Sheet Fig.1

Sheet Fig.2

Sheet Fig.3

Sheet Fig.4

Sheet Data1 (hidden)
A1: Age | B1: Life Expectancy | F1: TRUE | G1: FALSE | M1: TOTAL LOSS | N1: Indexation Loss | O1: Commutation Loss | P1: Loss due to Partial Indexation | Q1: Commutation Payback | R1: Reduced Retirement Pay | S1: Loss due to Partial Indexation | T1: Spouse's Pension
B2: 1960-1962 | D2: 2015-2017
B3: Male | C3: Female | D3: Male | E3: Female
A4: 30 | B4: 41.12 | C4: 46.49 | D4: 51.3671 | E4: 55.21314 | I4: Interval to 1962 Life Expectancy | J4: =INT('Initial Benefits'!C23*365.25) -> 0 | K4: days
A5: =A4+1 -> 31 | B5: 40.18 | C5: 45.53 | D5: 50.40745 | E5: 54.23181 | I5: Retirement Pay Reduction Rate | J5: =IF(J4>0,ROUND('Initial Benefits'!C11/J4,6),0) -> 0 | K5: per day
A6: =A5+1 -> 32 | B6: 39.25 | C6: 44.57 | D6: 49.44892 | E6: 53.25199
A7: 33 | B7: 38.31 | C7: 43.61 | D7: 48.49164 | E7: 52.27378 | N7: Retirement | O7: Spouse's | P7: Fully | Q7: Partly | T7: Fully | U7: Partly
A8: 34 | B8: 37.38 | C8: 42.65 | D8: 47.53569 | E8: 51.29735 | N8: Pay | O8: Pension | P8: Indexed | Q8: Indexed | R8: Loss | S8: Reduced | T8: Indexed | U8: Indexed | V8: Loss
A9: 35 | B9: 36.45 | C9: 41.7 | D9: 46.58139 | E9: 50.32295 | H9: Start | I9: Full Rate | J9: Partial Rate | K9: Difference | L9: Pro Rata | M9: Total Loss | N9: Loss p/a | O9: Loss p/a | P9: p/a | Q9: p/a | R9: p/a | S9: p/a | T9: p/a | U9: p/a | V9: p/a
A10: 36 | B10: 35.51 | C10: 40.75 | D10: 45.62891 | E10: 49.35027 | F10: 1 | G10: ='Initial Benefits'!E7 -> 00:00:00 | H10: =IF(G10=0,0,LOOKUP(G10,Data3!A4:A166)) -> 00:00:00 | I10: =IF(G10=0,0,LOOKUP(G10,Data3!A4:A166,Data3!O4:O166)) -> 0 | J10: =IF(G10=0,0,LOOKUP(G10,Data3!A4:A166,Data3!U4:U166)) -> 0 | K10: =I10-J10 -> 0 | L10: =K10*(G10-H10)/14 -> 0 | M10: =IF(G10=0,0,LOOKUP(G10,Data3!A4:A166,Data3!Y4:Y166)+L10) -> 0 | N10: =IF(G10=0,0,LOOKUP(G10,Data3!$A$4:$A$166,Data3!$V$4:$V$166)) -> 0 | O10: =IF(G10=0,0,LOOKUP(G10,Data3!$A$4:$A$166,Data3!$AE$4:$AE$166)) -> 0 | P10: =IF(G10=0,0,LOOKUP(G10,Data3!A4:A166,Data3!N4:N166)) -> 0 | Q10: =IF(G10=0,0,LOOKUP(G10,Data3!A4:A166,Data3!T4:T166)) -> 0 | R10: =P10-Q10 -> 0 | S10: =IF(G10=0,0,LOOKUP(G10,Data3!A4:A166,Data3!P4:P166)) -> 0 | T10: =P10*0.625 -> 0 | U10: =Q10*0.625 -> 0 | V10: =T10-U10 -> 0
A11: 37 | B11: 34.59 | C11: 39.81 | D11: 44.67842 | E11: 48.37884 | F11: 2 | G11: =IF(G10=0,0,DATE(YEAR(G10)+1,MONTH(G10),DAY(G10))) -> 00:00:00 | H11: =IF('Initial Benefits'!$C$5=0,0,LOOKUP(G11,Data3!A5:A167)) -> 00:00:00 | I11: =IF('Initial Benefits'!$C$5=0,0,LOOKUP(G11,Data3!$A$4:$A$166,Data3!$O$4:$O$166)) -> 0 | J11: =IF('Initial Benefits'!$C$5=0,0,LOOKUP(G11,Data3!$A$4:$A$166,Data3!$U$4:$U$165)) -> 0 | K11: =I11-J11 -> 0 | L11: =K11*(G11-H11)/14 -> 0 | M11: =IF('Initial Benefits'!$C$5=0,0,LOOKUP(G11,Data3!$A$4:$A$166,Data3!$Y$4:$Y$166)+L11) -> 0 | N11: =IF(G11=0,0,LOOKUP(G11,Data3!$A$4:$A$166,Data3!$V$4:$V$166)) -> 0 | O11: =IF(G11=0,0,LOOKUP(G11,Data3!$A$4:$A$166,Data3!$AE$4:$AE$166)) -> 0 | P11: =IF(G11=0,0,LOOKUP(G11,Data3!A5:A167,Data3!N5:N167)) -> 0 | Q11: =IF(G11=0,0,LOOKUP(G11,Data3!A5:A167,Data3!T5:T167)) -> 0 | R11: =P11-Q11 -> 0 | S11: =IF(G11=0,0,LOOKUP(G11,Data3!A5:A167,Data3!P5:P167)) -> 0 | T11: =P11*0.625 -> 0 | U11: 0 | V11: =T11-U11 -> 0
A12: 38 | B12: 33.67 | C12: 38.86 | D12: 43.72984 | E12: 47.40874 | F12: 3 | G12: =IF(G11=0,0,DATE(YEAR(G11)+1,MONTH(G11),DAY(G11))) -> 00:00:00 | H12: =IF('Initial Benefits'!$C$5=0,0,LOOKUP(G12,Data3!A6:A168)) -> 00:00:00 | I12: =IF('Initial Benefits'!$C$5=0,0,LOOKUP(G12,Data3!$A$4:$A$166,Data3!$O$4:$O$166)) -> 0 | J12: =IF('Initial Benefits'!$C$5=0,0,LOOKUP(G12,Data3!$A$4:$A$166,Data3!$U$4:$U$165)) -> 0 | K12: 0 | L12: 0 | M12: =IF('Initial Benefits'!$C$5=0,0,LOOKUP(G12,Data3!$A$4:$A$166,Data3!$Y$4:$Y$166)+L12) -> 0 | N12: =IF(G12=0,0,LOOKUP(G12,Data3!$A$4:$A$166,Data3!$V$4:$V$166)) -> 0 | O12: =IF(G12=0,0,LOOKUP(G12,Data3!$A$4:$A$166,Data3!$AE$4:$AE$166)) -> 0 | P12: =IF(G12=0,0,LOOKUP(G12,Data3!A6:A168,Data3!N6:N168)) -> 0 | Q12: =IF(G12=0,0,LOOKUP(G12,Data3!A6:A168,Data3!T6:T168)) -> 0 | R12: 0 | S12: =IF(G12=0,0,LOOKUP(G12,Data3!A6:A168,Data3!P6:P168)) -> 0 | T12: 0 | U12: 0 | V12: 0
A13: 39 | B13: 32.75 | C13: 37.92 | D13: 42.78324 | E13: 46.44022 | F13: 4 | G13: 00:00:00 | H13: =IF('Initial Benefits'!$C$5=0,0,LOOKUP(G13,Data3!A7:A169)) -> 00:00:00 | I13: =IF('Initial Benefits'!$C$5=0,0,LOOKUP(G13,Data3!$A$4:$A$166,Data3!$O$4:$O$166)) -> 0 | J13: =IF('Initial Benefits'!$C$5=0,0,LOOKUP(G13,Data3!$A$4:$A$166,Data3!$U$4:$U$165)) -> 0 | K13: 0 | L13: 0 | M13: =IF('Initial Benefits'!$C$5=0,0,LOOKUP(G13,Data3!$A$4:$A$166,Data3!$Y$4:$Y$166)+L13) -> 0 | N13: =IF(G13=0,0,LOOKUP(G13,Data3!$A$4:$A$166,Data3!$V$4:$V$166)) -> 0 | O13: =IF(G13=0,0,LOOKUP(G13,Data3!$A$4:$A$166,Data3!$AE$4:$AE$166)) -> 0 | P13: =IF(G13=0,0,LOOKUP(G13,Data3!A7:A169,Data3!N7:N169)) -> 0 | Q13: =IF(G13=0,0,LOOKUP(G13,Data3!A7:A169,Data3!T7:T169)) -> 0 | R13: 0 | S13: =IF(G13=0,0,LOOKUP(G13,Data3!A7:A169,Data3!P7:P169)) -> 0 | T13: 0 | U13: 0 | V13: 0
A14: 40 | B14: 31.84 | C14: 36.99 | D14: 41.83908 | E14: 45.47352 | F14: 5 | G14: 00:00:00 | H14: =IF('Initial Benefits'!$C$5=0,0,LOOKUP(G14,Data3!A8:A170)) -> 00:00:00 | I14: =IF('Initial Benefits'!$C$5=0,0,LOOKUP(G14,Data3!$A$4:$A$166,Data3!$O$4:$O$166)) -> 0 | J14: =IF('Initial Benefits'!$C$5=0,0,LOOKUP(G14,Data3!$A$4:$A$166,Data3!$U$4:$U$165)) -> 0 | K14: 0 | L14: 0 | M14: =IF('Initial Benefits'!$C$5=0,0,LOOKUP(G14,Data3!$A$4:$A$166,Data3!$Y$4:$Y$166)+L14) -> 0 | N14: =IF(G14=0,0,LOOKUP(G14,Data3!$A$4:$A$166,Data3!$V$4:$V$166)) -> 0 | O14: =IF(G14=0,0,LOOKUP(G14,Data3!$A$4:$A$166,Data3!$AE$4:$AE$166)) -> 0 | P14: =IF(G14=0,0,LOOKUP(G14,Data3!A8:A170,Data3!N8:N170)) -> 0 | Q14: =IF(G14=0,0,LOOKUP(G14,Data3!A8:A170,Data3!T8:T170)) -> 0 | R14: 0 | S14: =IF(G14=0,0,LOOKUP(G14,Data3!A8:A170,Data3!P8:P170)) -> 0 | T14: 0 | U14: 0 | V14: 0
A15: 41 | B15: 30.93 | C15: 36.06 | D15: 40.89787 | E15: 44.50897 | F15: 6 | G15: 00:00:00 | H15: =IF('Initial Benefits'!$C$5=0,0,LOOKUP(G15,Data3!A9:A171)) -> 00:00:00 | I15: =IF('Initial Benefits'!$C$5=0,0,LOOKUP(G15,Data3!$A$4:$A$166,Data3!$O$4:$O$166)) -> 0 | J15: =IF('Initial Benefits'!$C$5=0,0,LOOKUP(G15,Data3!$A$4:$A$166,Data3!$U$4:$U$165)) -> 0 | K15: 0 | L15: 0 | M15: =IF('Initial Benefits'!$C$5=0,0,LOOKUP(G15,Data3!$A$4:$A$166,Data3!$Y$4:$Y$166)+L15) -> 0 | N15: =IF(G15=0,0,LOOKUP(G15,Data3!$A$4:$A$166,Data3!$V$4:$V$166)) -> 0 | O15: =IF(G15=0,0,LOOKUP(G15,Data3!$A$4:$A$166,Data3!$AE$4:$AE$166)) -> 0 | P15: =IF(G15=0,0,LOOKUP(G15,Data3!A9:A171,Data3!N9:N171)) -> 0 | Q15: =IF(G15=0,0,LOOKUP(G15,Data3!A9:A171,Data3!T9:T171)) -> 0 | R15: 0 | S15: =IF(G15=0,0,LOOKUP(G15,Data3!A9:A171,Data3!P9:P171)) -> 0 | T15: 0 | U15: 0 | V15: 0
A16: 42 | B16: 30.03 | C16: 35.13 | D16: 39.96003 | E16: 43.5468 | F16: 7 | G16: 00:00:00 | H16: =IF('Initial Benefits'!$C$5=0,0,LOOKUP(G16,Data3!A10:A172)) -> 00:00:00 | I16: =IF('Initial Benefits'!$C$5=0,0,LOOKUP(G16,Data3!$A$4:$A$166,Data3!$O$4:$O$166)) -> 0 | J16: =IF('Initial Benefits'!$C$5=0,0,LOOKUP(G16,Data3!$A$4:$A$166,Data3!$U$4:$U$165)) -> 0 | K16: 0 | L16: 0 | M16: =IF('Initial Benefits'!$C$5=0,0,LOOKUP(G16,Data3!$A$4:$A$166,Data3!$Y$4:$Y$166)+L16) -> 0 | N16: =IF(G16=0,0,LOOKUP(G16,Data3!$A$4:$A$166,Data3!$V$4:$V$166)) -> 0 | O16: =IF(G16=0,0,LOOKUP(G16,Data3!$A$4:$A$166,Data3!$AE$4:$AE$166)) -> 0 | P16: =IF(G16=0,0,LOOKUP(G16,Data3!A10:A172,Data3!N10:N172)) -> 0 | Q16: =IF(G16=0,0,LOOKUP(G16,Data3!A10:A172,Data3!T10:T172)) -> 0 | R16: 0 | S16: =IF(G16=0,0,LOOKUP(G16,Data3!A10:A172,Data3!P10:P172)) -> 0 | T16: 0 | U16: 0 | V16: 0
A17: 43 | B17: 29.14 | C17: 34.21 | D17: 39.02563 | E17: 42.58735 | F17: 8 | G17: 00:00:00 | H17: =IF('Initial Benefits'!$C$5=0,0,LOOKUP(G17,Data3!A11:A173)) -> 00:00:00 | I17: =IF('Initial Benefits'!$C$5=0,0,LOOKUP(G17,Data3!$A$4:$A$166,Data3!$O$4:$O$166)) -> 0 | J17: =IF('Initial Benefits'!$C$5=0,0,LOOKUP(G17,Data3!$A$4:$A$166,Data3!$U$4:$U$165)) -> 0 | K17: 0 | L17: 0 | M17: =IF('Initial Benefits'!$C$5=0,0,LOOKUP(G17,Data3!$A$4:$A$166,Data3!$Y$4:$Y$166)+L17) -> 0 | N17: =IF(G17=0,0,LOOKUP(G17,Data3!$A$4:$A$166,Data3!$V$4:$V$166)) -> 0 | O17: =IF(G17=0,0,LOOKUP(G17,Data3!$A$4:$A$166,Data3!$AE$4:$AE$166)) -> 0 | P17: =IF(G17=0,0,LOOKUP(G17,Data3!A11:A173,Data3!N11:N173)) -> 0 | Q17: =IF(G17=0,0,LOOKUP(G17,Data3!A11:A173,Data3!T11:T173)) -> 0 | R17: 0 | S17: =IF(G17=0,0,LOOKUP(G17,Data3!A11:A173,Data3!P11:P173)) -> 0 | T17: 0 | U17: 0 | V17: 0
A18: 44 | B18: 28.25 | C18: 33.29 | D18: 38.09452 | E18: 41.63078 | F18: 9 | G18: 00:00:00 | H18: =IF('Initial Benefits'!$C$5=0,0,LOOKUP(G18,Data3!A12:A174)) -> 00:00:00 | I18: =IF('Initial Benefits'!$C$5=0,0,LOOKUP(G18,Data3!$A$4:$A$166,Data3!$O$4:$O$166)) -> 0 | J18: =IF('Initial Benefits'!$C$5=0,0,LOOKUP(G18,Data3!$A$4:$A$166,Data3!$U$4:$U$165)) -> 0 | K18: 0 | L18: 0 | M18: =IF('Initial Benefits'!$C$5=0,0,LOOKUP(G18,Data3!$A$4:$A$166,Data3!$Y$4:$Y$166)+L18) -> 0 | N18: =IF(G18=0,0,LOOKUP(G18,Data3!$A$4:$A$166,Data3!$V$4:$V$166)) -> 0 | O18: =IF(G18=0,0,LOOKUP(G18,Data3!$A$4:$A$166,Data3!$AE$4:$AE$166)) -> 0 | P18: =IF(G18=0,0,LOOKUP(G18,Data3!A12:A174,Data3!N12:N174)) -> 0 | Q18: =IF(G18=0,0,LOOKUP(G18,Data3!A12:A174,Data3!T12:T174)) -> 0 | R18: 0 | S18: =IF(G18=0,0,LOOKUP(G18,Data3!A12:A174,Data3!P12:P174)) -> 0 | T18: 0 | U18: 0 | V18: 0
A19: 45 | B19: 27.38 | C19: 32.38 | D19: 37.16683 | E19: 40.67712 | F19: 10 | G19: 00:00:00 | H19: =IF('Initial Benefits'!$C$5=0,0,LOOKUP(G19,Data3!A13:A175)) -> 00:00:00 | I19: =IF('Initial Benefits'!$C$5=0,0,LOOKUP(G19,Data3!$A$4:$A$166,Data3!$O$4:$O$166)) -> 0 | J19: =IF('Initial Benefits'!$C$5=0,0,LOOKUP(G19,Data3!$A$4:$A$166,Data3!$U$4:$U$165)) -> 0 | K19: 0 | L19: 0 | M19: =IF('Initial Benefits'!$C$5=0,0,LOOKUP(G19,Data3!$A$4:$A$166,Data3!$Y$4:$Y$166)+L19) -> 0 | N19: =IF(G19=0,0,LOOKUP(G19,Data3!$A$4:$A$166,Data3!$V$4:$V$166)) -> 0 | O19: =IF(G19=0,0,LOOKUP(G19,Data3!$A$4:$A$166,Data3!$AE$4:$AE$166)) -> 0 | P19: =IF(G19=0,0,LOOKUP(G19,Data3!A13:A175,Data3!N13:N175)) -> 0 | Q19: =IF(G19=0,0,LOOKUP(G19,Data3!A13:A175,Data3!T13:T175)) -> 0 | R19: 0 | S19: =IF(G19=0,0,LOOKUP(G19,Data3!A13:A175,Data3!P13:P175)) -> 0 | T19: 0 | U19: 0 | V19: 0
A20: 46 | B20: 26.51 | C20: 31.48 | D20: 36.24269 | E20: 39.72614 | F20: 11 | G20: 00:00:00 | H20: =IF('Initial Benefits'!$C$5=0,0,LOOKUP(G20,Data3!A14:A176)) -> 00:00:00 | I20: =IF('Initial Benefits'!$C$5=0,0,LOOKUP(G20,Data3!$A$4:$A$166,Data3!$O$4:$O$166)) -> 0 | J20: =IF('Initial Benefits'!$C$5=0,0,LOOKUP(G20,Data3!$A$4:$A$166,Data3!$U$4:$U$165)) -> 0 | K20: 0 | L20: 0 | M20: =IF('Initial Benefits'!$C$5=0,0,LOOKUP(G20,Data3!$A$4:$A$166,Data3!$Y$4:$Y$166)+L20) -> 0 | N20: =IF(G20=0,0,LOOKUP(G20,Data3!$A$4:$A$166,Data3!$V$4:$V$166)) -> 0 | O20: =IF(G20=0,0,LOOKUP(G20,Data3!$A$4:$A$166,Data3!$AE$4:$AE$166)) -> 0 | P20: =IF(G20=0,0,LOOKUP(G20,Data3!A14:A176,Data3!N14:N176)) -> 0 | Q20: =IF(G20=0,0,LOOKUP(G20,Data3!A14:A176,Data3!T14:T176)) -> 0 | R20: 0 | S20: =IF(G20=0,0,LOOKUP(G20,Data3!A14:A176,Data3!P14:P176)) -> 0 | T20: 0 | U20: 0 | V20: 0
A21: 47 | B21: 25.65 | C21: 30.58 | D21: 35.3224 | E21: 38.77781 | F21: 12 | G21: 00:00:00 | H21: =IF('Initial Benefits'!$C$5=0,0,LOOKUP(G21,Data3!A15:A177)) -> 00:00:00 | I21: =IF('Initial Benefits'!$C$5=0,0,LOOKUP(G21,Data3!$A$4:$A$166,Data3!$O$4:$O$166)) -> 0 | J21: =IF('Initial Benefits'!$C$5=0,0,LOOKUP(G21,Data3!$A$4:$A$166,Data3!$U$4:$U$165)) -> 0 | K21: 0 | L21: 0 | M21: =IF('Initial Benefits'!$C$5=0,0,LOOKUP(G21,Data3!$A$4:$A$166,Data3!$Y$4:$Y$166)+L21) -> 0 | N21: =IF(G21=0,0,LOOKUP(G21,Data3!$A$4:$A$166,Data3!$V$4:$V$166)) -> 0 | O21: =IF(G21=0,0,LOOKUP(G21,Data3!$A$4:$A$166,Data3!$AE$4:$AE$166)) -> 0 | P21: =IF(G21=0,0,LOOKUP(G21,Data3!A15:A177,Data3!N15:N177)) -> 0 | Q21: =IF(G21=0,0,LOOKUP(G21,Data3!A15:A177,Data3!T15:T177)) -> 0 | R21: 0 | S21: =IF(G21=0,0,LOOKUP(G21,Data3!A15:A177,Data3!P15:P177)) -> 0 | T21: 0 | U21: 0 | V21: 0
A22: 48 | B22: 24.8 | C22: 29.69 | D22: 34.40626 | E22: 37.83245 | F22: 13 | G22: 00:00:00 | H22: =IF('Initial Benefits'!$C$5=0,0,LOOKUP(G22,Data3!A16:A178)) -> 00:00:00 | I22: =IF('Initial Benefits'!$C$5=0,0,LOOKUP(G22,Data3!$A$4:$A$166,Data3!$O$4:$O$166)) -> 0 | J22: =IF('Initial Benefits'!$C$5=0,0,LOOKUP(G22,Data3!$A$4:$A$166,Data3!$U$4:$U$165)) -> 0 | K22: 0 | L22: 0 | M22: =IF('Initial Benefits'!$C$5=0,0,LOOKUP(G22,Data3!$A$4:$A$166,Data3!$Y$4:$Y$166)+L22) -> 0 | N22: =IF(G22=0,0,LOOKUP(G22,Data3!$A$4:$A$166,Data3!$V$4:$V$166)) -> 0 | O22: =IF(G22=0,0,LOOKUP(G22,Data3!$A$4:$A$166,Data3!$AE$4:$AE$166)) -> 0 | P22: =IF(G22=0,0,LOOKUP(G22,Data3!A16:A178,Data3!N16:N178)) -> 0 | Q22: =IF(G22=0,0,LOOKUP(G22,Data3!A16:A178,Data3!T16:T178)) -> 0 | R22: 0 | S22: =IF(G22=0,0,LOOKUP(G22,Data3!A16:A178,Data3!P16:P178)) -> 0 | T22: 0 | U22: 0 | V22: 0
A23: 49 | B23: 23.96 | C23: 28.8 | D23: 33.49409 | E23: 36.89052 | F23: 14 | G23: 00:00:00 | H23: =IF('Initial Benefits'!$C$5=0,0,LOOKUP(G23,Data3!A17:A179)) -> 00:00:00 | I23: =IF('Initial Benefits'!$C$5=0,0,LOOKUP(G23,Data3!$A$4:$A$166,Data3!$O$4:$O$166)) -> 0 | J23: =IF('Initial Benefits'!$C$5=0,0,LOOKUP(G23,Data3!$A$4:$A$166,Data3!$U$4:$U$165)) -> 0 | K23: 0 | L23: 0 | M23: =IF('Initial Benefits'!$C$5=0,0,LOOKUP(G23,Data3!$A$4:$A$166,Data3!$Y$4:$Y$166)+L23) -> 0 | N23: =IF(G23=0,0,LOOKUP(G23,Data3!$A$4:$A$166,Data3!$V$4:$V$166)) -> 0 | O23: =IF(G23=0,0,LOOKUP(G23,Data3!$A$4:$A$166,Data3!$AE$4:$AE$166)) -> 0 | P23: =IF(G23=0,0,LOOKUP(G23,Data3!A17:A179,Data3!N17:N179)) -> 0 | Q23: =IF(G23=0,0,LOOKUP(G23,Data3!A17:A179,Data3!T17:T179)) -> 0 | R23: 0 | S23: =IF(G23=0,0,LOOKUP(G23,Data3!A17:A179,Data3!P17:P179)) -> 0 | T23: 0 | U23: 0 | V23: 0
A24: 50 | B24: 23.13 | C24: 27.92 | D24: 32.58578 | E24: 35.95214 | F24: 15 | G24: 00:00:00 | H24: =IF('Initial Benefits'!$C$5=0,0,LOOKUP(G24,Data3!A18:A180)) -> 00:00:00 | I24: =IF('Initial Benefits'!$C$5=0,0,LOOKUP(G24,Data3!$A$4:$A$166,Data3!$O$4:$O$166)) -> 0 | J24: =IF('Initial Benefits'!$C$5=0,0,LOOKUP(G24,Data3!$A$4:$A$166,Data3!$U$4:$U$165)) -> 0 | K24: 0 | L24: 0 | M24: =IF('Initial Benefits'!$C$5=0,0,LOOKUP(G24,Data3!$A$4:$A$166,Data3!$Y$4:$Y$166)+L24) -> 0 | N24: =IF(G24=0,0,LOOKUP(G24,Data3!$A$4:$A$166,Data3!$V$4:$V$166)) -> 0 | O24: =IF(G24=0,0,LOOKUP(G24,Data3!$A$4:$A$166,Data3!$AE$4:$AE$166)) -> 0 | P24: =IF(G24=0,0,LOOKUP(G24,Data3!A18:A180,Data3!N18:N180)) -> 0 | Q24: =IF(G24=0,0,LOOKUP(G24,Data3!A18:A180,Data3!T18:T180)) -> 0 | R24: 0 | S24: =IF(G24=0,0,LOOKUP(G24,Data3!A18:A180,Data3!P18:P180)) -> 0 | T24: 0 | U24: 0 | V24: 0
A25: 51 | B25: 22.31 | C25: 27.05 | D25: 31.68152 | E25: 35.01754 | F25: 16 | G25: 00:00:00 | H25: =IF('Initial Benefits'!$C$5=0,0,LOOKUP(G25,Data3!A19:A181)) -> 00:00:00 | I25: =IF('Initial Benefits'!$C$5=0,0,LOOKUP(G25,Data3!$A$4:$A$166,Data3!$O$4:$O$166)) -> 0 | J25: =IF('Initial Benefits'!$C$5=0,0,LOOKUP(G25,Data3!$A$4:$A$166,Data3!$U$4:$U$165)) -> 0 | K25: 0 | L25: 0 | M25: =IF('Initial Benefits'!$C$5=0,0,LOOKUP(G25,Data3!$A$4:$A$166,Data3!$Y$4:$Y$166)+L25) -> 0 | N25: =IF(G25=0,0,LOOKUP(G25,Data3!$A$4:$A$166,Data3!$V$4:$V$166)) -> 0 | O25: =IF(G25=0,0,LOOKUP(G25,Data3!$A$4:$A$166,Data3!$AE$4:$AE$166)) -> 0 | P25: =IF(G25=0,0,LOOKUP(G25,Data3!A19:A181,Data3!N19:N181)) -> 0 | Q25: =IF(G25=0,0,LOOKUP(G25,Data3!A19:A181,Data3!T19:T181)) -> 0 | R25: 0 | S25: =IF(G25=0,0,LOOKUP(G25,Data3!A19:A181,Data3!P19:P181)) -> 0 | T25: 0 | U25: 0 | V25: 0
A26: 52 | B26: 21.51 | C26: 26.18 | D26: 30.78185 | E26: 34.08682 | F26: 17 | G26: 00:00:00 | H26: =IF('Initial Benefits'!$C$5=0,0,LOOKUP(G26,Data3!A20:A182)) -> 00:00:00 | I26: =IF('Initial Benefits'!$C$5=0,0,LOOKUP(G26,Data3!$A$4:$A$166,Data3!$O$4:$O$166)) -> 0 | J26: =IF('Initial Benefits'!$C$5=0,0,LOOKUP(G26,Data3!$A$4:$A$166,Data3!$U$4:$U$165)) -> 0 | K26: 0 | L26: 0 | M26: =IF('Initial Benefits'!$C$5=0,0,LOOKUP(G26,Data3!$A$4:$A$166,Data3!$Y$4:$Y$166)+L26) -> 0 | N26: =IF(G26=0,0,LOOKUP(G26,Data3!$A$4:$A$166,Data3!$V$4:$V$166)) -> 0 | O26: =IF(G26=0,0,LOOKUP(G26,Data3!$A$4:$A$166,Data3!$AE$4:$AE$166)) -> 0 | P26: =IF(G26=0,0,LOOKUP(G26,Data3!A20:A182,Data3!N20:N182)) -> 0 | Q26: =IF(G26=0,0,LOOKUP(G26,Data3!A20:A182,Data3!T20:T182)) -> 0 | R26: 0 | S26: =IF(G26=0,0,LOOKUP(G26,Data3!A20:A182,Data3!P20:P182)) -> 0 | T26: 0 | U26: 0 | V26: 0
A27: 53 | B27: 20.72 | C27: 25.32 | D27: 29.88733 | E27: 33.15984 | F27: 18 | G27: 00:00:00 | H27: =IF('Initial Benefits'!$C$5=0,0,LOOKUP(G27,Data3!A21:A183)) -> 00:00:00 | I27: =IF('Initial Benefits'!$C$5=0,0,LOOKUP(G27,Data3!$A$4:$A$166,Data3!$O$4:$O$166)) -> 0 | J27: =IF('Initial Benefits'!$C$5=0,0,LOOKUP(G27,Data3!$A$4:$A$166,Data3!$U$4:$U$165)) -> 0 | K27: 0 | L27: 0 | M27: =IF('Initial Benefits'!$C$5=0,0,LOOKUP(G27,Data3!$A$4:$A$166,Data3!$Y$4:$Y$166)+L27) -> 0 | N27: =IF(G27=0,0,LOOKUP(G27,Data3!$A$4:$A$166,Data3!$V$4:$V$166)) -> 0 | O27: =IF(G27=0,0,LOOKUP(G27,Data3!$A$4:$A$166,Data3!$AE$4:$AE$166)) -> 0 | P27: =IF(G27=0,0,LOOKUP(G27,Data3!A21:A183,Data3!N21:N183)) -> 0 | Q27: =IF(G27=0,0,LOOKUP(G27,Data3!A21:A183,Data3!T21:T183)) -> 0 | R27: 0 | S27: =IF(G27=0,0,LOOKUP(G27,Data3!A21:A183,Data3!P21:P183)) -> 0 | T27: 0 | U27: 0 | V27: 0
A28: 54 | B28: 19.94 | C28: 24.47 | D28: 28.99879 | E28: 32.2365 | F28: 19 | G28: 00:00:00 | H28: =IF('Initial Benefits'!$C$5=0,0,LOOKUP(G28,Data3!A22:A184)) -> 00:00:00 | I28: =IF('Initial Benefits'!$C$5=0,0,LOOKUP(G28,Data3!$A$4:$A$166,Data3!$O$4:$O$166)) -> 0 | J28: =IF('Initial Benefits'!$C$5=0,0,LOOKUP(G28,Data3!$A$4:$A$166,Data3!$U$4:$U$165)) -> 0 | K28: 0 | L28: 0 | M28: =IF('Initial Benefits'!$C$5=0,0,LOOKUP(G28,Data3!$A$4:$A$166,Data3!$Y$4:$Y$166)+L28) -> 0 | N28: =IF(G28=0,0,LOOKUP(G28,Data3!$A$4:$A$166,Data3!$V$4:$V$166)) -> 0 | O28: =IF(G28=0,0,LOOKUP(G28,Data3!$A$4:$A$166,Data3!$AE$4:$AE$166)) -> 0 | P28: =IF(G28=0,0,LOOKUP(G28,Data3!A22:A184,Data3!N22:N184)) -> 0 | Q28: =IF(G28=0,0,LOOKUP(G28,Data3!A22:A184,Data3!T22:T184)) -> 0 | R28: 0 | S28: =IF(G28=0,0,LOOKUP(G28,Data3!A22:A184,Data3!P22:P184)) -> 0 | T28: 0 | U28: 0 | V28: 0
A29: 55 | B29: 19.18 | C29: 23.63 | D29: 28.1166 | E29: 31.3168 | F29: 20 | G29: 00:00:00 | H29: =IF('Initial Benefits'!$C$5=0,0,LOOKUP(G29,Data3!A23:A185)) -> 00:00:00 | I29: =IF('Initial Benefits'!$C$5=0,0,LOOKUP(G29,Data3!$A$4:$A$166,Data3!$O$4:$O$166)) -> 0 | J29: =IF('Initial Benefits'!$C$5=0,0,LOOKUP(G29,Data3!$A$4:$A$166,Data3!$U$4:$U$165)) -> 0 | K29: 0 | L29: 0 | M29: =IF('Initial Benefits'!$C$5=0,0,LOOKUP(G29,Data3!$A$4:$A$166,Data3!$Y$4:$Y$166)+L29) -> 0 | N29: =IF(G29=0,0,LOOKUP(G29,Data3!$A$4:$A$166,Data3!$V$4:$V$166)) -> 0 | O29: =IF(G29=0,0,LOOKUP(G29,Data3!$A$4:$A$166,Data3!$AE$4:$AE$166)) -> 0 | P29: =IF(G29=0,0,LOOKUP(G29,Data3!A23:A185,Data3!N23:N185)) -> 0 | Q29: =IF(G29=0,0,LOOKUP(G29,Data3!A23:A185,Data3!T23:T185)) -> 0 | R29: 0 | S29: =IF(G29=0,0,LOOKUP(G29,Data3!A23:A185,Data3!P23:P185)) -> 0 | T29: 0 | U29: 0 | V29: 0
A30: 56 | B30: 18.43 | C30: 22.79 | D30: 27.24079 | E30: 30.40072
A31: 57 | B31: 17.7 | C31: 21.96 | D31: 26.3713 | E31: 29.48836 | G31: ='Initial Benefits'!C6 -> 00:00:00 | H31: =IF(G31=0,0,LOOKUP(G31,G32:G54,H32:H54)) -> 0 | I31: ='Initial Benefits'!C9 -> 0 | J31: =IF('Initial Benefits'!C23=0,0,I31/'Initial Benefits'!C23) -> 0
A32: 58 | B32: 16.99 | C32: 21.13 | D32: 25.50834 | E32: 28.58 | G32: 1972-10-01 | H32: 4 | I32: =IF('Initial Benefits'!C7=0,0,'Initial Benefits'!C11/'Initial Benefits'!C7) -> 0 | J32: =IF(G31=0,0,LOOKUP(G31,G32:G55,H32:H55)) -> 0
A33: 59 | B33: 16.29 | C33: 20.32 | D33: 24.65234 | E33: 27.67607 | G33: 1983-07-01 | H33: 4.05
A34: 60 | B34: 15.6 | C34: 19.51 | D34: 23.80358 | E34: 26.77643 | G34: 1983-07-01 | H34: 4.05
A35: 61 | B35: 14.94 | C35: 18.72 | D35: 22.9622 | E35: 25.88095 | G35: =DATE(YEAR(G34)+1,7,1) -> 1984-07-01 | H35: =H34+0.05 -> 4.1
A36: 62 | B36: 14.29 | C36: 17.94 | D36: 22.12787 | E36: 24.98927 | G36: =DATE(YEAR(G35)+1,7,1) -> 1985-07-01 | H36: =H35+0.05 -> 4.15
A37: 63 | B37: 13.67 | C37: 17.17 | D37: 21.30059 | E37: 24.10177 | G37: 1986-07-01 | H37: 4.2
A38: 64 | B38: 13.06 | C38: 16.42 | D38: 20.48039 | E38: 23.21892 | G38: 1987-07-01 | H38: 4.25
A39: 65 | B39: 12.47 | C39: 15.68 | D39: 19.66779 | E39: 22.34173 | G39: 1988-07-01 | H39: 4.3
A40: 66 | D40: 18.8632 | E40: 21.47142 | G40: 1989-07-01 | H40: 4.35
A41: 67 | D41: 18.06721 | E41: 20.60929 | G41: 1990-07-01 | H41: 4.4
A42: 68 | D42: 17.28055 | E42: 19.75618 | G42: 1991-07-01 | H42: 4.45
A43: 69 | D43: 16.50433 | E43: 18.9123 | G43: 1992-07-01 | H43: 4.5
A44: 70 | D44: 15.7396 | E44: 18.07779 | G44: 1993-07-01 | H44: 4.55
A45: 71 | D45: 14.9876 | E45: 17.25317 | G45: 1994-07-01 | H45: 4.6
A46: 72 | D46: 14.24939 | E46: 16.43902 | G46: 1995-07-01 | H46: 4.65
A47: 73 | D47: 13.52578 | E47: 15.63619 | G47: 1996-07-01 | H47: 4.7
A48: 74 | D48: 12.81737 | E48: 14.84582 | G48: 1997-07-01 | H48: 4.75
A49: 75 | D49: 12.12394 | E49: 14.06863 | G49: 1998-07-01 | H49: 4.8
A50: 76 | D50: 11.44612 | E50: 13.3055 | G50: 1999-07-01 | H50: 4.85
A51: 77 | D51: 10.78512 | E51: 12.55744 | G51: 2000-07-01 | H51: 4.9
A52: 78 | D52: 10.14227 | E52: 11.82578 | G52: 2001-07-01 | H52: 4.95
A53: 79 | D53: 9.51846 | E53: 11.11204 | G53: 2002-07-01 | H53: 5
A54: 80 | D54: 8.91514 | E54: 10.41747 | G54: 2003-07-01 | H54: 5
G55: 2067-07-01 | H55: 5

Sheet Data2 (hidden)
A1: Age | B1: Life Expectancy | F1: FALSE | G1: FALSE | M1: TOTAL LOSSES | N1: Indexation Loss | O1: Commutation Loss | P1: Loss due to Partial Indexation | Q1: Commutation Payback | R1: Reduced Retirement Pay | S1: Loss due to Partial Indexation | T1: Spouse's Pension
B2: 1960-1962 | D2: 2015-2017
B3: Male | C3: Female | D3: Male | E3: Female
A4: 30 | B4: 41.12 | C4: 46.49 | D4: 51.3671 | E4: 55.21314 | I4: Interval to 1962 Life Expectancy | J4: =INT('Initial Benefits'!C23*365.25) -> 0 | K4: days
A5: =A4+1 -> 31 | B5: 40.18 | C5: 45.53 | D5: 50.40745 | E5: 54.23181 | I5: Retirement Pay Reduction Rate | J5: =IF(J4>0,ROUND('Initial Benefits'!C11/J4,6),0) -> 0 | K5: per day
A6: =A5+1 -> 32 | B6: 39.25 | C6: 44.57 | D6: 49.44892 | E6: 53.25199
A7: 33 | B7: 38.31 | C7: 43.61 | D7: 48.49164 | E7: 52.27378 | N7: Retirement | O7: Spouse's | P7: Fully | Q7: Partly | T7: Fully | U7: Partly
A8: 34 | B8: 37.38 | C8: 42.65 | D8: 47.53569 | E8: 51.29735 | N8: Pay | O8: Pension | P8: Indexed | Q8: Indexed | R8: Loss | S8: Reduced | T8: Indexed | U8: Indexed | V8: Loss
A9: 35 | B9: 36.45 | C9: 41.7 | D9: 46.58139 | E9: 50.32295 | H9: Start | I9: Full Rate | J9: Partial Rate | K9: Difference | L9: Pro Rata | M9: Total Loss | N9: Loss p/a | O9: Loss p/a | P9: p/a | Q9: p/a | R9: p/a | S9: p/a | T9: p/a | U9: p/a | V9: p/a
A10: 36 | B10: 35.51 | C10: 40.75 | D10: 45.62891 | E10: 49.35027 | F10: 1 | G10: ='Future Losses'!E7 -> 2019-02-25 | H10: =LOOKUP(G10,Data3!A4:A166) -> 2019-01-03 | I10: =LOOKUP(G10,Data3!A4:A166,Data3!O4:O166) -> 0 | J10: =LOOKUP(G10,Data3!A4:A166,Data3!U4:U166) -> 0 | K10: =I10-J10 -> 0 | L10: =K10*(G10-H10)/14 -> 0 | M10: =LOOKUP(G10,Data3!A4:A166,Data3!Y4:Y166)+L10 -> 0 | N10: =IF(G10=0,0,LOOKUP(G10,Data3!$A$4:$A$166,Data3!$V$4:$V$166)) -> 0 | O10: =LOOKUP(G10,Data3!$A$4:$A$166,Data3!$AE$4:$AE$166) -> 0 | P10: =LOOKUP(G10,Data3!A4:A166,Data3!N4:N166) -> 0 | Q10: =LOOKUP(G10,Data3!A4:A166,Data3!T4:T166) -> 0 | R10: =P10-Q10 -> 0 | S10: =LOOKUP(G10,Data3!A4:A166,Data3!P4:P166) -> 0 | T10: =P10*0.625 -> 0 | U10: =Q10*0.625 -> 0 | V10: =T10-U10 -> 0
A11: 37 | B11: 34.59 | C11: 39.81 | D11: 44.67842 | E11: 48.37884 | F11: 2 | G11: =DATE(YEAR(G10)+1,MONTH(G10),DAY(G10)) -> 2020-02-25 | H11: =IF('Initial Benefits'!$C$5=0,0,LOOKUP(G11,Data3!A5:A167)) -> 00:00:00 | I11: =IF('Initial Benefits'!$C$5=0,0,LOOKUP(G11,Data3!$A$4:$A$166,Data3!$O$4:$O$166)) -> 0 | J11: =IF('Initial Benefits'!$C$5=0,0,LOOKUP(G11,Data3!$A$4:$A$166,Data3!$U$4:$U$165)) -> 0 | K11: =I11-J11 -> 0 | L11: =K11*(G11-H11)/14 -> 0 | M11: =IF('Initial Benefits'!$C$5=0,0,LOOKUP(G11,Data3!$A$4:$A$166,Data3!$Y$4:$Y$166)+L11) -> 0 | N11: =IF(G11=0,0,LOOKUP(G11,Data3!$A$4:$A$166,Data3!$V$4:$V$166)) -> 0 | O11: =LOOKUP(G11,Data3!$A$4:$A$166,Data3!$AE$4:$AE$166) -> 0 | P11: =LOOKUP(G11,Data3!A5:A167,Data3!N5:N167) -> 0 | Q11: =LOOKUP(G11,Data3!A5:A167,Data3!T5:T167) -> 0 | R11: =P11-Q11 -> 0 | S11: =LOOKUP(G11,Data3!A5:A167,Data3!P5:P167) -> 0 | T11: =P11*0.625 -> 0 | U11: =Q11*0.625 -> 0 | V11: =T11-U11 -> 0
A12: 38 | B12: 33.67 | C12: 38.86 | D12: 43.72984 | E12: 47.40874 | F12: 3 | G12: =DATE(YEAR(G11)+1,MONTH(G11),DAY(G11)) -> 2021-02-25 | H12: =IF('Initial Benefits'!$C$5=0,0,LOOKUP(G12,Data3!A6:A168)) -> 00:00:00 | I12: =IF('Initial Benefits'!$C$5=0,0,LOOKUP(G12,Data3!$A$4:$A$166,Data3!$O$4:$O$166)) -> 0 | J12: =IF('Initial Benefits'!$C$5=0,0,LOOKUP(G12,Data3!$A$4:$A$166,Data3!$U$4:$U$165)) -> 0 | K12: 0 | L12: 0 | M12: =IF('Initial Benefits'!$C$5=0,0,LOOKUP(G12,Data3!$A$4:$A$166,Data3!$Y$4:$Y$166)+L12) -> 0 | N12: =IF(G12=0,0,LOOKUP(G12,Data3!$A$4:$A$166,Data3!$V$4:$V$166)) -> 0 | O12: =LOOKUP(G12,Data3!$A$4:$A$166,Data3!$AE$4:$AE$166) -> 0 | P12: =LOOKUP(G12,Data3!A6:A168,Data3!N6:N168) -> 0 | Q12: =LOOKUP(G12,Data3!A6:A168,Data3!T6:T168) -> 0 | R12: 0 | S12: =LOOKUP(G12,Data3!A6:A168,Data3!P6:P168) -> 0 | T12: 0 | U12: 0 | V12: 0
A13: 39 | B13: 32.75 | C13: 37.92 | D13: 42.78324 | E13: 46.44022 | F13: 4 | G13: 2022-02-25 | H13: =IF('Initial Benefits'!$C$5=0,0,LOOKUP(G13,Data3!A7:A169)) -> 00:00:00 | I13: =IF('Initial Benefits'!$C$5=0,0,LOOKUP(G13,Data3!$A$4:$A$166,Data3!$O$4:$O$166)) -> 0 | J13: =IF('Initial Benefits'!$C$5=0,0,LOOKUP(G13,Data3!$A$4:$A$166,Data3!$U$4:$U$165)) -> 0 | K13: 0 | L13: 0 | M13: =IF('Initial Benefits'!$C$5=0,0,LOOKUP(G13,Data3!$A$4:$A$166,Data3!$Y$4:$Y$166)+L13) -> 0 | N13: =IF(G13=0,0,LOOKUP(G13,Data3!$A$4:$A$166,Data3!$V$4:$V$166)) -> 0 | O13: =LOOKUP(G13,Data3!$A$4:$A$166,Data3!$AE$4:$AE$166) -> 0 | P13: =LOOKUP(G13,Data3!A7:A169,Data3!N7:N169) -> 0 | Q13: =LOOKUP(G13,Data3!A7:A169,Data3!T7:T169) -> 0 | R13: 0 | S13: =LOOKUP(G13,Data3!A7:A169,Data3!P7:P169) -> 0 | T13: 0 | U13: 0 | V13: 0
A14: 40 | B14: 31.84 | C14: 36.99 | D14: 41.83908 | E14: 45.47352 | F14: 5 | G14: 2023-02-25 | H14: =IF('Initial Benefits'!$C$5=0,0,LOOKUP(G14,Data3!A8:A170)) -> 00:00:00 | I14: =IF('Initial Benefits'!$C$5=0,0,LOOKUP(G14,Data3!$A$4:$A$166,Data3!$O$4:$O$166)) -> 0 | J14: =IF('Initial Benefits'!$C$5=0,0,LOOKUP(G14,Data3!$A$4:$A$166,Data3!$U$4:$U$165)) -> 0 | K14: 0 | L14: 0 | M14: =IF('Initial Benefits'!$C$5=0,0,LOOKUP(G14,Data3!$A$4:$A$166,Data3!$Y$4:$Y$166)+L14) -> 0 | N14: =IF(G14=0,0,LOOKUP(G14,Data3!$A$4:$A$166,Data3!$V$4:$V$166)) -> 0 | O14: =LOOKUP(G14,Data3!$A$4:$A$166,Data3!$AE$4:$AE$166) -> 0 | P14: =LOOKUP(G14,Data3!A8:A170,Data3!N8:N170) -> 0 | Q14: =LOOKUP(G14,Data3!A8:A170,Data3!T8:T170) -> 0 | R14: 0 | S14: =LOOKUP(G14,Data3!A8:A170,Data3!P8:P170) -> 0 | T14: 0 | U14: 0 | V14: 0
A15: 41 | B15: 30.93 | C15: 36.06 | D15: 40.89787 | E15: 44.50897 | F15: 6 | G15: 2024-02-25 | H15: =IF('Initial Benefits'!$C$5=0,0,LOOKUP(G15,Data3!A9:A171)) -> 00:00:00 | I15: =IF('Initial Benefits'!$C$5=0,0,LOOKUP(G15,Data3!$A$4:$A$166,Data3!$O$4:$O$166)) -> 0 | J15: =IF('Initial Benefits'!$C$5=0,0,LOOKUP(G15,Data3!$A$4:$A$166,Data3!$U$4:$U$165)) -> 0 | K15: 0 | L15: 0 | M15: =IF('Initial Benefits'!$C$5=0,0,LOOKUP(G15,Data3!$A$4:$A$166,Data3!$Y$4:$Y$166)+L15) -> 0 | N15: =IF(G15=0,0,LOOKUP(G15,Data3!$A$4:$A$166,Data3!$V$4:$V$166)) -> 0 | O15: =LOOKUP(G15,Data3!$A$4:$A$166,Data3!$AE$4:$AE$166) -> 0 | P15: =LOOKUP(G15,Data3!A9:A171,Data3!N9:N171) -> 0 | Q15: =LOOKUP(G15,Data3!A9:A171,Data3!T9:T171) -> 0 | R15: 0 | S15: =LOOKUP(G15,Data3!A9:A171,Data3!P9:P171) -> 0 | T15: 0 | U15: 0 | V15: 0
A16: 42 | B16: 30.03 | C16: 35.13 | D16: 39.96003 | E16: 43.5468 | F16: 7 | G16: 2025-02-25 | H16: =IF('Initial Benefits'!$C$5=0,0,LOOKUP(G16,Data3!A10:A172)) -> 00:00:00 | I16: =IF('Initial Benefits'!$C$5=0,0,LOOKUP(G16,Data3!$A$4:$A$166,Data3!$O$4:$O$166)) -> 0 | J16: =IF('Initial Benefits'!$C$5=0,0,LOOKUP(G16,Data3!$A$4:$A$166,Data3!$U$4:$U$165)) -> 0 | K16: 0 | L16: 0 | M16: =IF('Initial Benefits'!$C$5=0,0,LOOKUP(G16,Data3!$A$4:$A$166,Data3!$Y$4:$Y$166)+L16) -> 0 | N16: =IF(G16=0,0,LOOKUP(G16,Data3!$A$4:$A$166,Data3!$V$4:$V$166)) -> 0 | O16: =LOOKUP(G16,Data3!$A$4:$A$166,Data3!$AE$4:$AE$166) -> 0 | P16: =LOOKUP(G16,Data3!A10:A172,Data3!N10:N172) -> 0 | Q16: =LOOKUP(G16,Data3!A10:A172,Data3!T10:T172) -> 0 | R16: 0 | S16: =LOOKUP(G16,Data3!A10:A172,Data3!P10:P172) -> 0 | T16: 0 | U16: 0 | V16: 0
A17: 43 | B17: 29.14 | C17: 34.21 | D17: 39.02563 | E17: 42.58735 | F17: 8 | G17: 2026-02-25 | H17: =IF('Initial Benefits'!$C$5=0,0,LOOKUP(G17,Data3!A11:A173)) -> 00:00:00 | I17: =IF('Initial Benefits'!$C$5=0,0,LOOKUP(G17,Data3!$A$4:$A$166,Data3!$O$4:$O$166)) -> 0 | J17: =IF('Initial Benefits'!$C$5=0,0,LOOKUP(G17,Data3!$A$4:$A$166,Data3!$U$4:$U$165)) -> 0 | K17: 0 | L17: 0 | M17: =IF('Initial Benefits'!$C$5=0,0,LOOKUP(G17,Data3!$A$4:$A$166,Data3!$Y$4:$Y$166)+L17) -> 0 | N17: =IF(G17=0,0,LOOKUP(G17,Data3!$A$4:$A$166,Data3!$V$4:$V$166)) -> 0 | O17: =LOOKUP(G17,Data3!$A$4:$A$166,Data3!$AE$4:$AE$166) -> 0 | P17: =LOOKUP(G17,Data3!A11:A173,Data3!N11:N173) -> 0 | Q17: =LOOKUP(G17,Data3!A11:A173,Data3!T11:T173) -> 0 | R17: 0 | S17: =LOOKUP(G17,Data3!A11:A173,Data3!P11:P173) -> 0 | T17: 0 | U17: 0 | V17: 0
A18: 44 | B18: 28.25 | C18: 33.29 | D18: 38.09452 | E18: 41.63078 | F18: 9 | G18: 2027-02-25 | H18: =IF('Initial Benefits'!$C$5=0,0,LOOKUP(G18,Data3!A12:A174)) -> 00:00:00 | I18: =IF('Initial Benefits'!$C$5=0,0,LOOKUP(G18,Data3!$A$4:$A$166,Data3!$O$4:$O$166)) -> 0 | J18: =IF('Initial Benefits'!$C$5=0,0,LOOKUP(G18,Data3!$A$4:$A$166,Data3!$U$4:$U$165)) -> 0 | K18: 0 | L18: 0 | M18: =IF('Initial Benefits'!$C$5=0,0,LOOKUP(G18,Data3!$A$4:$A$166,Data3!$Y$4:$Y$166)+L18) -> 0 | N18: =IF(G18=0,0,LOOKUP(G18,Data3!$A$4:$A$166,Data3!$V$4:$V$166)) -> 0 | O18: =LOOKUP(G18,Data3!$A$4:$A$166,Data3!$AE$4:$AE$166) -> 0 | P18: =LOOKUP(G18,Data3!A12:A174,Data3!N12:N174) -> 0 | Q18: =LOOKUP(G18,Data3!A12:A174,Data3!T12:T174) -> 0 | R18: 0 | S18: =LOOKUP(G18,Data3!A12:A174,Data3!P12:P174) -> 0 | T18: 0 | U18: 0 | V18: 0
A19: 45 | B19: 27.38 | C19: 32.38 | D19: 37.16683 | E19: 40.67712 | F19: 10 | G19: 2028-02-25 | H19: =IF('Initial Benefits'!$C$5=0,0,LOOKUP(G19,Data3!A13:A175)) -> 00:00:00 | I19: =IF('Initial Benefits'!$C$5=0,0,LOOKUP(G19,Data3!$A$4:$A$166,Data3!$O$4:$O$166)) -> 0 | J19: =IF('Initial Benefits'!$C$5=0,0,LOOKUP(G19,Data3!$A$4:$A$166,Data3!$U$4:$U$165)) -> 0 | K19: 0 | L19: 0 | M19: =IF('Initial Benefits'!$C$5=0,0,LOOKUP(G19,Data3!$A$4:$A$166,Data3!$Y$4:$Y$166)+L19) -> 0 | N19: =IF(G19=0,0,LOOKUP(G19,Data3!$A$4:$A$166,Data3!$V$4:$V$166)) -> 0 | O19: =LOOKUP(G19,Data3!$A$4:$A$166,Data3!$AE$4:$AE$166) -> 0 | P19: =LOOKUP(G19,Data3!A13:A175,Data3!N13:N175) -> 0 | Q19: =LOOKUP(G19,Data3!A13:A175,Data3!T13:T175) -> 0 | R19: 0 | S19: =LOOKUP(G19,Data3!A13:A175,Data3!P13:P175) -> 0 | T19: 0 | U19: 0 | V19: 0
A20: 46 | B20: 26.51 | C20: 31.48 | D20: 36.24269 | E20: 39.72614 | F20: 11 | G20: 2029-02-25 | H20: =IF('Initial Benefits'!$C$5=0,0,LOOKUP(G20,Data3!A14:A176)) -> 00:00:00 | I20: =IF('Initial Benefits'!$C$5=0,0,LOOKUP(G20,Data3!$A$4:$A$166,Data3!$O$4:$O$166)) -> 0 | J20: =IF('Initial Benefits'!$C$5=0,0,LOOKUP(G20,Data3!$A$4:$A$166,Data3!$U$4:$U$165)) -> 0 | K20: 0 | L20: 0 | M20: =IF('Initial Benefits'!$C$5=0,0,LOOKUP(G20,Data3!$A$4:$A$166,Data3!$Y$4:$Y$166)+L20) -> 0 | N20: =IF(G20=0,0,LOOKUP(G20,Data3!$A$4:$A$166,Data3!$V$4:$V$166)) -> 0 | O20: =LOOKUP(G20,Data3!$A$4:$A$166,Data3!$AE$4:$AE$166) -> 0 | P20: =LOOKUP(G20,Data3!A14:A176,Data3!N14:N176) -> 0 | Q20: =LOOKUP(G20,Data3!A14:A176,Data3!T14:T176) -> 0 | R20: 0 | S20: =LOOKUP(G20,Data3!A14:A176,Data3!P14:P176) -> 0 | T20: 0 | U20: 0 | V20: 0
A21: 47 | B21: 25.65 | C21: 30.58 | D21: 35.3224 | E21: 38.77781 | F21: 12 | G21: 2030-02-25 | H21: =IF('Initial Benefits'!$C$5=0,0,LOOKUP(G21,Data3!A15:A177)) -> 00:00:00 | I21: =IF('Initial Benefits'!$C$5=0,0,LOOKUP(G21,Data3!$A$4:$A$166,Data3!$O$4:$O$166)) -> 0 | J21: =IF('Initial Benefits'!$C$5=0,0,LOOKUP(G21,Data3!$A$4:$A$166,Data3!$U$4:$U$165)) -> 0 | K21: 0 | L21: 0 | M21: =IF('Initial Benefits'!$C$5=0,0,LOOKUP(G21,Data3!$A$4:$A$166,Data3!$Y$4:$Y$166)+L21) -> 0 | N21: =IF(G21=0,0,LOOKUP(G21,Data3!$A$4:$A$166,Data3!$V$4:$V$166)) -> 0 | O21: =LOOKUP(G21,Data3!$A$4:$A$166,Data3!$AE$4:$AE$166) -> 0 | P21: =LOOKUP(G21,Data3!A15:A177,Data3!N15:N177) -> 0 | Q21: =LOOKUP(G21,Data3!A15:A177,Data3!T15:T177) -> 0 | R21: 0 | S21: =LOOKUP(G21,Data3!A15:A177,Data3!P15:P177) -> 0 | T21: 0 | U21: 0 | V21: 0
A22: 48 | B22: 24.8 | C22: 29.69 | D22: 34.40626 | E22: 37.83245 | F22: 13 | G22: 2031-02-25 | H22: =IF('Initial Benefits'!$C$5=0,0,LOOKUP(G22,Data3!A16:A178)) -> 00:00:00 | I22: =IF('Initial Benefits'!$C$5=0,0,LOOKUP(G22,Data3!$A$4:$A$166,Data3!$O$4:$O$166)) -> 0 | J22: =IF('Initial Benefits'!$C$5=0,0,LOOKUP(G22,Data3!$A$4:$A$166,Data3!$U$4:$U$165)) -> 0 | K22: 0 | L22: 0 | M22: =IF('Initial Benefits'!$C$5=0,0,LOOKUP(G22,Data3!$A$4:$A$166,Data3!$Y$4:$Y$166)+L22) -> 0 | N22: =IF(G22=0,0,LOOKUP(G22,Data3!$A$4:$A$166,Data3!$V$4:$V$166)) -> 0 | O22: =LOOKUP(G22,Data3!$A$4:$A$166,Data3!$AE$4:$AE$166) -> 0 | P22: =LOOKUP(G22,Data3!A16:A178,Data3!N16:N178) -> 0 | Q22: =LOOKUP(G22,Data3!A16:A178,Data3!T16:T178) -> 0 | R22: 0 | S22: =LOOKUP(G22,Data3!A16:A178,Data3!P16:P178) -> 0 | T22: 0 | U22: 0 | V22: 0
A23: 49 | B23: 23.96 | C23: 28.8 | D23: 33.49409 | E23: 36.89052 | F23: 14 | G23: 2032-02-25 | H23: =IF('Initial Benefits'!$C$5=0,0,LOOKUP(G23,Data3!A17:A179)) -> 00:00:00 | I23: =IF('Initial Benefits'!$C$5=0,0,LOOKUP(G23,Data3!$A$4:$A$166,Data3!$O$4:$O$166)) -> 0 | J23: =IF('Initial Benefits'!$C$5=0,0,LOOKUP(G23,Data3!$A$4:$A$166,Data3!$U$4:$U$165)) -> 0 | K23: 0 | L23: 0 | M23: =IF('Initial Benefits'!$C$5=0,0,LOOKUP(G23,Data3!$A$4:$A$166,Data3!$Y$4:$Y$166)+L23) -> 0 | N23: =IF(G23=0,0,LOOKUP(G23,Data3!$A$4:$A$166,Data3!$V$4:$V$166)) -> 0 | O23: =LOOKUP(G23,Data3!$A$4:$A$166,Data3!$AE$4:$AE$166) -> 0 | P23: =LOOKUP(G23,Data3!A17:A179,Data3!N17:N179) -> 0 | Q23: =LOOKUP(G23,Data3!A17:A179,Data3!T17:T179) -> 0 | R23: 0 | S23: =LOOKUP(G23,Data3!A17:A179,Data3!P17:P179) -> 0 | T23: 0 | U23: 0 | V23: 0
A24: 50 | B24: 23.13 | C24: 27.92 | D24: 32.58578 | E24: 35.95214 | F24: 15 | G24: 2033-02-25 | H24: =IF('Initial Benefits'!$C$5=0,0,LOOKUP(G24,Data3!A18:A180)) -> 00:00:00 | I24: =IF('Initial Benefits'!$C$5=0,0,LOOKUP(G24,Data3!$A$4:$A$166,Data3!$O$4:$O$166)) -> 0 | J24: =IF('Initial Benefits'!$C$5=0,0,LOOKUP(G24,Data3!$A$4:$A$166,Data3!$U$4:$U$165)) -> 0 | K24: 0 | L24: 0 | M24: =IF('Initial Benefits'!$C$5=0,0,LOOKUP(G24,Data3!$A$4:$A$166,Data3!$Y$4:$Y$166)+L24) -> 0 | N24: =IF(G24=0,0,LOOKUP(G24,Data3!$A$4:$A$166,Data3!$V$4:$V$166)) -> 0 | O24: =LOOKUP(G24,Data3!$A$4:$A$166,Data3!$AE$4:$AE$166) -> 0 | P24: =LOOKUP(G24,Data3!A18:A180,Data3!N18:N180) -> 0 | Q24: =LOOKUP(G24,Data3!A18:A180,Data3!T18:T180) -> 0 | R24: 0 | S24: =LOOKUP(G24,Data3!A18:A180,Data3!P18:P180) -> 0 | T24: 0 | U24: 0 | V24: 0
A25: 51 | B25: 22.31 | C25: 27.05 | D25: 31.68152 | E25: 35.01754 | F25: 16 | G25: 2034-02-25 | H25: =IF('Initial Benefits'!$C$5=0,0,LOOKUP(G25,Data3!A19:A181)) -> 00:00:00 | I25: =IF('Initial Benefits'!$C$5=0,0,LOOKUP(G25,Data3!$A$4:$A$166,Data3!$O$4:$O$166)) -> 0 | J25: =IF('Initial Benefits'!$C$5=0,0,LOOKUP(G25,Data3!$A$4:$A$166,Data3!$U$4:$U$165)) -> 0 | K25: 0 | L25: 0 | M25: =IF('Initial Benefits'!$C$5=0,0,LOOKUP(G25,Data3!$A$4:$A$166,Data3!$Y$4:$Y$166)+L25) -> 0 | N25: =IF(G25=0,0,LOOKUP(G25,Data3!$A$4:$A$166,Data3!$V$4:$V$166)) -> 0 | O25: =LOOKUP(G25,Data3!$A$4:$A$166,Data3!$AE$4:$AE$166) -> 0 | P25: =LOOKUP(G25,Data3!A19:A181,Data3!N19:N181) -> 0 | Q25: =LOOKUP(G25,Data3!A19:A181,Data3!T19:T181) -> 0 | R25: 0 | S25: =LOOKUP(G25,Data3!A19:A181,Data3!P19:P181) -> 0 | T25: 0 | U25: 0 | V25: 0
A26: 52 | B26: 21.51 | C26: 26.18 | D26: 30.78185 | E26: 34.08682 | F26: 17 | G26: 2035-02-25 | H26: =IF('Initial Benefits'!$C$5=0,0,LOOKUP(G26,Data3!A20:A182)) -> 00:00:00 | I26: =IF('Initial Benefits'!$C$5=0,0,LOOKUP(G26,Data3!$A$4:$A$166,Data3!$O$4:$O$166)) -> 0 | J26: =IF('Initial Benefits'!$C$5=0,0,LOOKUP(G26,Data3!$A$4:$A$166,Data3!$U$4:$U$165)) -> 0 | K26: 0 | L26: 0 | M26: =IF('Initial Benefits'!$C$5=0,0,LOOKUP(G26,Data3!$A$4:$A$166,Data3!$Y$4:$Y$166)+L26) -> 0 | N26: =IF(G26=0,0,LOOKUP(G26,Data3!$A$4:$A$166,Data3!$V$4:$V$166)) -> 0 | O26: =LOOKUP(G26,Data3!$A$4:$A$166,Data3!$AE$4:$AE$166) -> 0 | P26: =LOOKUP(G26,Data3!A20:A182,Data3!N20:N182) -> 0 | Q26: =LOOKUP(G26,Data3!A20:A182,Data3!T20:T182) -> 0 | R26: 0 | S26: =LOOKUP(G26,Data3!A20:A182,Data3!P20:P182) -> 0 | T26: 0 | U26: 0 | V26: 0
A27: 53 | B27: 20.72 | C27: 25.32 | D27: 29.88733 | E27: 33.15984 | F27: 18 | G27: 2036-02-25 | H27: =IF('Initial Benefits'!$C$5=0,0,LOOKUP(G27,Data3!A21:A183)) -> 00:00:00 | I27: =IF('Initial Benefits'!$C$5=0,0,LOOKUP(G27,Data3!$A$4:$A$166,Data3!$O$4:$O$166)) -> 0 | J27: =IF('Initial Benefits'!$C$5=0,0,LOOKUP(G27,Data3!$A$4:$A$166,Data3!$U$4:$U$165)) -> 0 | K27: =I27-J27 -> 0 | L27: =K27*(G27-H27)/14 -> 0 | M27: =IF('Initial Benefits'!$C$5=0,0,LOOKUP(G27,Data3!$A$4:$A$166,Data3!$Y$4:$Y$166)+L27) -> 0 | N27: =IF(G27=0,0,LOOKUP(G27,Data3!$A$4:$A$166,Data3!$V$4:$V$166)) -> 0 | O27: =LOOKUP(G27,Data3!$A$4:$A$166,Data3!$AE$4:$AE$166) -> 0 | P27: =LOOKUP(G27,Data3!A21:A183,Data3!N21:N183) -> 0 | Q27: =LOOKUP(G27,Data3!A21:A183,Data3!T21:T183) -> 0 | R27: 0 | S27: =LOOKUP(G27,Data3!A21:A183,Data3!P21:P183) -> 0 | T27: 0 | U27: 0 | V27: 0
A28: 54 | B28: 19.94 | C28: 24.47 | D28: 28.99879 | E28: 32.2365 | F28: 19 | G28: 2037-02-25 | H28: =IF('Initial Benefits'!$C$5=0,0,LOOKUP(G28,Data3!A22:A184)) -> 00:00:00 | I28: =IF('Initial Benefits'!$C$5=0,0,LOOKUP(G28,Data3!$A$4:$A$166,Data3!$O$4:$O$166)) -> 0 | J28: =IF('Initial Benefits'!$C$5=0,0,LOOKUP(G28,Data3!$A$4:$A$166,Data3!$U$4:$U$165)) -> 0 | K28: 0 | L28: 0 | M28: =IF('Initial Benefits'!$C$5=0,0,LOOKUP(G28,Data3!$A$4:$A$166,Data3!$Y$4:$Y$166)+L28) -> 0 | N28: =IF(G28=0,0,LOOKUP(G28,Data3!$A$4:$A$166,Data3!$V$4:$V$166)) -> 0 | O28: =LOOKUP(G28,Data3!$A$4:$A$166,Data3!$AE$4:$AE$166) -> 0 | P28: =LOOKUP(G28,Data3!A22:A184,Data3!N22:N184) -> 0 | Q28: =LOOKUP(G28,Data3!A22:A184,Data3!T22:T184) -> 0 | R28: 0 | S28: =LOOKUP(G28,Data3!A22:A184,Data3!P22:P184) -> 0 | T28: 0 | U28: 0 | V28: 0
A29: 55 | B29: 19.18 | C29: 23.63 | D29: 28.1166 | E29: 31.3168 | F29: 20 | G29: 2038-02-25 | H29: =IF('Initial Benefits'!$C$5=0,0,LOOKUP(G29,Data3!A23:A185)) -> 00:00:00 | I29: =IF('Initial Benefits'!$C$5=0,0,LOOKUP(G29,Data3!$A$4:$A$166,Data3!$O$4:$O$166)) -> 0 | J29: =IF('Initial Benefits'!$C$5=0,0,LOOKUP(G29,Data3!$A$4:$A$166,Data3!$U$4:$U$165)) -> 0 | K29: 0 | L29: 0 | M29: =IF('Initial Benefits'!$C$5=0,0,LOOKUP(G29,Data3!$A$4:$A$166,Data3!$Y$4:$Y$166)+L29) -> 0 | N29: =IF(G29=0,0,LOOKUP(G29,Data3!$A$4:$A$166,Data3!$V$4:$V$166)) -> 0 | O29: =LOOKUP(G29,Data3!$A$4:$A$166,Data3!$AE$4:$AE$166) -> 0 | P29: =LOOKUP(G29,Data3!A23:A185,Data3!N23:N185) -> 0 | Q29: =LOOKUP(G29,Data3!A23:A185,Data3!T23:T185) -> 0 | R29: 0 | S29: =LOOKUP(G29,Data3!A23:A185,Data3!P23:P185) -> 0 | T29: 0 | U29: 0 | V29: 0
A30: 56 | B30: 18.43 | C30: 22.79 | D30: 27.24079 | E30: 30.40072
A31: 57 | B31: 17.7 | C31: 21.96 | D31: 26.3713 | E31: 29.48836 | G31: ='Initial Benefits'!C6 -> 00:00:00 | H31: =IF(G31=0,0,LOOKUP(G31,G32:G54,H32:H54)) -> 0 | I31: ='Initial Benefits'!C9 -> 0 | J31: =IF('Initial Benefits'!C23=0,0,I31/'Initial Benefits'!C23) -> 0
A32: 58 | B32: 16.99 | C32: 21.13 | D32: 25.50834 | E32: 28.58 | G32: 1972-10-01 | H32: 4 | I32: =IF('Initial Benefits'!C7=0,0,'Initial Benefits'!C11/'Initial Benefits'!C7) -> 0 | J32: =IF(G31=0,0,LOOKUP(G31,G32:G55,H32:H55)) -> 0
A33: 59 | B33: 16.29 | C33: 20.32 | D33: 24.65234 | E33: 27.67607 | G33: 1983-07-01 | H33: 4.05
A34: 60 | B34: 15.6 | C34: 19.51 | D34: 23.80358 | E34: 26.77643 | G34: 1983-07-01 | H34: 4.05
A35: 61 | B35: 14.94 | C35: 18.72 | D35: 22.9622 | E35: 25.88095 | G35: =DATE(YEAR(G34)+1,7,1) -> 1984-07-01 | H35: =H34+0.05 -> 4.1
A36: 62 | B36: 14.29 | C36: 17.94 | D36: 22.12787 | E36: 24.98927 | G36: =DATE(YEAR(G35)+1,7,1) -> 1985-07-01 | H36: =H35+0.05 -> 4.15
A37: 63 | B37: 13.67 | C37: 17.17 | D37: 21.30059 | E37: 24.10177 | G37: 1986-07-01 | H37: 4.2
A38: 64 | B38: 13.06 | C38: 16.42 | D38: 20.48039 | E38: 23.21892 | G38: 1987-07-01 | H38: 4.25
A39: 65 | B39: 12.47 | C39: 15.68 | D39: 19.66779 | E39: 22.34173 | G39: 1988-07-01 | H39: 4.3
A40: 66 | D40: 18.8632 | E40: 21.47142 | G40: 1989-07-01 | H40: 4.35
A41: 67 | D41: 18.06721 | E41: 20.60929 | G41: 1990-07-01 | H41: 4.4
A42: 68 | D42: 17.28055 | E42: 19.75618 | G42: 1991-07-01 | H42: 4.45
A43: 69 | D43: 16.50433 | E43: 18.9123 | G43: 1992-07-01 | H43: 4.5
A44: 70 | D44: 15.7396 | E44: 18.07779 | G44: 1993-07-01 | H44: 4.55
A45: 71 | D45: 14.9876 | E45: 17.25317 | G45: 1994-07-01 | H45: 4.6
A46: 72 | D46: 14.24939 | E46: 16.43902 | G46: 1995-07-01 | H46: 4.65
A47: 73 | D47: 13.52578 | E47: 15.63619 | G47: 1996-07-01 | H47: 4.7
A48: 74 | D48: 12.81737 | E48: 14.84582 | G48: 1997-07-01 | H48: 4.75
A49: 75 | D49: 12.12394 | E49: 14.06863 | G49: 1998-07-01 | H49: 4.8
A50: 76 | D50: 11.44612 | E50: 13.3055 | G50: 1999-07-01 | H50: 4.85
A51: 77 | D51: 10.78512 | E51: 12.55744 | G51: 2000-07-01 | H51: 4.9
A52: 78 | D52: 10.14227 | E52: 11.82578 | G52: 2001-07-01 | H52: 4.95
A53: 79 | D53: 9.51846 | E53: 11.11204 | G53: 2002-07-01 | H53: 5
A54: 80 | D54: 8.91514 | E54: 10.41747 | G54: 2003-07-01 | H54: 5
G55: 2067-07-01 | H55: 5

Sheet Data3 (hidden)
A1: date_from | B1: date_to | E1: Start | G1: part_year | H1: Pro Rata | I1: 55 Plus | J1: Under 55 | K1: Age | L1: Rate | N1: Full | P1: Reduced | S1: Increase | T1: Partial | V1: Loss (p/a) | W1: Total Full | X1: Total Partial | Y1: Total Loss | Z1: Notional | AA1: =N2*4 -> 0 | AB1: =N2 -> 0 | AC1: Spouse Full | AD1: Spouse Partial | AE1: Spouse Loss
N2: ='Initial Benefits'!C7 -> 0 | O2: fortnightly | P2: ='Initial Benefits'!C12 -> 0 | Q2: fortnightly | T2: Per Annum | U2: fortnightly | Z2: =IF('Initial Benefits'!C23=0,0,ROUND(AA1/'Initial Benefits'!C23,2)) -> 0 | AA2: Increase
E3: FALSE | L3: 0 | N3: =ROUND(N2*(1+L3),2) -> 0 | O3: =N3/365*14 -> 0 | P3: =Q3/14*365 -> 0 | Q3: =P2/365*14 -> 0 | R3: =P3 -> 0 | T3: =N3 -> 0 | U3: =T3/365*14 -> 0 | W3: 0 | X3: 0 | Y3: 0 | Z3: =N2-Z2 -> 0 | AC3: =N3*0.625 -> 0 | AD3: =AB3*0.625 -> 0 | AE3: =AC3-AD3 -> 0
A4: 1973-07-05 | B4: 1974-07-03 | C4: =A4>'Initial Benefits'!$C$6 -> TRUE | D4: =B4>'Initial Benefits'!$C$6 -> TRUE | E4: =AND(D4,NOT(C4)) -> FALSE | F4: =IF(E4=TRUE,'Initial Benefits'!$C$6-Data3!A4+1,0) -> 0 | G4: =IF(C4=FALSE,0,B4-A4+1)+F4 -> 364 | H4: =IF($Q$3=0,0,IF(E3=TRUE,(Q4-$Q$3)/$Q$3)) -> 0 | I4: 0 | J4: 0 | K4: =INT((A4-'Initial Benefits'!$C$5)/365.25) -> 73 | L4: =IF(E3=FALSE,IF(C4=FALSE,0,IF(K4<55,J4,I4)),H4) -> 0 | N4: 0 | O4: =N4/365*14 -> 0 | P4: 0 | Q4: =IF(C4=FALSE,Q3,Q5/(1+L5)) -> 0 | R4: =ROUND(R3*(1+L4),2) -> 0 | S4: =P4-P3 -> 0 | T4: =T3+S4 -> 0 | U4: =T4/365*14 -> 0 | V4: =N4-T4 -> 0 | W4: =W3+O4*G4/14 -> 0 | X4: =X3+U4*G4/14 -> 0 | Y4: =W4-X4 -> 0 | Z4: =ROUND(Z3*(1+L4),2) -> 0 | AA4: =Z4-Z3 -> 0 | AB4: =AB1+AA4 -> 0 | AC4: =N4*0.625 -> 0 | AD4: =AB4*0.625 -> 0 | AE4: =AC4-AD4 -> 0
A5: 1974-07-04 | B5: 1975-07-02 | C5: =A5>'Initial Benefits'!$C$6 -> TRUE | D5: =B5>'Initial Benefits'!$C$6 -> TRUE | E5: =AND(D5,NOT(C5)) -> FALSE | F5: =IF(E5=TRUE,'Initial Benefits'!$C$6-Data3!A5+1,0) -> 0 | G5: =IF(C5=FALSE,0,B5-A5+1)+F5 -> 364 | H5: 0 | I5: 0.116 | J5: 0.116 | K5: =INT((A5-'Initial Benefits'!$C$5)/365.25) -> 74 | L5: 0.116 | N5: 0 | O5: 0 | P5: 0 | Q5: 0 | R5: =ROUND(R4*(1+L5),2) -> 0 | S5: =P5-P4 -> 0 | T5: =T4+S5 -> 0 | U5: 0 | V5: =N5-T5 -> 0 | W5: =W4+O5*G5/14 -> 0 | X5: =X4+U5*G5/14 -> 0 | Y5: =W5-X5 -> 0 | Z5: =ROUND(Z4*(1+L5),2) -> 0 | AA5: =Z5-Z4 -> 0 | AB5: =AB4+AA5 -> 0 | AC5: 0 | AD5: 0 | AE5: 0
A6: 1975-07-03 | B6: 1976-06-30 | C6: =A6>'Initial Benefits'!$C$6 -> TRUE | D6: =B6>'Initial Benefits'!$C$6 -> TRUE | E6: FALSE | F6: =IF(E6=TRUE,'Initial Benefits'!$C$6-Data3!A6+1,0) -> 0 | G6: 364 | H6: 0 | I6: 0.176 | J6: 0.176 | K6: =INT((A6-'Initial Benefits'!$C$5)/365.25) -> 75 | L6: 0.176 | N6: 0 | O6: 0 | P6: 0 | Q6: 0 | R6: 0 | S6: 0 | T6: 0 | U6: 0 | V6: 0 | W6: 0 | X6: 0 | Y6: 0 | Z6: 0 | AA6: 0 | AB6: =AB5+AA6 -> 0 | AC6: 0 | AD6: 0 | AE6: 0
A7: 1976-07-01 | B7: 1977-06-30 | C7: =A7>'Initial Benefits'!$C$6 -> TRUE | D7: =B7>'Initial Benefits'!$C$6 -> TRUE | E7: FALSE | F7: =IF(E7=TRUE,'Initial Benefits'!$C$6-Data3!A7+1,0) -> 0 | G7: 365 | H7: 0 | I7: 0.134 | J7: 0.134 | K7: =INT((A7-'Initial Benefits'!$C$5)/365.25) -> 76 | L7: 0.134 | N7: 0 | O7: 0 | P7: 0 | Q7: 0 | R7: 0 | S7: 0 | T7: 0 | U7: 0 | V7: 0 | W7: 0 | X7: 0 | Y7: 0 | Z7: 0 | AA7: 0 | AB7: 0 | AC7: 0 | AD7: 0 | AE7: 0
A8: 1977-06-30 | B8: 1978-06-28 | C8: =A8>'Initial Benefits'!$C$6 -> TRUE | D8: =B8>'Initial Benefits'!$C$6 -> TRUE | E8: FALSE | F8: =IF(E8=TRUE,'Initial Benefits'!$C$6-Data3!A8+1,0) -> 0 | G8: 364 | H8: 0 | I8: 0.136 | J8: 0.136 | K8: =INT((A8-'Initial Benefits'!$C$5)/365.25) -> 77 | L8: 0.136 | N8: 0 | O8: 0 | P8: 0 | Q8: 0 | R8: 0 | S8: 0 | T8: 0 | U8: 0 | V8: 0 | W8: 0 | X8: 0 | Y8: 0 | Z8: 0 | AA8: 0 | AB8: 0 | AC8: 0 | AD8: 0 | AE8: 0
A9: 1978-06-29 | B9: 1979-06-27 | C9: =A9>'Initial Benefits'!$C$6 -> TRUE | D9: =B9>'Initial Benefits'!$C$6 -> TRUE | E9: FALSE | F9: =IF(E9=TRUE,'Initial Benefits'!$C$6-Data3!A9+1,0) -> 0 | G9: 364 | H9: 0 | I9: 0.082 | J9: 0.082 | K9: =INT((A9-'Initial Benefits'!$C$5)/365.25) -> 78 | L9: 0.082 | N9: 0 | O9: 0 | P9: 0 | Q9: 0 | R9: 0 | S9: 0 | T9: 0 | U9: 0 | V9: 0 | W9: 0 | X9: 0 | Y9: 0 | Z9: 0 | AA9: 0 | AB9: 0 | AC9: 0 | AD9: 0 | AE9: 0
A10: 1979-06-28 | B10: 1980-06-25 | C10: =A10>'Initial Benefits'!$C$6 -> TRUE | D10: =B10>'Initial Benefits'!$C$6 -> TRUE | E10: FALSE | F10: =IF(E10=TRUE,'Initial Benefits'!$C$6-Data3!A10+1,0) -> 0 | G10: 364 | H10: 0 | I10: 0.082 | J10: 0.082 | K10: =INT((A10-'Initial Benefits'!$C$5)/365.25) -> 79 | L10: 0.082 | N10: 0 | O10: 0 | P10: 0 | Q10: 0 | R10: 0 | S10: 0 | T10: 0 | U10: 0 | V10: 0 | W10: 0 | X10: 0 | Y10: 0 | Z10: 0 | AA10: 0 | AB10: 0 | AC10: 0 | AD10: 0 | AE10: 0
A11: 1980-06-26 | B11: 1981-06-24 | C11: =A11>'Initial Benefits'!$C$6 -> TRUE | D11: =B11>'Initial Benefits'!$C$6 -> TRUE | E11: FALSE | F11: =IF(E11=TRUE,'Initial Benefits'!$C$6-Data3!A11+1,0) -> 0 | G11: 364 | H11: 0 | I11: 0.105 | J11: 0.105 | K11: =INT((A11-'Initial Benefits'!$C$5)/365.25) -> 80 | L11: 0.105 | N11: 0 | O11: 0 | P11: 0 | Q11: 0 | R11: 0 | S11: 0 | T11: 0 | U11: 0 | V11: 0 | W11: 0 | X11: 0 | Y11: 0 | Z11: 0 | AA11: 0 | AB11: 0 | AC11: 0 | AD11: 0 | AE11: 0
A12: 1981-06-25 | B12: 1982-06-23 | C12: =A12>'Initial Benefits'!$C$6 -> TRUE | D12: =B12>'Initial Benefits'!$C$6 -> TRUE | E12: FALSE | F12: =IF(E12=TRUE,'Initial Benefits'!$C$6-Data3!A12+1,0) -> 0 | G12: 364 | H12: 0 | I12: 0.094 | J12: 0.094 | K12: =INT((A12-'Initial Benefits'!$C$5)/365.25) -> 81 | L12: 0.094 | N12: 0 | O12: 0 | P12: 0 | Q12: 0 | R12: 0 | S12: 0 | T12: 0 | U12: 0 | V12: 0 | W12: 0 | X12: 0 | Y12: 0 | Z12: 0 | AA12: 0 | AB12: 0 | AC12: 0 | AD12: 0 | AE12: 0
A13: 1982-06-24 | B13: 1983-06-22 | C13: =A13>'Initial Benefits'!$C$6 -> TRUE | D13: =B13>'Initial Benefits'!$C$6 -> TRUE | E13: FALSE | F13: =IF(E13=TRUE,'Initial Benefits'!$C$6-Data3!A13+1,0) -> 0 | G13: 364 | H13: 0 | I13: 0.105 | J13: 0.105 | K13: =INT((A13-'Initial Benefits'!$C$5)/365.25) -> 82 | L13: 0.105 | N13: 0 | O13: 0 | P13: 0 | Q13: 0 | R13: 0 | S13: 0 | T13: 0 | U13: 0 | V13: 0 | W13: 0 | X13: 0 | Y13: 0 | Z13: 0 | AA13: 0 | AB13: 0 | AC13: 0 | AD13: 0 | AE13: 0
A14: 1983-06-23 | B14: 1984-06-20 | C14: =A14>'Initial Benefits'!$C$6 -> TRUE | D14: =B14>'Initial Benefits'!$C$6 -> TRUE | E14: FALSE | F14: =IF(E14=TRUE,'Initial Benefits'!$C$6-Data3!A14+1,0) -> 0 | G14: 364 | H14: =IF($Q$3=0,0,IF(E13=TRUE,(Q14-$Q$3)/$Q$3)) -> 0 | I14: 0.114 | J14: 0.114 | K14: =INT((A14-'Initial Benefits'!$C$5)/365.25) -> 83 | L14: =IF(E13=FALSE,IF(C14=FALSE,0,IF(K14<55,J14,I14)),H14) -> 0.114 | N14: 0 | O14: 0 | P14: 0 | Q14: 0 | R14: 0 | S14: 0 | T14: 0 | U14: 0 | V14: 0 | W14: 0 | X14: 0 | Y14: 0 | Z14: 0 | AA14: 0 | AB14: 0 | AC14: 0 | AD14: 0 | AE14: 0
A15: 1984-06-21 | B15: 1985-06-19 | C15: =A15>'Initial Benefits'!$C$6 -> TRUE | D15: =B15>'Initial Benefits'!$C$6 -> TRUE | E15: FALSE | F15: =IF(E15=TRUE,'Initial Benefits'!$C$6-Data3!A15+1,0) -> 0 | G15: 364 | H15: =IF($Q$3=0,0,IF(E14=TRUE,(Q15-$Q$3)/$Q$3)) -> 0 | I15: 0.059 | J15: 0.059 | K15: =INT((A15-'Initial Benefits'!$C$5)/365.25) -> 84 | L15: =IF(E14=FALSE,IF(C15=FALSE,0,IF(K15<55,J15,I15)),H15) -> 0.059 | N15: 0 | O15: 0 | P15: 0 | Q15: 0 | R15: 0 | S15: 0 | T15: 0 | U15: 0 | V15: 0 | W15: 0 | X15: 0 | Y15: 0 | Z15: 0 | AA15: 0 | AB15: 0 | AC15: 0 | AD15: 0 | AE15: 0
A16: 1985-06-20 | B16: 1986-06-18 | C16: =A16>'Initial Benefits'!$C$6 -> TRUE | D16: =B16>'Initial Benefits'!$C$6 -> TRUE | E16: FALSE | F16: =IF(E16=TRUE,'Initial Benefits'!$C$6-Data3!A16+1,0) -> 0 | G16: 364 | H16: 0 | I16: 0.044 | J16: 0.044 | K16: =INT((A16-'Initial Benefits'!$C$5)/365.25) -> 85 | L16: 0.044 | N16: 0 | O16: 0 | P16: 0 | Q16: 0 | R16: 0 | S16: 0 | T16: 0 | U16: 0 | V16: 0 | W16: 0 | X16: 0 | Y16: 0 | Z16: 0 | AA16: 0 | AB16: 0 | AC16: 0 | AD16: 0 | AE16: 0
A17: 1986-06-19 | B17: 1986-10-08 | C17: =A17>'Initial Benefits'!$C$6 -> TRUE | D17: =B17>'Initial Benefits'!$C$6 -> TRUE | E17: FALSE | F17: =IF(E17=TRUE,'Initial Benefits'!$C$6-Data3!A17+1,0) -> 0 | G17: 112 | H17: 0 | I17: 0.092 | J17: 0.092 | K17: =INT((A17-'Initial Benefits'!$C$5)/365.25) -> 86 | L17: 0.092 | N17: 0 | O17: 0 | P17: 0 | Q17: 0 | R17: 0 | S17: 0 | T17: 0 | U17: 0 | V17: 0 | W17: 0 | X17: 0 | Y17: 0 | Z17: 0 | AA17: 0 | AB17: 0 | AC17: 0 | AD17: 0 | AE17: 0
A18: 1986-10-09 | B18: 1987-06-17 | C18: =A18>'Initial Benefits'!$C$6 -> TRUE | D18: =B18>'Initial Benefits'!$C$6 -> TRUE | E18: FALSE | F18: =IF(E18=TRUE,'Initial Benefits'!$C$6-Data3!A18+1,0) -> 0 | G18: 252 | H18: 0 | I18: -0.01831502 | J18: -0.01831502 | K18: =INT((A18-'Initial Benefits'!$C$5)/365.25) -> 86 | L18: -0.01831502 | N18: 0 | O18: 0 | P18: 0 | Q18: 0 | R18: 0 | S18: 0 | T18: 0 | U18: 0 | V18: 0 | W18: 0 | X18: 0 | Y18: 0 | Z18: 0 | AA18: 0 | AB18: 0 | AC18: 0 | AD18: 0 | AE18: 0
A19: 1987-06-18 | B19: 1988-06-29 | C19: =A19>'Initial Benefits'!$C$6 -> TRUE | D19: =B19>'Initial Benefits'!$C$6 -> TRUE | E19: FALSE | F19: =IF(E19=TRUE,'Initial Benefits'!$C$6-Data3!A19+1,0) -> 0 | G19: 378 | H19: 0 | I19: 0.094 | J19: 0.094 | K19: =INT((A19-'Initial Benefits'!$C$5)/365.25) -> 87 | L19: 0.094 | N19: 0 | O19: 0 | P19: 0 | Q19: 0 | R19: 0 | S19: 0 | T19: 0 | U19: 0 | V19: 0 | W19: 0 | X19: 0 | Y19: 0 | Z19: 0 | AA19: 0 | AB19: 0 | AC19: 0 | AD19: 0 | AE19: 0
A20: 1988-06-30 | B20: 1989-06-28 | C20: =A20>'Initial Benefits'!$C$6 -> TRUE | D20: =B20>'Initial Benefits'!$C$6 -> TRUE | E20: FALSE | F20: =IF(E20=TRUE,'Initial Benefits'!$C$6-Data3!A20+1,0) -> 0 | G20: 364 | H20: 0 | I20: 0.069 | J20: 0.069 | K20: =INT((A20-'Initial Benefits'!$C$5)/365.25) -> 88 | L20: 0.069 | N20: 0 | O20: 0 | P20: 0 | Q20: 0 | R20: 0 | S20: 0 | T20: 0 | U20: 0 | V20: 0 | W20: 0 | X20: 0 | Y20: 0 | Z20: 0 | AA20: 0 | AB20: 0 | AC20: 0 | AD20: 0 | AE20: 0
A21: 1989-06-29 | B21: 1989-10-18 | C21: =A21>'Initial Benefits'!$C$6 -> TRUE | D21: =B21>'Initial Benefits'!$C$6 -> TRUE | E21: FALSE | F21: =IF(E21=TRUE,'Initial Benefits'!$C$6-Data3!A21+1,0) -> 0 | G21: 112 | H21: 0 | I21: 0.068 | J21: 0.068 | K21: =INT((A21-'Initial Benefits'!$C$5)/365.25) -> 89 | L21: 0.068 | N21: 0 | O21: 0 | P21: 0 | Q21: 0 | R21: 0 | S21: 0 | T21: 0 | U21: 0 | V21: 0 | W21: 0 | X21: 0 | Y21: 0 | Z21: 0 | AA21: 0 | AB21: 0 | AC21: 0 | AD21: 0 | AE21: 0
A22: 1989-10-19 | B22: 1990-06-27 | C22: =A22>'Initial Benefits'!$C$6 -> TRUE | D22: =B22>'Initial Benefits'!$C$6 -> TRUE | E22: FALSE | F22: =IF(E22=TRUE,'Initial Benefits'!$C$6-Data3!A22+1,0) -> 0 | G22: 252 | H22: 0 | I22: 0.01865672 | J22: 0.01865672 | K22: =INT((A22-'Initial Benefits'!$C$5)/365.25) -> 89 | L22: 0.01865672 | N22: 0 | O22: 0 | P22: 0 | Q22: 0 | R22: 0 | S22: 0 | T22: 0 | U22: 0 | V22: 0 | W22: 0 | X22: 0 | Y22: 0 | Z22: 0 | AA22: 0 | AB22: 0 | AC22: 0 | AD22: 0 | AE22: 0
A23: 1990-06-28 | B23: 1991-06-26 | C23: =A23>'Initial Benefits'!$C$6 -> TRUE | D23: =B23>'Initial Benefits'!$C$6 -> TRUE | E23: FALSE | F23: =IF(E23=TRUE,'Initial Benefits'!$C$6-Data3!A23+1,0) -> 0 | G23: 364 | H23: 0 | I23: 0.086 | J23: 0.086 | K23: =INT((A23-'Initial Benefits'!$C$5)/365.25) -> 90 | L23: 0.086 | N23: 0 | O23: 0 | P23: 0 | Q23: 0 | R23: 0 | S23: 0 | T23: 0 | U23: 0 | V23: 0 | W23: 0 | X23: 0 | Y23: 0 | Z23: 0 | AA23: 0 | AB23: 0 | AC23: 0 | AD23: 0 | AE23: 0
A24: 1991-06-27 | B24: 1992-06-24 | C24: =A24>'Initial Benefits'!$C$6 -> TRUE | D24: =B24>'Initial Benefits'!$C$6 -> TRUE | E24: FALSE | F24: =IF(E24=TRUE,'Initial Benefits'!$C$6-Data3!A24+1,0) -> 0 | G24: 364 | H24: 0 | I24: 0.049 | J24: 0.049 | K24: =INT((A24-'Initial Benefits'!$C$5)/365.25) -> 91 | L24: 0.049 | N24: 0 | O24: 0 | P24: 0 | Q24: 0 | R24: 0 | S24: 0 | T24: 0 | U24: 0 | V24: 0 | W24: 0 | X24: 0 | Y24: 0 | Z24: 0 | AA24: 0 | AB24: 0 | AC24: 0 | AD24: 0 | AE24: 0
A25: 1992-06-25 | B25: 1993-06-23 | C25: =A25>'Initial Benefits'!$C$6 -> TRUE | D25: =B25>'Initial Benefits'!$C$6 -> TRUE | E25: FALSE | F25: =IF(E25=TRUE,'Initial Benefits'!$C$6-Data3!A25+1,0) -> 0 | G25: 364 | H25: 0 | I25: 0.017 | J25: 0.017 | K25: =INT((A25-'Initial Benefits'!$C$5)/365.25) -> 92 | L25: 0.017 | N25: 0 | O25: 0 | P25: 0 | Q25: 0 | R25: 0 | S25: 0 | T25: 0 | U25: 0 | V25: 0 | W25: 0 | X25: 0 | Y25: 0 | Z25: 0 | AA25: 0 | AB25: 0 | AC25: 0 | AD25: 0 | AE25: 0
A26: 1993-06-24 | B26: 1994-06-22 | C26: =A26>'Initial Benefits'!$C$6 -> TRUE | D26: =B26>'Initial Benefits'!$C$6 -> TRUE | E26: FALSE | F26: =IF(E26=TRUE,'Initial Benefits'!$C$6-Data3!A26+1,0) -> 0 | G26: 364 | H26: 0 | I26: 0.012 | J26: 0.012 | K26: =INT((A26-'Initial Benefits'!$C$5)/365.25) -> 93 | L26: 0.012 | N26: 0 | O26: 0 | P26: 0 | Q26: 0 | R26: 0 | S26: 0 | T26: 0 | U26: 0 | V26: 0 | W26: 0 | X26: 0 | Y26: 0 | Z26: 0 | AA26: 0 | AB26: 0 | AC26: 0 | AD26: 0 | AE26: 0
A27: 1994-06-23 | B27: 1995-06-21 | C27: =A27>'Initial Benefits'!$C$6 -> TRUE | D27: =B27>'Initial Benefits'!$C$6 -> TRUE | E27: FALSE | F27: =IF(E27=TRUE,'Initial Benefits'!$C$6-Data3!A27+1,0) -> 0 | G27: 364 | H27: 0 | I27: 0.014 | J27: 0.014 | K27: =INT((A27-'Initial Benefits'!$C$5)/365.25) -> 94 | L27: 0.014 | N27: 0 | O27: 0 | P27: 0 | Q27: 0 | R27: 0 | S27: 0 | T27: 0 | U27: 0 | V27: 0 | W27: 0 | X27: 0 | Y27: 0 | Z27: 0 | AA27: 0 | AB27: 0 | AC27: 0 | AD27: 0 | AE27: 0
A28: 1995-06-22 | B28: 1996-06-19 | C28: =A28>'Initial Benefits'!$C$6 -> TRUE | D28: =B28>'Initial Benefits'!$C$6 -> TRUE | E28: FALSE | F28: =IF(E28=TRUE,'Initial Benefits'!$C$6-Data3!A28+1,0) -> 0 | G28: 364 | H28: 0 | I28: 0.039 | J28: 0.039 | K28: =INT((A28-'Initial Benefits'!$C$5)/365.25) -> 95 | L28: 0.039 | N28: 0 | O28: 0 | P28: 0 | Q28: 0 | R28: 0 | S28: 0 | T28: 0 | U28: 0 | V28: 0 | W28: 0 | X28: 0 | Y28: 0 | Z28: 0 | AA28: 0 | AB28: 0 | AC28: 0 | AD28: 0 | AE28: 0
A29: 1996-06-20 | B29: 1997-06-18 | C29: =A29>'Initial Benefits'!$C$6 -> TRUE | D29: =B29>'Initial Benefits'!$C$6 -> TRUE | E29: FALSE | F29: =IF(E29=TRUE,'Initial Benefits'!$C$6-Data3!A29+1,0) -> 0 | G29: 364 | H29: 0 | I29: 0.037 | J29: 0.037 | K29: =INT((A29-'Initial Benefits'!$C$5)/365.25) -> 96 | L29: 0.037 | N29: 0 | O29: 0 | P29: 0 | Q29: 0 | R29: 0 | S29: 0 | T29: 0 | U29: 0 | V29: 0 | W29: 0 | X29: 0 | Y29: 0 | Z29: 0 | AA29: 0 | AB29: 0 | AC29: 0 | AD29: 0 | AE29: 0
A30: 1997-06-19 | B30: 1998-06-17 | C30: =A30>'Initial Benefits'!$C$6 -> TRUE | D30: =B30>'Initial Benefits'!$C$6 -> TRUE | E30: FALSE | F30: =IF(E30=TRUE,'Initial Benefits'!$C$6-Data3!A30+1,0) -> 0 | G30: 364 | H30: 0 | I30: 0.013 | J30: 0.013 | K30: =INT((A30-'Initial Benefits'!$C$5)/365.25) -> 97 | L30: 0.013 | N30: 0 | O30: 0 | P30: 0 | Q30: 0 | R30: 0 | S30: 0 | T30: 0 | U30: 0 | V30: 0 | W30: 0 | X30: 0 | Y30: 0 | Z30: 0 | AA30: 0 | AB30: 0 | AC30: 0 | AD30: 0 | AE30: 0
A31: 1998-06-18 | B31: 1999-06-16 | C31: =A31>'Initial Benefits'!$C$6 -> TRUE | D31: =B31>'Initial Benefits'!$C$6 -> TRUE | E31: FALSE | F31: =IF(E31=TRUE,'Initial Benefits'!$C$6-Data3!A31+1,0) -> 0 | G31: 364 | H31: 0 | I31: 0 | J31: 0 | K31: =INT((A31-'Initial Benefits'!$C$5)/365.25) -> 98 | L31: 0 | N31: 0 | O31: 0 | P31: 0 | Q31: 0 | R31: 0 | S31: 0 | T31: 0 | U31: 0 | V31: 0 | W31: 0 | X31: 0 | Y31: 0 | Z31: 0 | AA31: 0 | AB31: 0 | AC31: 0 | AD31: 0 | AE31: 0
A32: 1999-06-17 | B32: 2000-06-28 | C32: =A32>'Initial Benefits'!$C$6 -> TRUE | D32: =B32>'Initial Benefits'!$C$6 -> TRUE | E32: FALSE | F32: =IF(E32=TRUE,'Initial Benefits'!$C$6-Data3!A32+1,0) -> 0 | G32: 378 | H32: 0 | I32: 0.011 | J32: 0.011 | K32: =INT((A32-'Initial Benefits'!$C$5)/365.25) -> 99 | L32: 0.011 | N32: 0 | O32: 0 | P32: 0 | Q32: 0 | R32: 0 | S32: 0 | T32: 0 | U32: 0 | V32: 0 | W32: 0 | X32: 0 | Y32: 0 | Z32: 0 | AA32: 0 | AB32: 0 | AC32: 0 | AD32: 0 | AE32: 0
A33: 2000-06-29 | B33: 2001-06-27 | C33: =A33>'Initial Benefits'!$C$6 -> TRUE | D33: =B33>'Initial Benefits'!$C$6 -> TRUE | E33: FALSE | F33: =IF(E33=TRUE,'Initial Benefits'!$C$6-Data3!A33+1,0) -> 0 | G33: 364 | H33: 0 | I33: 0.028 | J33: 0.028 | K33: =INT((A33-'Initial Benefits'!$C$5)/365.25) -> 100 | L33: 0.028 | N33: 0 | O33: 0 | P33: 0 | Q33: 0 | R33: 0 | S33: 0 | T33: 0 | U33: 0 | V33: 0 | W33: 0 | X33: 0 | Y33: 0 | Z33: 0 | AA33: 0 | AB33: 0 | AC33: 0 | AD33: 0 | AE33: 0
A34: 2001-06-28 | B34: 2001-12-26 | C34: =A34>'Initial Benefits'!$C$6 -> TRUE | D34: =B34>'Initial Benefits'!$C$6 -> TRUE | E34: FALSE | F34: =IF(E34=TRUE,'Initial Benefits'!$C$6-Data3!A34+1,0) -> 0 | G34: 182 | H34: 0 | I34: 0.06 | J34: 0.06 | K34: =INT((A34-'Initial Benefits'!$C$5)/365.25) -> 101 | L34: 0.06 | N34: 0 | O34: 0 | P34: 0 | Q34: 0 | R34: 0 | S34: 0 | T34: 0 | U34: 0 | V34: 0 | W34: 0 | X34: 0 | Y34: 0 | Z34: 0 | AA34: 0 | AB34: 0 | AC34: 0 | AD34: 0 | AE34: 0
A35: 2001-12-27 | B35: 2002-06-26 | C35: =A35>'Initial Benefits'!$C$6 -> TRUE | D35: =B35>'Initial Benefits'!$C$6 -> TRUE | E35: FALSE | F35: =IF(E35=TRUE,'Initial Benefits'!$C$6-Data3!A35+1,0) -> 0 | G35: 182 | H35: 0 | I35: 0.011 | J35: 0.011 | K35: =INT((A35-'Initial Benefits'!$C$5)/365.25) -> 101 | L35: 0.011 | N35: =ROUND(N34*(1+L35),2) -> 0 | O35: 0 | P35: =Q35/14*365 -> 0 | Q35: 0 | R35: 0 | S35: 0 | T35: 0 | U35: 0 | V35: 0 | W35: 0 | X35: 0 | Y35: 0 | Z35: 0 | AA35: 0 | AB35: 0 | AC35: 0 | AD35: 0 | AE35: 0
A36: 2002-06-27 | B36: 2002-12-25 | C36: =A36>'Initial Benefits'!$C$6 -> TRUE | D36: =B36>'Initial Benefits'!$C$6 -> TRUE | E36: FALSE | F36: =IF(E36=TRUE,'Initial Benefits'!$C$6-Data3!A36+1,0) -> 0 | G36: 182 | H36: 0 | I36: 0.018 | J36: 0.018 | K36: =INT((A36-'Initial Benefits'!$C$5)/365.25) -> 102 | L36: 0.018 | N36: 0 | O36: 0 | P36: 0 | Q36: 0 | R36: 0 | S36: 0 | T36: 0 | U36: 0 | V36: 0 | W36: 0 | X36: 0 | Y36: 0 | Z36: 0 | AA36: 0 | AB36: 0 | AC36: 0 | AD36: 0 | AE36: 0
A37: 2002-12-26 | B37: 2003-06-25 | C37: =A37>'Initial Benefits'!$C$6 -> TRUE | D37: =B37>'Initial Benefits'!$C$6 -> TRUE | E37: FALSE | F37: =IF(E37=TRUE,'Initial Benefits'!$C$6-Data3!A37+1,0) -> 0 | G37: 182 | H37: 0 | I37: 0.014 | J37: 0.014 | K37: =INT((A37-'Initial Benefits'!$C$5)/365.25) -> 102 | L37: 0.014 | N37: 0 | O37: 0 | P37: 0 | Q37: 0 | R37: 0 | S37: 0 | T37: 0 | U37: 0 | V37: 0 | W37: 0 | X37: 0 | Y37: 0 | Z37: 0 | AA37: 0 | AB37: 0 | AC37: 0 | AD37: 0 | AE37: 0
A38: 2003-06-26 | B38: 2003-12-24 | C38: =A38>'Initial Benefits'!$C$6 -> TRUE | D38: =B38>'Initial Benefits'!$C$6 -> TRUE | E38: FALSE | F38: =IF(E38=TRUE,'Initial Benefits'!$C$6-Data3!A38+1,0) -> 0 | G38: 182 | H38: 0 | I38: 0.02 | J38: 0.02 | K38: =INT((A38-'Initial Benefits'!$C$5)/365.25) -> 103 | L38: 0.02 | N38: 0 | O38: 0 | P38: 0 | Q38: 0 | R38: 0 | S38: 0 | T38: 0 | U38: 0 | V38: 0 | W38: 0 | X38: 0 | Y38: 0 | Z38: 0 | AA38: 0 | AB38: 0 | AC38: 0 | AD38: 0 | AE38: 0
A39: 2003-12-25 | B39: 2004-06-23 | C39: =A39>'Initial Benefits'!$C$6 -> TRUE | D39: =B39>'Initial Benefits'!$C$6 -> TRUE | E39: FALSE | F39: =IF(E39=TRUE,'Initial Benefits'!$C$6-Data3!A39+1,0) -> 0 | G39: 182 | H39: 0 | I39: 0.006 | J39: 0.006 | K39: =INT((A39-'Initial Benefits'!$C$5)/365.25) -> 103 | L39: 0.006 | N39: 0 | O39: 0 | P39: 0 | Q39: 0 | R39: 0 | S39: 0 | T39: 0 | U39: 0 | V39: 0 | W39: 0 | X39: 0 | Y39: 0 | Z39: 0 | AA39: 0 | AB39: 0 | AC39: 0 | AD39: 0 | AE39: 0
A40: 2004-06-24 | B40: 2004-12-22 | C40: =A40>'Initial Benefits'!$C$6 -> TRUE | D40: =B40>'Initial Benefits'!$C$6 -> TRUE | E40: FALSE | F40: =IF(E40=TRUE,'Initial Benefits'!$C$6-Data3!A40+1,0) -> 0 | G40: 182 | H40: 0 | I40: 0.014 | J40: 0.014 | K40: =INT((A40-'Initial Benefits'!$C$5)/365.25) -> 104 | L40: 0.014 | N40: 0 | O40: 0 | P40: 0 | Q40: 0 | R40: 0 | S40: 0 | T40: 0 | U40: 0 | V40: 0 | W40: 0 | X40: 0 | Y40: 0 | Z40: 0 | AA40: 0 | AB40: 0 | AC40: 0 | AD40: 0 | AE40: 0
A41: 2004-12-23 | B41: 2005-06-22 | C41: =A41>'Initial Benefits'!$C$6 -> TRUE | D41: =B41>'Initial Benefits'!$C$6 -> TRUE | E41: FALSE | F41: =IF(E41=TRUE,'Initial Benefits'!$C$6-Data3!A41+1,0) -> 0 | G41: 182 | H41: 0 | I41: 0.009 | J41: 0.009 | K41: =INT((A41-'Initial Benefits'!$C$5)/365.25) -> 104 | L41: 0.009 | N41: 0 | O41: 0 | P41: 0 | Q41: 0 | R41: 0 | S41: 0 | T41: 0 | U41: 0 | V41: 0 | W41: 0 | X41: 0 | Y41: 0 | Z41: 0 | AA41: 0 | AB41: 0 | AC41: 0 | AD41: 0 | AE41: 0
A42: 2005-06-23 | B42: 2005-12-21 | C42: =A42>'Initial Benefits'!$C$6 -> TRUE | D42: =B42>'Initial Benefits'!$C$6 -> TRUE | E42: FALSE | F42: =IF(E42=TRUE,'Initial Benefits'!$C$6-Data3!A42+1,0) -> 0 | G42: 182 | H42: 0 | I42: 0.014 | J42: 0.014 | K42: =INT((A42-'Initial Benefits'!$C$5)/365.25) -> 105 | L42: 0.014 | N42: 0 | O42: 0 | P42: 0 | Q42: 0 | R42: 0 | S42: 0 | T42: 0 | U42: 0 | V42: 0 | W42: 0 | X42: 0 | Y42: 0 | Z42: 0 | AA42: 0 | AB42: 0 | AC42: 0 | AD42: 0 | AE42: 0
A43: 2005-12-22 | B43: 2006-06-21 | C43: =A43>'Initial Benefits'!$C$6 -> TRUE | D43: =B43>'Initial Benefits'!$C$6 -> TRUE | E43: FALSE | F43: =IF(E43=TRUE,'Initial Benefits'!$C$6-Data3!A43+1,0) -> 0 | G43: 182 | H43: 0 | I43: 0.016 | J43: 0.016 | K43: =INT((A43-'Initial Benefits'!$C$5)/365.25) -> 105 | L43: 0.016 | N43: 0 | O43: 0 | P43: 0 | Q43: 0 | R43: 0 | S43: 0 | T43: 0 | U43: 0 | V43: 0 | W43: 0 | X43: 0 | Y43: 0 | Z43: 0 | AA43: 0 | AB43: 0 | AC43: 0 | AD43: 0 | AE43: 0
A44: 2006-06-22 | B44: 2006-12-20 | C44: =A44>'Initial Benefits'!$C$6 -> TRUE | D44: =B44>'Initial Benefits'!$C$6 -> TRUE | E44: FALSE | F44: =IF(E44=TRUE,'Initial Benefits'!$C$6-Data3!A44+1,0) -> 0 | G44: 182 | H44: 0 | I44: 0.014 | J44: 0.014 | K44: =INT((A44-'Initial Benefits'!$C$5)/365.25) -> 106 | L44: 0.014 | N44: 0 | O44: 0 | P44: 0 | Q44: 0 | R44: 0 | S44: 0 | T44: 0 | U44: 0 | V44: 0 | W44: 0 | X44: 0 | Y44: 0 | Z44: 0 | AA44: 0 | AB44: 0 | AC44: 0 | AD44: 0 | AE44: 0
A45: 2006-12-21 | B45: 2007-06-20 | C45: =A45>'Initial Benefits'!$C$6 -> TRUE | D45: =B45>'Initial Benefits'!$C$6 -> TRUE | E45: FALSE | F45: =IF(E45=TRUE,'Initial Benefits'!$C$6-Data3!A45+1,0) -> 0 | G45: 182 | H45: 0 | I45: 0.025 | J45: 0.025 | K45: =INT((A45-'Initial Benefits'!$C$5)/365.25) -> 106 | L45: 0.025 | N45: 0 | O45: 0 | P45: 0 | Q45: 0 | R45: 0 | S45: 0 | T45: 0 | U45: 0 | V45: 0 | W45: 0 | X45: 0 | Y45: 0 | Z45: 0 | AA45: 0 | AB45: 0 | AC45: 0 | AD45: 0 | AE45: 0
A46: 2007-06-21 | B46: 2007-12-19 | C46: =A46>'Initial Benefits'!$C$6 -> TRUE | D46: =B46>'Initial Benefits'!$C$6 -> TRUE | E46: FALSE | F46: =IF(E46=TRUE,'Initial Benefits'!$C$6-Data3!A46+1,0) -> 0 | G46: 182 | H46: 0 | I46: 0 | J46: 0 | K46: =INT((A46-'Initial Benefits'!$C$5)/365.25) -> 107 | L46: 0 | N46: 0 | O46: 0 | P46: 0 | Q46: 0 | R46: 0 | S46: 0 | T46: 0 | U46: 0 | V46: 0 | W46: 0 | X46: 0 | Y46: 0 | Z46: 0 | AA46: 0 | AB46: 0 | AC46: 0 | AD46: 0 | AE46: 0
A47: 2007-12-20 | B47: 2008-06-18 | C47: =A47>'Initial Benefits'!$C$6 -> TRUE | D47: =B47>'Initial Benefits'!$C$6 -> TRUE | E47: FALSE | F47: =IF(E47=TRUE,'Initial Benefits'!$C$6-Data3!A47+1,0) -> 0 | G47: 182 | H47: 0 | I47: 0.019 | J47: 0.019 | K47: =INT((A47-'Initial Benefits'!$C$5)/365.25) -> 107 | L47: 0.019 | N47: 0 | O47: 0 | P47: 0 | Q47: 0 | R47: 0 | S47: 0 | T47: 0 | U47: 0 | V47: 0 | W47: 0 | X47: 0 | Y47: 0 | Z47: 0 | AA47: 0 | AB47: 0 | AC47: 0 | AD47: 0 | AE47: 0
A48: 2008-06-19 | B48: 2008-12-17 | C48: =A48>'Initial Benefits'!$C$6 -> TRUE | D48: =B48>'Initial Benefits'!$C$6 -> TRUE | E48: FALSE | F48: =IF(E48=TRUE,'Initial Benefits'!$C$6-Data3!A48+1,0) -> 0 | G48: 182 | H48: 0 | I48: 0.023 | J48: 0.023 | K48: =INT((A48-'Initial Benefits'!$C$5)/365.25) -> 108 | L48: 0.023 | N48: 0 | O48: 0 | P48: 0 | Q48: 0 | R48: 0 | S48: 0 | T48: 0 | U48: 0 | V48: 0 | W48: 0 | X48: 0 | Y48: 0 | Z48: 0 | AA48: 0 | AB48: 0 | AC48: 0 | AD48: 0 | AE48: 0
A49: 2008-12-18 | B49: 2009-06-17 | C49: =A49>'Initial Benefits'!$C$6 -> TRUE | D49: =B49>'Initial Benefits'!$C$6 -> TRUE | E49: FALSE | F49: =IF(E49=TRUE,'Initial Benefits'!$C$6-Data3!A49+1,0) -> 0 | G49: 182 | H49: 0 | I49: 0.027 | J49: 0.027 | K49: =INT((A49-'Initial Benefits'!$C$5)/365.25) -> 108 | L49: 0.027 | N49: 0 | O49: 0 | P49: 0 | Q49: 0 | R49: 0 | S49: 0 | T49: 0 | U49: 0 | V49: 0 | W49: 0 | X49: 0 | Y49: 0 | Z49: 0 | AA49: 0 | AB49: 0 | AC49: 0 | AD49: 0 | AE49: 0
A50: 2009-06-18 | B50: 2010-01-13 | C50: =A50>'Initial Benefits'!$C$6 -> TRUE | D50: =B50>'Initial Benefits'!$C$6 -> TRUE | E50: FALSE | F50: =IF(E50=TRUE,'Initial Benefits'!$C$6-Data3!A50+1,0) -> 0 | G50: 210 | H50: 0 | I50: 0 | J50: 0 | K50: =INT((A50-'Initial Benefits'!$C$5)/365.25) -> 109 | L50: 0 | N50: 0 | O50: 0 | P50: 0 | Q50: 0 | R50: 0 | S50: 0 | T50: 0 | U50: 0 | V50: 0 | W50: 0 | X50: 0 | Y50: 0 | Z50: 0 | AA50: 0 | AB50: 0 | AC50: 0 | AD50: 0 | AE50: 0
A51: 2010-01-14 | B51: 2010-06-30 | C51: =A51>'Initial Benefits'!$C$6 -> TRUE | D51: =B51>'Initial Benefits'!$C$6 -> TRUE | E51: FALSE | F51: =IF(E51=TRUE,'Initial Benefits'!$C$6-Data3!A51+1,0) -> 0 | G51: 168 | H51: 0 | I51: 0.013 | J51: 0.013 | K51: =INT((A51-'Initial Benefits'!$C$5)/365.25) -> 110 | L51: 0.013 | N51: 0 | O51: 0 | P51: 0 | Q51: 0 | R51: 0 | S51: 0 | T51: 0 | U51: 0 | V51: 0 | W51: 0 | X51: 0 | Y51: 0 | Z51: 0 | AA51: 0 | AB51: 0 | AC51: 0 | AD51: 0 | AE51: 0
A52: 2010-07-01 | B52: 2011-01-12 | C52: =A52>'Initial Benefits'!$C$6 -> TRUE | D52: =B52>'Initial Benefits'!$C$6 -> TRUE | E52: FALSE | F52: =IF(E52=TRUE,'Initial Benefits'!$C$6-Data3!A52+1,0) -> 0 | G52: 196 | H52: 0 | I52: 0.014 | J52: 0.014 | K52: =INT((A52-'Initial Benefits'!$C$5)/365.25) -> 110 | L52: 0.014 | N52: 0 | O52: 0 | P52: 0 | Q52: 0 | R52: 0 | S52: 0 | T52: 0 | U52: 0 | V52: 0 | W52: 0 | X52: 0 | Y52: 0 | Z52: 0 | AA52: 0 | AB52: 0 | AC52: 0 | AD52: 0 | AE52: 0
A53: 2011-01-13 | B53: 2011-07-13 | C53: =A53>'Initial Benefits'!$C$6 -> TRUE | D53: =B53>'Initial Benefits'!$C$6 -> TRUE | E53: FALSE | F53: =IF(E53=TRUE,'Initial Benefits'!$C$6-Data3!A53+1,0) -> 0 | G53: 182 | H53: 0 | I53: 0.013 | J53: 0.013 | K53: =INT((A53-'Initial Benefits'!$C$5)/365.25) -> 111 | L53: 0.013 | N53: 0 | O53: 0 | P53: 0 | Q53: 0 | R53: 0 | S53: 0 | T53: 0 | U53: 0 | V53: 0 | W53: 0 | X53: 0 | Y53: 0 | Z53: 0 | AA53: 0 | AB53: 0 | AC53: 0 | AD53: 0 | AE53: 0
A54: 2011-07-14 | B54: 2012-01-11 | C54: =A54>'Initial Benefits'!$C$6 -> TRUE | D54: =B54>'Initial Benefits'!$C$6 -> TRUE | E54: FALSE | F54: =IF(E54=TRUE,'Initial Benefits'!$C$6-Data3!A54+1,0) -> 0 | G54: 182 | H54: 0 | I54: 0.02 | J54: 0.02 | K54: =INT((A54-'Initial Benefits'!$C$5)/365.25) -> 111 | L54: 0.02 | N54: 0 | O54: 0 | P54: 0 | Q54: 0 | R54: 0 | S54: 0 | T54: 0 | U54: 0 | V54: 0 | W54: 0 | X54: 0 | Y54: 0 | Z54: 0 | AA54: 0 | AB54: 0 | AC54: 0 | AD54: 0 | AE54: 0
A55: 2012-01-12 | B55: 2012-07-11 | C55: =A55>'Initial Benefits'!$C$6 -> TRUE | D55: =B55>'Initial Benefits'!$C$6 -> TRUE | E55: FALSE | F55: =IF(E55=TRUE,'Initial Benefits'!$C$6-Data3!A55+1,0) -> 0 | G55: 182 | H55: 0 | I55: 0.015 | J55: 0.015 | K55: =INT((A55-'Initial Benefits'!$C$5)/365.25) -> 112 | L55: 0.015 | N55: 0 | O55: 0 | P55: 0 | Q55: 0 | R55: 0 | S55: 0 | T55: 0 | U55: 0 | V55: 0 | W55: 0 | X55: 0 | Y55: 0 | Z55: 0 | AA55: 0 | AB55: 0 | AC55: 0 | AD55: 0 | AE55: 0
A56: 2012-07-12 | B56: 2013-01-09 | C56: =A56>'Initial Benefits'!$C$6 -> TRUE | D56: =B56>'Initial Benefits'!$C$6 -> TRUE | E56: FALSE | F56: =IF(E56=TRUE,'Initial Benefits'!$C$6-Data3!A56+1,0) -> 0 | G56: 182 | H56: 0 | I56: 0.001 | J56: 0.001 | K56: =INT((A56-'Initial Benefits'!$C$5)/365.25) -> 112 | L56: 0.001 | N56: 0 | O56: 0 | P56: 0 | Q56: 0 | R56: 0 | S56: 0 | T56: 0 | U56: 0 | V56: 0 | W56: 0 | X56: 0 | Y56: 0 | Z56: 0 | AA56: 0 | AB56: 0 | AC56: 0 | AD56: 0 | AE56: 0
A57: 2013-01-10 | B57: 2013-07-10 | C57: =A57>'Initial Benefits'!$C$6 -> TRUE | D57: =B57>'Initial Benefits'!$C$6 -> TRUE | E57: FALSE | F57: =IF(E57=TRUE,'Initial Benefits'!$C$6-Data3!A57+1,0) -> 0 | G57: 182 | H57: 0 | I57: 0.019 | J57: 0.019 | K57: =INT((A57-'Initial Benefits'!$C$5)/365.25) -> 113 | L57: 0.019 | N57: 0 | O57: 0 | P57: 0 | Q57: 0 | R57: 0 | S57: 0 | T57: 0 | U57: 0 | V57: 0 | W57: 0 | X57: 0 | Y57: 0 | Z57: 0 | AA57: 0 | AB57: 0 | AC57: 0 | AD57: 0 | AE57: 0
A58: 2013-07-11 | B58: 2014-01-08 | C58: =A58>'Initial Benefits'!$C$6 -> TRUE | D58: =B58>'Initial Benefits'!$C$6 -> TRUE | E58: FALSE | F58: =IF(E58=TRUE,'Initial Benefits'!$C$6-Data3!A58+1,0) -> 0 | G58: 182 | H58: 0 | I58: 0.006 | J58: 0.006 | K58: =INT((A58-'Initial Benefits'!$C$5)/365.25) -> 113 | L58: 0.006 | N58: 0 | O58: 0 | P58: 0 | Q58: 0 | R58: 0 | S58: 0 | T58: 0 | U58: 0 | V58: 0 | W58: 0 | X58: 0 | Y58: 0 | Z58: 0 | AA58: 0 | AB58: 0 | AC58: 0 | AD58: 0 | AE58: 0
A59: 2014-01-09 | B59: 2014-07-09 | C59: =A59>'Initial Benefits'!$C$6 -> TRUE | D59: =B59>'Initial Benefits'!$C$6 -> TRUE | E59: FALSE | F59: =IF(E59=TRUE,'Initial Benefits'!$C$6-Data3!A59+1,0) -> 0 | G59: 182 | H59: 0 | I59: 0.016 | J59: 0.016 | K59: =INT((A59-'Initial Benefits'!$C$5)/365.25) -> 114 | L59: 0.016 | N59: 0 | O59: 0 | P59: 0 | Q59: 0 | R59: 0 | S59: 0 | T59: 0 | U59: 0 | V59: 0 | W59: 0 | X59: 0 | Y59: 0 | Z59: 0 | AA59: 0 | AB59: 0 | AC59: 0 | AD59: 0 | AE59: 0
A60: 2014-07-10 | B60: 2015-01-07 | C60: =A60>'Initial Benefits'!$C$6 -> TRUE | D60: =B60>'Initial Benefits'!$C$6 -> TRUE | E60: FALSE | F60: =IF(E60=TRUE,'Initial Benefits'!$C$6-Data3!A60+1,0) -> 0 | G60: 182 | H60: 0 | I60: 0.015 | J60: 0.015 | K60: =INT((A60-'Initial Benefits'!$C$5)/365.25) -> 114 | L60: 0.015 | N60: 0 | O60: 0 | P60: 0 | Q60: 0 | R60: 0 | S60: 0 | T60: 0 | U60: 0 | V60: 0 | W60: 0 | X60: 0 | Y60: 0 | Z60: 0 | AA60: 0 | AB60: 0 | AC60: 0 | AD60: 0 | AE60: 0
A61: 2015-01-08 | B61: 2015-07-08 | C61: =A61>'Initial Benefits'!$C$6 -> TRUE | D61: =B61>'Initial Benefits'!$C$6 -> TRUE | E61: FALSE | F61: =IF(E61=TRUE,'Initial Benefits'!$C$6-Data3!A61+1,0) -> 0 | G61: 182 | H61: 0 | I61: 0.009 | J61: 0.009 | K61: =INT((A61-'Initial Benefits'!$C$5)/365.25) -> 115 | L61: 0.009 | N61: 0 | O61: 0 | P61: 0 | Q61: 0 | R61: 0 | S61: 0 | T61: 0 | U61: 0 | V61: 0 | W61: 0 | X61: 0 | Y61: 0 | Z61: 0 | AA61: 0 | AB61: 0 | AC61: 0 | AD61: 0 | AE61: 0
A62: 2015-07-09 | B62: 2016-01-06 | C62: =A62>'Initial Benefits'!$C$6 -> TRUE | D62: =B62>'Initial Benefits'!$C$6 -> TRUE | E62: FALSE | F62: =IF(E62=TRUE,'Initial Benefits'!$C$6-Data3!A62+1,0) -> 0 | G62: 182 | H62: 0 | I62: 0.004 | J62: 0.004 | K62: =INT((A62-'Initial Benefits'!$C$5)/365.25) -> 115 | L62: 0.004 | N62: 0 | O62: 0 | P62: 0 | Q62: 0 | R62: 0 | S62: 0 | T62: 0 | U62: 0 | V62: 0 | W62: 0 | X62: 0 | Y62: 0 | Z62: 0 | AA62: 0 | AB62: 0 | AC62: 0 | AD62: 0 | AE62: 0
A63: 2016-01-07 | B63: 2016-07-06 | C63: =A63>'Initial Benefits'!$C$6 -> TRUE | D63: =B63>'Initial Benefits'!$C$6 -> TRUE | E63: FALSE | F63: =IF(E63=TRUE,'Initial Benefits'!$C$6-Data3!A63+1,0) -> 0 | G63: 182 | H63: 0 | I63: 0.011 | J63: 0.011 | K63: =INT((A63-'Initial Benefits'!$C$5)/365.25) -> 116 | L63: 0.011 | N63: 0 | O63: 0 | P63: 0 | Q63: 0 | R63: 0 | S63: 0 | T63: 0 | U63: 0 | V63: 0 | W63: 0 | X63: 0 | Y63: 0 | Z63: 0 | AA63: 0 | AB63: 0 | AC63: 0 | AD63: 0 | AE63: 0
A64: 2016-07-07 | B64: 2017-01-04 | C64: =A64>'Initial Benefits'!$C$6 -> TRUE | D64: =B64>'Initial Benefits'!$C$6 -> TRUE | E64: FALSE | F64: =IF(E64=TRUE,'Initial Benefits'!$C$6-Data3!A64+1,0) -> 0 | G64: 182 | H64: 0 | I64: 0.004 | J64: 0.004 | K64: =INT((A64-'Initial Benefits'!$C$5)/365.25) -> 116 | L64: 0.004 | N64: 0 | O64: 0 | P64: 0 | Q64: 0 | R64: 0 | S64: 0 | T64: 0 | U64: 0 | V64: 0 | W64: 0 | X64: 0 | Y64: 0 | Z64: 0 | AA64: 0 | AB64: 0 | AC64: 0 | AD64: 0 | AE64: 0
A65: 2017-01-05 | B65: 2017-07-05 | C65: =A65>'Initial Benefits'!$C$6 -> TRUE | D65: =B65>'Initial Benefits'!$C$6 -> TRUE | E65: FALSE | F65: =IF(E65=TRUE,'Initial Benefits'!$C$6-Data3!A65+1,0) -> 0 | G65: 182 | H65: 0 | I65: 0.011 | J65: 0.011 | K65: =INT((A65-'Initial Benefits'!$C$5)/365.25) -> 117 | L65: 0.011 | N65: 0 | O65: 0 | P65: 0 | Q65: 0 | R65: 0 | S65: 0 | T65: 0 | U65: 0 | V65: 0 | W65: 0 | X65: 0 | Y65: 0 | Z65: 0 | AA65: 0 | AB65: 0 | AC65: 0 | AD65: 0 | AE65: 0
A66: 2017-07-06 | B66: 2018-01-03 | C66: =A66>'Initial Benefits'!$C$6 -> TRUE | D66: =B66>'Initial Benefits'!$C$6 -> TRUE | E66: FALSE | F66: =IF(E66=TRUE,'Initial Benefits'!$C$6-Data3!A66+1,0) -> 0 | G66: 182 | H66: 0 | I66: 0.013 | J66: 0.013 | K66: =INT((A66-'Initial Benefits'!$C$5)/365.25) -> 117 | L66: 0.013 | N66: 0 | O66: 0 | P66: 0 | Q66: 0 | R66: 0 | S66: 0 | T66: 0 | U66: 0 | V66: 0 | W66: 0 | X66: 0 | Y66: 0 | Z66: 0 | AA66: 0 | AB66: 0 | AC66: 0 | AD66: 0 | AE66: 0
A67: 2018-01-04 | B67: 2018-07-04 | C67: =A67>'Initial Benefits'!$C$6 -> TRUE | D67: =B67>'Initial Benefits'!$C$6 -> TRUE | E67: FALSE | F67: =IF(E67=TRUE,'Initial Benefits'!$C$6-Data3!A67+1,0) -> 0 | G67: 182 | H67: 0 | I67: 0.008 | J67: 0.008 | K67: =INT((A67-'Initial Benefits'!$C$5)/365.25) -> 118 | L67: 0.008 | N67: =ROUND(N66*(1+L67),2) -> 0 | O67: 0 | P67: =Q67/14*365 -> 0 | Q67: 0 | R67: 0 | S67: 0 | T67: 0 | U67: 0 | V67: 0 | W67: 0 | X67: 0 | Y67: 0 | Z67: 0 | AA67: 0 | AB67: 0 | AC67: 0 | AD67: 0 | AE67: 0
A68: 2018-07-05 | B68: 2019-01-02 | C68: =A68>'Initial Benefits'!$C$6 -> TRUE | D68: =B68>'Initial Benefits'!$C$6 -> TRUE | E68: FALSE | F68: =IF(E68=TRUE,'Initial Benefits'!$C$6-Data3!A68+1,0) -> 0 | G68: 182 | H68: 0 | I68: 0.015 | J68: 0.011 | K68: =INT((A68-'Initial Benefits'!$C$5)/365.25) -> 118 | L68: 0.015 | N68: 0 | O68: =N68/365*14 -> 0 | P68: 0 | Q68: 0 | R68: 0 | S68: 0 | T68: 0 | U68: =T68/365*14 -> 0 | V68: 0 | W68: 0 | X68: 0 | Y68: 0 | Z68: 0 | AA68: 0 | AB68: 0 | AC68: =N68*0.625 -> 0 | AD68: =AB68*0.625 -> 0 | AE68: =AC68-AD68 -> 0
A69: 2019-01-03 | B69: 2019-07-03 | C69: =A69>'Initial Benefits'!$C$6 -> TRUE | D69: =B69>'Initial Benefits'!$C$6 -> TRUE | E69: =AND(D69,NOT(C69)) -> FALSE | F69: =IF(E69=TRUE,'Initial Benefits'!$C$6-Data3!A69+1,0) -> 0 | G69: =IF(C69=FALSE,0,B69-A69+1)+F69 -> 182 | H69: 0 | I69: 0.008 | J69: 0.008 | K69: =INT((A69-'Initial Benefits'!$C$5)/365.25) -> 119 | L69: 0.008 | N69: 0 | O69: 0 | P69: 0 | Q69: ='Initial Benefits'!C14 -> 0 | R69: =ROUND(R68*(1+L69),2) -> 0 | S69: =P69-P68 -> 0 | T69: =T68+S69 -> 0 | U69: 0 | V69: =N69-T69 -> 0 | W69: =W68+O69*G69/14 -> 0 | X69: =X68+U69*G69/14 -> 0 | Y69: =W69-X69 -> 0 | Z69: =ROUND(Z68*(1+L69),2) -> 0 | AA69: =Z69-Z68 -> 0 | AB69: 0 | AC69: 0 | AD69: 0 | AE69: 0
A70: 2019-07-04 | B70: 2020-01-01 | C70: =A70>'Initial Benefits'!$C$6 -> TRUE | D70: =B70>'Initial Benefits'!$C$6 -> TRUE | E70: FALSE | F70: =IF(E70=TRUE,'Initial Benefits'!$C$6-Data3!A70+1,0) -> 0 | G70: 182 | H70: 0 | I70: ='Initial Benefits'!$C$16/2 -> 0.01 | J70: ='Initial Benefits'!$C$16/2 -> 0.01 | K70: =INT((A70-'Initial Benefits'!$C$5)/365.25) -> 119 | L70: 0.01 | N70: 0 | O70: 0 | P70: 0 | Q70: =Q69*(1+L70) -> 0 | R70: 0 | S70: 0 | T70: 0 | U70: 0 | V70: 0 | W70: 0 | X70: 0 | Y70: 0 | Z70: 0 | AA70: 0 | AB70: =AB69+AA70 -> 0 | AC70: 0 | AD70: 0 | AE70: 0
A71: 2020-01-02 | B71: 2020-07-01 | C71: =A71>'Initial Benefits'!$C$6 -> TRUE | D71: =B71>'Initial Benefits'!$C$6 -> TRUE | E71: FALSE | F71: =IF(E71=TRUE,'Initial Benefits'!$C$6-Data3!A71+1,0) -> 0 | G71: 182 | H71: 0 | I71: ='Initial Benefits'!$C$16/2 -> 0.01 | J71: ='Initial Benefits'!$C$16/2 -> 0.01 | K71: =INT((A71-'Initial Benefits'!$C$5)/365.25) -> 120 | L71: 0.01 | N71: 0 | O71: 0 | P71: 0 | Q71: 0 | R71: 0 | S71: 0 | T71: 0 | U71: 0 | V71: 0 | W71: 0 | X71: 0 | Y71: 0 | Z71: 0 | AA71: 0 | AB71: 0 | AC71: 0 | AD71: 0 | AE71: 0
A72: 2020-07-02 | B72: 2020-12-30 | C72: =A72>'Initial Benefits'!$C$6 -> TRUE | D72: =B72>'Initial Benefits'!$C$6 -> TRUE | E72: FALSE | F72: =IF(E72=TRUE,'Initial Benefits'!$C$6-Data3!A72+1,0) -> 0 | G72: 182 | H72: 0 | I72: ='Initial Benefits'!$C$16/2 -> 0.01 | J72: ='Initial Benefits'!$C$16/2 -> 0.01 | K72: =INT((A72-'Initial Benefits'!$C$5)/365.25) -> 120 | L72: 0.01 | N72: 0 | O72: 0 | P72: 0 | Q72: 0 | R72: 0 | S72: 0 | T72: 0 | U72: 0 | V72: 0 | W72: 0 | X72: 0 | Y72: 0 | Z72: 0 | AA72: 0 | AB72: 0 | AC72: 0 | AD72: 0 | AE72: 0
A73: 2020-12-31 | B73: 2021-06-30 | C73: =A73>'Initial Benefits'!$C$6 -> TRUE | D73: =B73>'Initial Benefits'!$C$6 -> TRUE | E73: FALSE | F73: =IF(E73=TRUE,'Initial Benefits'!$C$6-Data3!A73+1,0) -> 0 | G73: 182 | H73: 0 | I73: ='Initial Benefits'!$C$16/2 -> 0.01 | J73: ='Initial Benefits'!$C$16/2 -> 0.01 | K73: =INT((A73-'Initial Benefits'!$C$5)/365.25) -> 121 | L73: 0.01 | N73: 0 | O73: 0 | P73: 0 | Q73: 0 | R73: 0 | S73: 0 | T73: 0 | U73: 0 | V73: 0 | W73: 0 | X73: 0 | Y73: 0 | Z73: 0 | AA73: 0 | AB73: 0 | AC73: 0 | AD73: 0 | AE73: 0
A74: 2021-07-01 | B74: 2021-12-29 | C74: =A74>'Initial Benefits'!$C$6 -> TRUE | D74: =B74>'Initial Benefits'!$C$6 -> TRUE | E74: FALSE | F74: =IF(E74=TRUE,'Initial Benefits'!$C$6-Data3!A74+1,0) -> 0 | G74: 182 | H74: 0 | I74: ='Initial Benefits'!$C$16/2 -> 0.01 | J74: ='Initial Benefits'!$C$16/2 -> 0.01 | K74: =INT((A74-'Initial Benefits'!$C$5)/365.25) -> 121 | L74: 0.01 | N74: 0 | O74: 0 | P74: 0 | Q74: 0 | R74: 0 | S74: 0 | T74: 0 | U74: 0 | V74: 0 | W74: 0 | X74: 0 | Y74: 0 | Z74: 0 | AA74: 0 | AB74: 0 | AC74: 0 | AD74: 0 | AE74: 0
A75: 2021-12-30 | B75: 2022-06-29 | C75: =A75>'Initial Benefits'!$C$6 -> TRUE | D75: =B75>'Initial Benefits'!$C$6 -> TRUE | E75: FALSE | F75: =IF(E75=TRUE,'Initial Benefits'!$C$6-Data3!A75+1,0) -> 0 | G75: 182 | H75: 0 | I75: ='Initial Benefits'!$C$16/2 -> 0.01 | J75: ='Initial Benefits'!$C$16/2 -> 0.01 | K75: =INT((A75-'Initial Benefits'!$C$5)/365.25) -> 121 | L75: 0.01 | N75: 0 | O75: 0 | P75: 0 | Q75: 0 | R75: 0 | S75: 0 | T75: 0 | U75: 0 | V75: 0 | W75: 0 | X75: 0 | Y75: 0 | Z75: 0 | AA75: 0 | AB75: 0 | AC75: 0 | AD75: 0 | AE75: 0
A76: 2022-06-30 | B76: 2022-12-28 | C76: =A76>'Initial Benefits'!$C$6 -> TRUE | D76: =B76>'Initial Benefits'!$C$6 -> TRUE | E76: FALSE | F76: =IF(E76=TRUE,'Initial Benefits'!$C$6-Data3!A76+1,0) -> 0 | G76: 182 | H76: 0 | I76: ='Initial Benefits'!$C$16/2 -> 0.01 | J76: ='Initial Benefits'!$C$16/2 -> 0.01 | K76: =INT((A76-'Initial Benefits'!$C$5)/365.25) -> 122 | L76: 0.01 | N76: 0 | O76: 0 | P76: 0 | Q76: 0 | R76: 0 | S76: 0 | T76: 0 | U76: 0 | V76: 0 | W76: 0 | X76: 0 | Y76: 0 | Z76: 0 | AA76: 0 | AB76: 0 | AC76: 0 | AD76: 0 | AE76: 0
A77: 2022-12-29 | B77: 2023-06-28 | C77: =A77>'Initial Benefits'!$C$6 -> TRUE | D77: =B77>'Initial Benefits'!$C$6 -> TRUE | E77: FALSE | F77: =IF(E77=TRUE,'Initial Benefits'!$C$6-Data3!A77+1,0) -> 0 | G77: 182 | H77: 0 | I77: ='Initial Benefits'!$C$16/2 -> 0.01 | J77: ='Initial Benefits'!$C$16/2 -> 0.01 | K77: =INT((A77-'Initial Benefits'!$C$5)/365.25) -> 122 | L77: 0.01 | N77: 0 | O77: 0 | P77: 0 | Q77: 0 | R77: 0 | S77: 0 | T77: 0 | U77: 0 | V77: 0 | W77: 0 | X77: 0 | Y77: 0 | Z77: 0 | AA77: 0 | AB77: 0 | AC77: 0 | AD77: 0 | AE77: 0
A78: 2023-06-29 | B78: 2023-12-27 | C78: =A78>'Initial Benefits'!$C$6 -> TRUE | D78: =B78>'Initial Benefits'!$C$6 -> TRUE | E78: FALSE | F78: =IF(E78=TRUE,'Initial Benefits'!$C$6-Data3!A78+1,0) -> 0 | G78: 182 | H78: 0 | I78: ='Initial Benefits'!$C$16/2 -> 0.01 | J78: ='Initial Benefits'!$C$16/2 -> 0.01 | K78: =INT((A78-'Initial Benefits'!$C$5)/365.25) -> 123 | L78: 0.01 | N78: 0 | O78: 0 | P78: 0 | Q78: 0 | R78: 0 | S78: 0 | T78: 0 | U78: 0 | V78: 0 | W78: 0 | X78: 0 | Y78: 0 | Z78: 0 | AA78: 0 | AB78: 0 | AC78: 0 | AD78: 0 | AE78: 0
A79: 2023-12-28 | B79: 2024-06-26 | C79: =A79>'Initial Benefits'!$C$6 -> TRUE | D79: =B79>'Initial Benefits'!$C$6 -> TRUE | E79: FALSE | F79: =IF(E79=TRUE,'Initial Benefits'!$C$6-Data3!A79+1,0) -> 0 | G79: 182 | H79: =IF($Q$3=0,0,IF(E78=TRUE,(Q79-$Q$3)/$Q$3)) -> 0 | I79: ='Initial Benefits'!$C$16/2 -> 0.01 | J79: ='Initial Benefits'!$C$16/2 -> 0.01 | K79: =INT((A79-'Initial Benefits'!$C$5)/365.25) -> 123 | L79: =IF(E78=FALSE,IF(C79=FALSE,0,IF(K79<55,J79,I79)),H79) -> 0.01 | N79: 0 | O79: 0 | P79: 0 | Q79: 0 | R79: 0 | S79: 0 | T79: 0 | U79: 0 | V79: 0 | W79: 0 | X79: 0 | Y79: 0 | Z79: 0 | AA79: 0 | AB79: 0 | AC79: 0 | AD79: 0 | AE79: 0
A80: 2024-06-27 | B80: 2024-12-25 | C80: =A80>'Initial Benefits'!$C$6 -> TRUE | D80: =B80>'Initial Benefits'!$C$6 -> TRUE | E80: FALSE | F80: =IF(E80=TRUE,'Initial Benefits'!$C$6-Data3!A80+1,0) -> 0 | G80: 182 | H80: 0 | I80: ='Initial Benefits'!$C$16/2 -> 0.01 | J80: ='Initial Benefits'!$C$16/2 -> 0.01 | K80: =INT((A80-'Initial Benefits'!$C$5)/365.25) -> 124 | L80: 0.01 | N80: 0 | O80: 0 | P80: 0 | Q80: 0 | R80: 0 | S80: 0 | T80: 0 | U80: 0 | V80: 0 | W80: 0 | X80: 0 | Y80: 0 | Z80: 0 | AA80: 0 | AB80: 0 | AC80: 0 | AD80: 0 | AE80: 0
A81: 2024-12-26 | B81: 2025-06-25 | C81: =A81>'Initial Benefits'!$C$6 -> TRUE | D81: =B81>'Initial Benefits'!$C$6 -> TRUE | E81: FALSE | F81: =IF(E81=TRUE,'Initial Benefits'!$C$6-Data3!A81+1,0) -> 0 | G81: 182 | H81: 0 | I81: ='Initial Benefits'!$C$16/2 -> 0.01 | J81: ='Initial Benefits'!$C$16/2 -> 0.01 | K81: =INT((A81-'Initial Benefits'!$C$5)/365.25) -> 124 | L81: 0.01 | N81: 0 | O81: 0 | P81: 0 | Q81: 0 | R81: 0 | S81: 0 | T81: 0 | U81: 0 | V81: 0 | W81: 0 | X81: 0 | Y81: 0 | Z81: 0 | AA81: 0 | AB81: 0 | AC81: 0 | AD81: 0 | AE81: 0
A82: 2025-06-26 | B82: 2025-12-24 | C82: =A82>'Initial Benefits'!$C$6 -> TRUE | D82: =B82>'Initial Benefits'!$C$6 -> TRUE | E82: FALSE | F82: =IF(E82=TRUE,'Initial Benefits'!$C$6-Data3!A82+1,0) -> 0 | G82: 182 | H82: 0 | I82: ='Initial Benefits'!$C$16/2 -> 0.01 | J82: ='Initial Benefits'!$C$16/2 -> 0.01 | K82: =INT((A82-'Initial Benefits'!$C$5)/365.25) -> 125 | L82: 0.01 | N82: 0 | O82: 0 | P82: 0 | Q82: 0 | R82: 0 | S82: 0 | T82: 0 | U82: 0 | V82: 0 | W82: 0 | X82: 0 | Y82: 0 | Z82: 0 | AA82: 0 | AB82: 0 | AC82: 0 | AD82: 0 | AE82: 0
A83: 2025-12-25 | B83: 2026-06-24 | C83: =A83>'Initial Benefits'!$C$6 -> TRUE | D83: =B83>'Initial Benefits'!$C$6 -> TRUE | E83: FALSE | F83: =IF(E83=TRUE,'Initial Benefits'!$C$6-Data3!A83+1,0) -> 0 | G83: 182 | H83: 0 | I83: ='Initial Benefits'!$C$16/2 -> 0.01 | J83: ='Initial Benefits'!$C$16/2 -> 0.01 | K83: =INT((A83-'Initial Benefits'!$C$5)/365.25) -> 125 | L83: 0.01 | N83: 0 | O83: 0 | P83: 0 | Q83: 0 | R83: 0 | S83: 0 | T83: 0 | U83: 0 | V83: 0 | W83: 0 | X83: 0 | Y83: 0 | Z83: 0 | AA83: 0 | AB83: 0 | AC83: 0 | AD83: 0 | AE83: 0
A84: 2026-06-25 | B84: 2026-12-23 | C84: =A84>'Initial Benefits'!$C$6 -> TRUE | D84: =B84>'Initial Benefits'!$C$6 -> TRUE | E84: FALSE | F84: =IF(E84=TRUE,'Initial Benefits'!$C$6-Data3!A84+1,0) -> 0 | G84: 182 | H84: 0 | I84: ='Initial Benefits'!$C$16/2 -> 0.01 | J84: ='Initial Benefits'!$C$16/2 -> 0.01 | K84: =INT((A84-'Initial Benefits'!$C$5)/365.25) -> 126 | L84: 0.01 | N84: 0 | O84: 0 | P84: 0 | Q84: 0 | R84: 0 | S84: 0 | T84: 0 | U84: 0 | V84: 0 | W84: 0 | X84: 0 | Y84: 0 | Z84: 0 | AA84: 0 | AB84: 0 | AC84: 0 | AD84: 0 | AE84: 0
A85: 2026-12-24 | B85: 2027-06-23 | C85: =A85>'Initial Benefits'!$C$6 -> TRUE | D85: =B85>'Initial Benefits'!$C$6 -> TRUE | E85: FALSE | F85: =IF(E85=TRUE,'Initial Benefits'!$C$6-Data3!A85+1,0) -> 0 | G85: 182 | H85: 0 | I85: ='Initial Benefits'!$C$16/2 -> 0.01 | J85: ='Initial Benefits'!$C$16/2 -> 0.01 | K85: =INT((A85-'Initial Benefits'!$C$5)/365.25) -> 126 | L85: 0.01 | N85: 0 | O85: 0 | P85: 0 | Q85: 0 | R85: 0 | S85: 0 | T85: 0 | U85: 0 | V85: 0 | W85: 0 | X85: 0 | Y85: 0 | Z85: 0 | AA85: 0 | AB85: 0 | AC85: 0 | AD85: 0 | AE85: 0
A86: 2027-06-24 | B86: 2027-12-22 | C86: =A86>'Initial Benefits'!$C$6 -> TRUE | D86: =B86>'Initial Benefits'!$C$6 -> TRUE | E86: FALSE | F86: =IF(E86=TRUE,'Initial Benefits'!$C$6-Data3!A86+1,0) -> 0 | G86: 182 | H86: 0 | I86: ='Initial Benefits'!$C$16/2 -> 0.01 | J86: ='Initial Benefits'!$C$16/2 -> 0.01 | K86: =INT((A86-'Initial Benefits'!$C$5)/365.25) -> 127 | L86: 0.01 | N86: 0 | O86: 0 | P86: 0 | Q86: 0 | R86: 0 | S86: 0 | T86: 0 | U86: 0 | V86: 0 | W86: 0 | X86: 0 | Y86: 0 | Z86: 0 | AA86: 0 | AB86: 0 | AC86: 0 | AD86: 0 | AE86: 0
A87: 2027-12-23 | B87: 2028-06-21 | C87: =A87>'Initial Benefits'!$C$6 -> TRUE | D87: =B87>'Initial Benefits'!$C$6 -> TRUE | E87: FALSE | F87: =IF(E87=TRUE,'Initial Benefits'!$C$6-Data3!A87+1,0) -> 0 | G87: 182 | H87: 0 | I87: ='Initial Benefits'!$C$16/2 -> 0.01 | J87: ='Initial Benefits'!$C$16/2 -> 0.01 | K87: =INT((A87-'Initial Benefits'!$C$5)/365.25) -> 127 | L87: 0.01 | N87: 0 | O87: 0 | P87: 0 | Q87: 0 | R87: 0 | S87: 0 | T87: 0 | U87: 0 | V87: 0 | W87: 0 | X87: 0 | Y87: 0 | Z87: 0 | AA87: 0 | AB87: 0 | AC87: 0 | AD87: 0 | AE87: 0
A88: 2028-06-22 | B88: 2028-12-20 | C88: =A88>'Initial Benefits'!$C$6 -> TRUE | D88: =B88>'Initial Benefits'!$C$6 -> TRUE | E88: FALSE | F88: =IF(E88=TRUE,'Initial Benefits'!$C$6-Data3!A88+1,0) -> 0 | G88: 182 | H88: 0 | I88: ='Initial Benefits'!$C$16/2 -> 0.01 | J88: ='Initial Benefits'!$C$16/2 -> 0.01 | K88: =INT((A88-'Initial Benefits'!$C$5)/365.25) -> 128 | L88: 0.01 | N88: 0 | O88: 0 | P88: 0 | Q88: 0 | R88: 0 | S88: 0 | T88: 0 | U88: 0 | V88: 0 | W88: 0 | X88: 0 | Y88: 0 | Z88: 0 | AA88: 0 | AB88: 0 | AC88: 0 | AD88: 0 | AE88: 0
A89: 2028-12-21 | B89: 2029-06-20 | C89: =A89>'Initial Benefits'!$C$6 -> TRUE | D89: =B89>'Initial Benefits'!$C$6 -> TRUE | E89: FALSE | F89: =IF(E89=TRUE,'Initial Benefits'!$C$6-Data3!A89+1,0) -> 0 | G89: 182 | H89: 0 | I89: ='Initial Benefits'!$C$16/2 -> 0.01 | J89: ='Initial Benefits'!$C$16/2 -> 0.01 | K89: =INT((A89-'Initial Benefits'!$C$5)/365.25) -> 128 | L89: 0.01 | N89: 0 | O89: 0 | P89: 0 | Q89: 0 | R89: 0 | S89: 0 | T89: 0 | U89: 0 | V89: 0 | W89: 0 | X89: 0 | Y89: 0 | Z89: 0 | AA89: 0 | AB89: 0 | AC89: 0 | AD89: 0 | AE89: 0
A90: 2029-06-21 | B90: 2029-12-19 | C90: =A90>'Initial Benefits'!$C$6 -> TRUE | D90: =B90>'Initial Benefits'!$C$6 -> TRUE | E90: FALSE | F90: =IF(E90=TRUE,'Initial Benefits'!$C$6-Data3!A90+1,0) -> 0 | G90: 182 | H90: 0 | I90: ='Initial Benefits'!$C$16/2 -> 0.01 | J90: ='Initial Benefits'!$C$16/2 -> 0.01 | K90: =INT((A90-'Initial Benefits'!$C$5)/365.25) -> 129 | L90: 0.01 | N90: 0 | O90: 0 | P90: 0 | Q90: 0 | R90: 0 | S90: 0 | T90: 0 | U90: 0 | V90: 0 | W90: 0 | X90: 0 | Y90: 0 | Z90: 0 | AA90: 0 | AB90: 0 | AC90: 0 | AD90: 0 | AE90: 0
A91: 2029-12-20 | B91: 2030-06-19 | C91: =A91>'Initial Benefits'!$C$6 -> TRUE | D91: =B91>'Initial Benefits'!$C$6 -> TRUE | E91: FALSE | F91: =IF(E91=TRUE,'Initial Benefits'!$C$6-Data3!A91+1,0) -> 0 | G91: 182 | H91: 0 | I91: ='Initial Benefits'!$C$16/2 -> 0.01 | J91: ='Initial Benefits'!$C$16/2 -> 0.01 | K91: =INT((A91-'Initial Benefits'!$C$5)/365.25) -> 129 | L91: 0.01 | N91: 0 | O91: 0 | P91: 0 | Q91: 0 | R91: 0 | S91: 0 | T91: 0 | U91: 0 | V91: 0 | W91: 0 | X91: 0 | Y91: 0 | Z91: 0 | AA91: 0 | AB91: 0 | AC91: 0 | AD91: 0 | AE91: 0
A92: 2030-06-20 | B92: 2030-12-18 | C92: =A92>'Initial Benefits'!$C$6 -> TRUE | D92: =B92>'Initial Benefits'!$C$6 -> TRUE | E92: FALSE | F92: =IF(E92=TRUE,'Initial Benefits'!$C$6-Data3!A92+1,0) -> 0 | G92: 182 | H92: 0 | I92: ='Initial Benefits'!$C$16/2 -> 0.01 | J92: ='Initial Benefits'!$C$16/2 -> 0.01 | K92: =INT((A92-'Initial Benefits'!$C$5)/365.25) -> 130 | L92: 0.01 | N92: 0 | O92: 0 | P92: 0 | Q92: 0 | R92: 0 | S92: 0 | T92: 0 | U92: 0 | V92: 0 | W92: 0 | X92: 0 | Y92: 0 | Z92: 0 | AA92: 0 | AB92: 0 | AC92: 0 | AD92: 0 | AE92: 0
A93: 2030-12-19 | B93: 2031-06-18 | C93: =A93>'Initial Benefits'!$C$6 -> TRUE | D93: =B93>'Initial Benefits'!$C$6 -> TRUE | E93: FALSE | F93: =IF(E93=TRUE,'Initial Benefits'!$C$6-Data3!A93+1,0) -> 0 | G93: 182 | H93: 0 | I93: ='Initial Benefits'!$C$16/2 -> 0.01 | J93: ='Initial Benefits'!$C$16/2 -> 0.01 | K93: =INT((A93-'Initial Benefits'!$C$5)/365.25) -> 130 | L93: 0.01 | N93: 0 | O93: 0 | P93: 0 | Q93: 0 | R93: 0 | S93: 0 | T93: 0 | U93: 0 | V93: 0 | W93: 0 | X93: 0 | Y93: 0 | Z93: 0 | AA93: 0 | AB93: 0 | AC93: 0 | AD93: 0 | AE93: 0
A94: 2031-06-19 | B94: 2031-12-17 | C94: =A94>'Initial Benefits'!$C$6 -> TRUE | D94: =B94>'Initial Benefits'!$C$6 -> TRUE | E94: FALSE | F94: =IF(E94=TRUE,'Initial Benefits'!$C$6-Data3!A94+1,0) -> 0 | G94: 182 | H94: 0 | I94: ='Initial Benefits'!$C$16/2 -> 0.01 | J94: ='Initial Benefits'!$C$16/2 -> 0.01 | K94: =INT((A94-'Initial Benefits'!$C$5)/365.25) -> 131 | L94: 0.01 | N94: 0 | O94: 0 | P94: 0 | Q94: 0 | R94: 0 | S94: 0 | T94: 0 | U94: 0 | V94: 0 | W94: 0 | X94: 0 | Y94: 0 | Z94: 0 | AA94: 0 | AB94: 0 | AC94: 0 | AD94: 0 | AE94: 0
A95: 2031-12-18 | B95: 2032-06-16 | C95: =A95>'Initial Benefits'!$C$6 -> TRUE | D95: =B95>'Initial Benefits'!$C$6 -> TRUE | E95: FALSE | F95: =IF(E95=TRUE,'Initial Benefits'!$C$6-Data3!A95+1,0) -> 0 | G95: 182 | H95: 0 | I95: ='Initial Benefits'!$C$16/2 -> 0.01 | J95: ='Initial Benefits'!$C$16/2 -> 0.01 | K95: =INT((A95-'Initial Benefits'!$C$5)/365.25) -> 131 | L95: 0.01 | N95: 0 | O95: 0 | P95: 0 | Q95: 0 | R95: 0 | S95: 0 | T95: 0 | U95: 0 | V95: 0 | W95: 0 | X95: 0 | Y95: 0 | Z95: 0 | AA95: 0 | AB95: 0 | AC95: 0 | AD95: 0 | AE95: 0
A96: 2032-06-17 | B96: 2032-12-29 | C96: =A96>'Initial Benefits'!$C$6 -> TRUE | D96: =B96>'Initial Benefits'!$C$6 -> TRUE | E96: FALSE | F96: =IF(E96=TRUE,'Initial Benefits'!$C$6-Data3!A96+1,0) -> 0 | G96: 196 | H96: 0 | I96: ='Initial Benefits'!$C$16/2 -> 0.01 | J96: ='Initial Benefits'!$C$16/2 -> 0.01 | K96: =INT((A96-'Initial Benefits'!$C$5)/365.25) -> 132 | L96: 0.01 | N96: 0 | O96: 0 | P96: 0 | Q96: 0 | R96: 0 | S96: 0 | T96: 0 | U96: 0 | V96: 0 | W96: 0 | X96: 0 | Y96: 0 | Z96: 0 | AA96: 0 | AB96: 0 | AC96: 0 | AD96: 0 | AE96: 0
A97: 2032-12-30 | B97: 2033-06-29 | C97: =A97>'Initial Benefits'!$C$6 -> TRUE | D97: =B97>'Initial Benefits'!$C$6 -> TRUE | E97: FALSE | F97: =IF(E97=TRUE,'Initial Benefits'!$C$6-Data3!A97+1,0) -> 0 | G97: 182 | H97: 0 | I97: ='Initial Benefits'!$C$16/2 -> 0.01 | J97: ='Initial Benefits'!$C$16/2 -> 0.01 | K97: =INT((A97-'Initial Benefits'!$C$5)/365.25) -> 132 | L97: 0.01 | N97: 0 | O97: 0 | P97: 0 | Q97: 0 | R97: 0 | S97: 0 | T97: 0 | U97: 0 | V97: 0 | W97: 0 | X97: 0 | Y97: 0 | Z97: 0 | AA97: 0 | AB97: 0 | AC97: 0 | AD97: 0 | AE97: 0
A98: 2033-06-30 | B98: 2033-12-28 | C98: =A98>'Initial Benefits'!$C$6 -> TRUE | D98: =B98>'Initial Benefits'!$C$6 -> TRUE | E98: FALSE | F98: =IF(E98=TRUE,'Initial Benefits'!$C$6-Data3!A98+1,0) -> 0 | G98: 182 | H98: 0 | I98: ='Initial Benefits'!$C$16/2 -> 0.01 | J98: ='Initial Benefits'!$C$16/2 -> 0.01 | K98: =INT((A98-'Initial Benefits'!$C$5)/365.25) -> 133 | L98: 0.01 | N98: 0 | O98: 0 | P98: 0 | Q98: 0 | R98: 0 | S98: 0 | T98: 0 | U98: 0 | V98: 0 | W98: 0 | X98: 0 | Y98: 0 | Z98: 0 | AA98: 0 | AB98: 0 | AC98: 0 | AD98: 0 | AE98: 0
A99: 2033-12-29 | B99: 2034-06-28 | C99: =A99>'Initial Benefits'!$C$6 -> TRUE | D99: =B99>'Initial Benefits'!$C$6 -> TRUE | E99: FALSE | F99: =IF(E99=TRUE,'Initial Benefits'!$C$6-Data3!A99+1,0) -> 0 | G99: 182 | H99: 0 | I99: ='Initial Benefits'!$C$16/2 -> 0.01 | J99: ='Initial Benefits'!$C$16/2 -> 0.01 | K99: =INT((A99-'Initial Benefits'!$C$5)/365.25) -> 133 | L99: 0.01 | N99: =ROUND(N98*(1+L99),2) -> 0 | O99: 0 | P99: =Q99/14*365 -> 0 | Q99: 0 | R99: 0 | S99: 0 | T99: 0 | U99: 0 | V99: 0 | W99: 0 | X99: 0 | Y99: 0 | Z99: 0 | AA99: 0 | AB99: 0 | AC99: 0 | AD99: 0 | AE99: 0
A100: 2034-06-29 | B100: 2034-12-27 | C100: =A100>'Initial Benefits'!$C$6 -> TRUE | D100: =B100>'Initial Benefits'!$C$6 -> TRUE | E100: FALSE | F100: =IF(E100=TRUE,'Initial Benefits'!$C$6-Data3!A100+1,0) -> 0 | G100: 182 | H100: 0 | I100: ='Initial Benefits'!$C$16/2 -> 0.01 | J100: ='Initial Benefits'!$C$16/2 -> 0.01 | K100: =INT((A100-'Initial Benefits'!$C$5)/365.25) -> 134 | L100: 0.01 | N100: 0 | O100: 0 | P100: 0 | Q100: 0 | R100: 0 | S100: 0 | T100: 0 | U100: 0 | V100: 0 | W100: 0 | X100: 0 | Y100: 0 | Z100: 0 | AA100: 0 | AB100: 0 | AC100: 0 | AD100: 0 | AE100: 0
A101: 2034-12-28 | B101: 2035-06-27 | C101: =A101>'Initial Benefits'!$C$6 -> TRUE | D101: =B101>'Initial Benefits'!$C$6 -> TRUE | E101: FALSE | F101: =IF(E101=TRUE,'Initial Benefits'!$C$6-Data3!A101+1,0) -> 0 | G101: 182 | H101: 0 | I101: ='Initial Benefits'!$C$16/2 -> 0.01 | J101: ='Initial Benefits'!$C$16/2 -> 0.01 | K101: =INT((A101-'Initial Benefits'!$C$5)/365.25) -> 134 | L101: 0.01 | N101: 0 | O101: 0 | P101: 0 | Q101: 0 | R101: 0 | S101: 0 | T101: 0 | U101: 0 | V101: 0 | W101: 0 | X101: 0 | Y101: 0 | Z101: 0 | AA101: 0 | AB101: 0 | AC101: 0 | AD101: 0 | AE101: 0
A102: 2035-06-28 | B102: 2035-12-26 | C102: =A102>'Initial Benefits'!$C$6 -> TRUE | D102: =B102>'Initial Benefits'!$C$6 -> TRUE | E102: FALSE | F102: =IF(E102=TRUE,'Initial Benefits'!$C$6-Data3!A102+1,0) -> 0 | G102: 182 | H102: 0 | I102: ='Initial Benefits'!$C$16/2 -> 0.01 | J102: ='Initial Benefits'!$C$16/2 -> 0.01 | K102: =INT((A102-'Initial Benefits'!$C$5)/365.25) -> 135 | L102: 0.01 | N102: 0 | O102: 0 | P102: 0 | Q102: =Q101*(1+L102) -> 0 | R102: 0 | S102: 0 | T102: 0 | U102: 0 | V102: 0 | W102: 0 | X102: 0 | Y102: 0 | Z102: 0 | AA102: 0 | AB102: 0 | AC102: 0 | AD102: 0 | AE102: 0
A103: 2035-12-27 | B103: 2036-06-25 | C103: =A103>'Initial Benefits'!$C$6 -> TRUE | D103: =B103>'Initial Benefits'!$C$6 -> TRUE | E103: FALSE | F103: =IF(E103=TRUE,'Initial Benefits'!$C$6-Data3!A103+1,0) -> 0 | G103: 182 | H103: 0 | I103: ='Initial Benefits'!$C$16/2 -> 0.01 | J103: ='Initial Benefits'!$C$16/2 -> 0.01 | K103: =INT((A103-'Initial Benefits'!$C$5)/365.25) -> 135 | L103: 0.01 | N103: 0 | O103: 0 | P103: 0 | Q103: 0 | R103: 0 | S103: 0 | T103: 0 | U103: 0 | V103: 0 | W103: 0 | X103: 0 | Y103: 0 | Z103: 0 | AA103: 0 | AB103: 0 | AC103: 0 | AD103: 0 | AE103: 0
A104: 2036-06-26 | B104: 2036-12-24 | C104: =A104>'Initial Benefits'!$C$6 -> TRUE | D104: =B104>'Initial Benefits'!$C$6 -> TRUE | E104: FALSE | F104: =IF(E104=TRUE,'Initial Benefits'!$C$6-Data3!A104+1,0) -> 0 | G104: 182 | H104: 0 | I104: ='Initial Benefits'!$C$16/2 -> 0.01 | J104: ='Initial Benefits'!$C$16/2 -> 0.01 | K104: =INT((A104-'Initial Benefits'!$C$5)/365.25) -> 136 | L104: 0.01 | N104: 0 | O104: 0 | P104: 0 | Q104: 0 | R104: 0 | S104: 0 | T104: 0 | U104: 0 | V104: 0 | W104: 0 | X104: 0 | Y104: 0 | Z104: 0 | AA104: 0 | AB104: 0 | AC104: 0 | AD104: 0 | AE104: 0
A105: 2036-12-25 | B105: 2037-06-24 | C105: =A105>'Initial Benefits'!$C$6 -> TRUE | D105: =B105>'Initial Benefits'!$C$6 -> TRUE | E105: FALSE | F105: =IF(E105=TRUE,'Initial Benefits'!$C$6-Data3!A105+1,0) -> 0 | G105: 182 | H105: 0 | I105: ='Initial Benefits'!$C$16/2 -> 0.01 | J105: ='Initial Benefits'!$C$16/2 -> 0.01 | K105: =INT((A105-'Initial Benefits'!$C$5)/365.25) -> 136 | L105: 0.01 | N105: 0 | O105: 0 | P105: 0 | Q105: 0 | R105: 0 | S105: 0 | T105: 0 | U105: 0 | V105: 0 | W105: 0 | X105: 0 | Y105: 0 | Z105: 0 | AA105: 0 | AB105: 0 | AC105: 0 | AD105: 0 | AE105: 0
A106: 2037-06-25 | B106: 2037-12-23 | C106: =A106>'Initial Benefits'!$C$6 -> TRUE | D106: =B106>'Initial Benefits'!$C$6 -> TRUE | E106: FALSE | F106: =IF(E106=TRUE,'Initial Benefits'!$C$6-Data3!A106+1,0) -> 0 | G106: 182 | H106: 0 | I106: ='Initial Benefits'!$C$16/2 -> 0.01 | J106: ='Initial Benefits'!$C$16/2 -> 0.01 | K106: =INT((A106-'Initial Benefits'!$C$5)/365.25) -> 137 | L106: 0.01 | N106: 0 | O106: 0 | P106: 0 | Q106: 0 | R106: 0 | S106: 0 | T106: 0 | U106: 0 | V106: 0 | W106: 0 | X106: 0 | Y106: 0 | Z106: 0 | AA106: 0 | AB106: 0 | AC106: 0 | AD106: 0 | AE106: 0
A107: 2037-12-24 | B107: 2038-06-23 | C107: =A107>'Initial Benefits'!$C$6 -> TRUE | D107: =B107>'Initial Benefits'!$C$6 -> TRUE | E107: FALSE | F107: =IF(E107=TRUE,'Initial Benefits'!$C$6-Data3!A107+1,0) -> 0 | G107: 182 | H107: 0 | I107: ='Initial Benefits'!$C$16/2 -> 0.01 | J107: ='Initial Benefits'!$C$16/2 -> 0.01 | K107: =INT((A107-'Initial Benefits'!$C$5)/365.25) -> 137 | L107: 0.01 | N107: 0 | O107: 0 | P107: 0 | Q107: 0 | R107: 0 | S107: 0 | T107: 0 | U107: 0 | V107: 0 | W107: 0 | X107: 0 | Y107: 0 | Z107: 0 | AA107: 0 | AB107: 0 | AC107: 0 | AD107: 0 | AE107: 0
A108: 2038-06-24 | B108: 2038-12-22 | C108: =A108>'Initial Benefits'!$C$6 -> TRUE | D108: =B108>'Initial Benefits'!$C$6 -> TRUE | E108: FALSE | F108: =IF(E108=TRUE,'Initial Benefits'!$C$6-Data3!A108+1,0) -> 0 | G108: 182 | H108: 0 | I108: ='Initial Benefits'!$C$16/2 -> 0.01 | J108: ='Initial Benefits'!$C$16/2 -> 0.01 | K108: =INT((A108-'Initial Benefits'!$C$5)/365.25) -> 138 | L108: 0.01 | N108: 0 | O108: 0 | P108: 0 | Q108: 0 | R108: 0 | S108: 0 | T108: 0 | U108: 0 | V108: 0 | W108: 0 | X108: 0 | Y108: 0 | Z108: 0 | AA108: 0 | AB108: 0 | AC108: 0 | AD108: 0 | AE108: 0
A109: 2038-12-23 | B109: 2039-06-22 | C109: =A109>'Initial Benefits'!$C$6 -> TRUE | D109: =B109>'Initial Benefits'!$C$6 -> TRUE | E109: FALSE | F109: =IF(E109=TRUE,'Initial Benefits'!$C$6-Data3!A109+1,0) -> 0 | G109: 182 | H109: 0 | I109: ='Initial Benefits'!$C$16/2 -> 0.01 | J109: ='Initial Benefits'!$C$16/2 -> 0.01 | K109: =INT((A109-'Initial Benefits'!$C$5)/365.25) -> 138 | L109: 0.01 | N109: 0 | O109: 0 | P109: 0 | Q109: 0 | R109: 0 | S109: 0 | T109: 0 | U109: 0 | V109: 0 | W109: 0 | X109: 0 | Y109: 0 | Z109: 0 | AA109: 0 | AB109: 0 | AC109: 0 | AD109: 0 | AE109: 0
A110: 2039-06-23 | B110: 2039-12-21 | C110: =A110>'Initial Benefits'!$C$6 -> TRUE | D110: =B110>'Initial Benefits'!$C$6 -> TRUE | E110: FALSE | F110: =IF(E110=TRUE,'Initial Benefits'!$C$6-Data3!A110+1,0) -> 0 | G110: 182 | H110: 0 | I110: ='Initial Benefits'!$C$16/2 -> 0.01 | J110: ='Initial Benefits'!$C$16/2 -> 0.01 | K110: =INT((A110-'Initial Benefits'!$C$5)/365.25) -> 139 | L110: 0.01 | N110: 0 | O110: 0 | P110: 0 | Q110: 0 | R110: 0 | S110: 0 | T110: 0 | U110: 0 | V110: 0 | W110: 0 | X110: 0 | Y110: 0 | Z110: 0 | AA110: 0 | AB110: 0 | AC110: 0 | AD110: 0 | AE110: 0
A111: 2039-12-22 | B111: 2040-06-20 | C111: =A111>'Initial Benefits'!$C$6 -> TRUE | D111: =B111>'Initial Benefits'!$C$6 -> TRUE | E111: FALSE | F111: =IF(E111=TRUE,'Initial Benefits'!$C$6-Data3!A111+1,0) -> 0 | G111: 182 | H111: 0 | I111: ='Initial Benefits'!$C$16/2 -> 0.01 | J111: ='Initial Benefits'!$C$16/2 -> 0.01 | K111: =INT((A111-'Initial Benefits'!$C$5)/365.25) -> 139 | L111: 0.01 | N111: 0 | O111: 0 | P111: 0 | Q111: 0 | R111: 0 | S111: 0 | T111: 0 | U111: 0 | V111: 0 | W111: 0 | X111: 0 | Y111: 0 | Z111: 0 | AA111: 0 | AB111: 0 | AC111: 0 | AD111: 0 | AE111: 0
A112: 2040-06-21 | B112: 2040-12-19 | C112: =A112>'Initial Benefits'!$C$6 -> TRUE | D112: =B112>'Initial Benefits'!$C$6 -> TRUE | E112: FALSE | F112: =IF(E112=TRUE,'Initial Benefits'!$C$6-Data3!A112+1,0) -> 0 | G112: 182 | H112: 0 | I112: ='Initial Benefits'!$C$16/2 -> 0.01 | J112: ='Initial Benefits'!$C$16/2 -> 0.01 | K112: =INT((A112-'Initial Benefits'!$C$5)/365.25) -> 140 | L112: 0.01 | N112: 0 | O112: 0 | P112: 0 | Q112: 0 | R112: 0 | S112: 0 | T112: 0 | U112: 0 | V112: 0 | W112: 0 | X112: 0 | Y112: 0 | Z112: 0 | AA112: 0 | AB112: 0 | AC112: 0 | AD112: 0 | AE112: 0
A113: 2040-12-20 | B113: 2041-06-19 | C113: =A113>'Initial Benefits'!$C$6 -> TRUE | D113: =B113>'Initial Benefits'!$C$6 -> TRUE | E113: FALSE | F113: =IF(E113=TRUE,'Initial Benefits'!$C$6-Data3!A113+1,0) -> 0 | G113: 182 | H113: 0 | I113: ='Initial Benefits'!$C$16/2 -> 0.01 | J113: ='Initial Benefits'!$C$16/2 -> 0.01 | K113: =INT((A113-'Initial Benefits'!$C$5)/365.25) -> 140 | L113: 0.01 | N113: 0 | O113: 0 | P113: 0 | Q113: 0 | R113: 0 | S113: 0 | T113: 0 | U113: 0 | V113: 0 | W113: 0 | X113: 0 | Y113: 0 | Z113: 0 | AA113: 0 | AB113: 0 | AC113: 0 | AD113: 0 | AE113: 0
A114: 2041-06-20 | B114: 2041-12-18 | C114: =A114>'Initial Benefits'!$C$6 -> TRUE | D114: =B114>'Initial Benefits'!$C$6 -> TRUE | E114: FALSE | F114: =IF(E114=TRUE,'Initial Benefits'!$C$6-Data3!A114+1,0) -> 0 | G114: 182 | H114: 0 | I114: ='Initial Benefits'!$C$16/2 -> 0.01 | J114: ='Initial Benefits'!$C$16/2 -> 0.01 | K114: =INT((A114-'Initial Benefits'!$C$5)/365.25) -> 141 | L114: 0.01 | N114: 0 | O114: 0 | P114: 0 | Q114: 0 | R114: 0 | S114: 0 | T114: 0 | U114: 0 | V114: 0 | W114: 0 | X114: 0 | Y114: 0 | Z114: 0 | AA114: 0 | AB114: 0 | AC114: 0 | AD114: 0 | AE114: 0
A115: 2041-12-19 | B115: 2042-06-18 | C115: =A115>'Initial Benefits'!$C$6 -> TRUE | D115: =B115>'Initial Benefits'!$C$6 -> TRUE | E115: FALSE | F115: =IF(E115=TRUE,'Initial Benefits'!$C$6-Data3!A115+1,0) -> 0 | G115: 182 | H115: 0 | I115: ='Initial Benefits'!$C$16/2 -> 0.01 | J115: ='Initial Benefits'!$C$16/2 -> 0.01 | K115: =INT((A115-'Initial Benefits'!$C$5)/365.25) -> 141 | L115: 0.01 | N115: 0 | O115: 0 | P115: 0 | Q115: 0 | R115: 0 | S115: 0 | T115: 0 | U115: 0 | V115: 0 | W115: 0 | X115: 0 | Y115: 0 | Z115: 0 | AA115: 0 | AB115: 0 | AC115: 0 | AD115: 0 | AE115: 0
A116: 2042-06-19 | B116: 2042-12-17 | C116: =A116>'Initial Benefits'!$C$6 -> TRUE | D116: =B116>'Initial Benefits'!$C$6 -> TRUE | E116: FALSE | F116: =IF(E116=TRUE,'Initial Benefits'!$C$6-Data3!A116+1,0) -> 0 | G116: 182 | H116: 0 | I116: ='Initial Benefits'!$C$16/2 -> 0.01 | J116: ='Initial Benefits'!$C$16/2 -> 0.01 | K116: =INT((A116-'Initial Benefits'!$C$5)/365.25) -> 142 | L116: 0.01 | N116: 0 | O116: 0 | P116: 0 | Q116: 0 | R116: 0 | S116: 0 | T116: 0 | U116: 0 | V116: 0 | W116: 0 | X116: 0 | Y116: 0 | Z116: 0 | AA116: 0 | AB116: 0 | AC116: 0 | AD116: 0 | AE116: 0
A117: 2042-12-18 | B117: 2043-06-17 | C117: =A117>'Initial Benefits'!$C$6 -> TRUE | D117: =B117>'Initial Benefits'!$C$6 -> TRUE | E117: FALSE | F117: =IF(E117=TRUE,'Initial Benefits'!$C$6-Data3!A117+1,0) -> 0 | G117: 182 | H117: 0 | I117: ='Initial Benefits'!$C$16/2 -> 0.01 | J117: ='Initial Benefits'!$C$16/2 -> 0.01 | K117: =INT((A117-'Initial Benefits'!$C$5)/365.25) -> 142 | L117: 0.01 | N117: 0 | O117: 0 | P117: 0 | Q117: 0 | R117: 0 | S117: 0 | T117: 0 | U117: 0 | V117: 0 | W117: 0 | X117: 0 | Y117: 0 | Z117: 0 | AA117: 0 | AB117: 0 | AC117: 0 | AD117: 0 | AE117: 0
A118: 2043-06-18 | B118: 2043-12-16 | C118: =A118>'Initial Benefits'!$C$6 -> TRUE | D118: =B118>'Initial Benefits'!$C$6 -> TRUE | E118: FALSE | F118: =IF(E118=TRUE,'Initial Benefits'!$C$6-Data3!A118+1,0) -> 0 | G118: 182 | H118: 0 | I118: ='Initial Benefits'!$C$16/2 -> 0.01 | J118: ='Initial Benefits'!$C$16/2 -> 0.01 | K118: =INT((A118-'Initial Benefits'!$C$5)/365.25) -> 143 | L118: 0.01 | N118: 0 | O118: 0 | P118: 0 | Q118: 0 | R118: 0 | S118: 0 | T118: 0 | U118: 0 | V118: 0 | W118: 0 | X118: 0 | Y118: 0 | Z118: 0 | AA118: 0 | AB118: 0 | AC118: 0 | AD118: 0 | AE118: 0
A119: 2043-12-17 | B119: 2044-06-29 | C119: =A119>'Initial Benefits'!$C$6 -> TRUE | D119: =B119>'Initial Benefits'!$C$6 -> TRUE | E119: FALSE | F119: =IF(E119=TRUE,'Initial Benefits'!$C$6-Data3!A119+1,0) -> 0 | G119: 196 | H119: 0 | I119: ='Initial Benefits'!$C$16/2 -> 0.01 | J119: ='Initial Benefits'!$C$16/2 -> 0.01 | K119: =INT((A119-'Initial Benefits'!$C$5)/365.25) -> 143 | L119: 0.01 | N119: 0 | O119: 0 | P119: 0 | Q119: 0 | R119: 0 | S119: 0 | T119: 0 | U119: 0 | V119: 0 | W119: 0 | X119: 0 | Y119: 0 | Z119: 0 | AA119: 0 | AB119: 0 | AC119: 0 | AD119: 0 | AE119: 0
A120: 2044-06-30 | B120: 2044-12-28 | C120: =A120>'Initial Benefits'!$C$6 -> TRUE | D120: =B120>'Initial Benefits'!$C$6 -> TRUE | E120: FALSE | F120: =IF(E120=TRUE,'Initial Benefits'!$C$6-Data3!A120+1,0) -> 0 | G120: 182 | H120: 0 | I120: ='Initial Benefits'!$C$16/2 -> 0.01 | J120: ='Initial Benefits'!$C$16/2 -> 0.01 | K120: =INT((A120-'Initial Benefits'!$C$5)/365.25) -> 144 | L120: 0.01 | N120: 0 | O120: 0 | P120: 0 | Q120: 0 | R120: 0 | S120: 0 | T120: 0 | U120: 0 | V120: 0 | W120: 0 | X120: 0 | Y120: 0 | Z120: 0 | AA120: 0 | AB120: 0 | AC120: 0 | AD120: 0 | AE120: 0
A121: 2044-12-29 | B121: 2045-06-28 | C121: =A121>'Initial Benefits'!$C$6 -> TRUE | D121: =B121>'Initial Benefits'!$C$6 -> TRUE | E121: FALSE | F121: =IF(E121=TRUE,'Initial Benefits'!$C$6-Data3!A121+1,0) -> 0 | G121: 182 | H121: 0 | I121: ='Initial Benefits'!$C$16/2 -> 0.01 | J121: ='Initial Benefits'!$C$16/2 -> 0.01 | K121: =INT((A121-'Initial Benefits'!$C$5)/365.25) -> 144 | L121: 0.01 | N121: 0 | O121: 0 | P121: 0 | Q121: 0 | R121: 0 | S121: 0 | T121: 0 | U121: 0 | V121: 0 | W121: 0 | X121: 0 | Y121: 0 | Z121: 0 | AA121: 0 | AB121: 0 | AC121: 0 | AD121: 0 | AE121: 0
A122: 2045-06-29 | B122: 2045-12-27 | C122: =A122>'Initial Benefits'!$C$6 -> TRUE | D122: =B122>'Initial Benefits'!$C$6 -> TRUE | E122: FALSE | F122: =IF(E122=TRUE,'Initial Benefits'!$C$6-Data3!A122+1,0) -> 0 | G122: 182 | H122: 0 | I122: ='Initial Benefits'!$C$16/2 -> 0.01 | J122: ='Initial Benefits'!$C$16/2 -> 0.01 | K122: =INT((A122-'Initial Benefits'!$C$5)/365.25) -> 145 | L122: 0.01 | N122: 0 | O122: 0 | P122: 0 | Q122: 0 | R122: 0 | S122: 0 | T122: 0 | U122: 0 | V122: 0 | W122: 0 | X122: 0 | Y122: 0 | Z122: 0 | AA122: 0 | AB122: 0 | AC122: 0 | AD122: 0 | AE122: 0
A123: 2045-12-28 | B123: 2046-06-27 | C123: =A123>'Initial Benefits'!$C$6 -> TRUE | D123: =B123>'Initial Benefits'!$C$6 -> TRUE | E123: FALSE | F123: =IF(E123=TRUE,'Initial Benefits'!$C$6-Data3!A123+1,0) -> 0 | G123: 182 | H123: 0 | I123: ='Initial Benefits'!$C$16/2 -> 0.01 | J123: ='Initial Benefits'!$C$16/2 -> 0.01 | K123: =INT((A123-'Initial Benefits'!$C$5)/365.25) -> 145 | L123: 0.01 | N123: 0 | O123: 0 | P123: 0 | Q123: 0 | R123: 0 | S123: 0 | T123: 0 | U123: 0 | V123: 0 | W123: 0 | X123: 0 | Y123: 0 | Z123: 0 | AA123: 0 | AB123: 0 | AC123: 0 | AD123: 0 | AE123: 0
A124: 2046-06-28 | B124: 2046-12-26 | C124: =A124>'Initial Benefits'!$C$6 -> TRUE | D124: =B124>'Initial Benefits'!$C$6 -> TRUE | E124: FALSE | F124: =IF(E124=TRUE,'Initial Benefits'!$C$6-Data3!A124+1,0) -> 0 | G124: 182 | H124: 0 | I124: ='Initial Benefits'!$C$16/2 -> 0.01 | J124: ='Initial Benefits'!$C$16/2 -> 0.01 | K124: =INT((A124-'Initial Benefits'!$C$5)/365.25) -> 146 | L124: 0.01 | N124: 0 | O124: 0 | P124: 0 | Q124: 0 | R124: 0 | S124: 0 | T124: 0 | U124: 0 | V124: 0 | W124: 0 | X124: 0 | Y124: 0 | Z124: 0 | AA124: 0 | AB124: 0 | AC124: 0 | AD124: 0 | AE124: 0
A125: 2046-12-27 | B125: 2047-06-26 | C125: =A125>'Initial Benefits'!$C$6 -> TRUE | D125: =B125>'Initial Benefits'!$C$6 -> TRUE | E125: FALSE | F125: =IF(E125=TRUE,'Initial Benefits'!$C$6-Data3!A125+1,0) -> 0 | G125: 182 | H125: 0 | I125: ='Initial Benefits'!$C$16/2 -> 0.01 | J125: ='Initial Benefits'!$C$16/2 -> 0.01 | K125: =INT((A125-'Initial Benefits'!$C$5)/365.25) -> 146 | L125: 0.01 | N125: 0 | O125: 0 | P125: 0 | Q125: 0 | R125: 0 | S125: 0 | T125: 0 | U125: 0 | V125: 0 | W125: 0 | X125: 0 | Y125: 0 | Z125: 0 | AA125: 0 | AB125: 0 | AC125: 0 | AD125: 0 | AE125: 0
A126: 2047-06-27 | B126: 2047-12-25 | C126: =A126>'Initial Benefits'!$C$6 -> TRUE | D126: =B126>'Initial Benefits'!$C$6 -> TRUE | E126: FALSE | F126: =IF(E126=TRUE,'Initial Benefits'!$C$6-Data3!A126+1,0) -> 0 | G126: 182 | H126: 0 | I126: ='Initial Benefits'!$C$16/2 -> 0.01 | J126: ='Initial Benefits'!$C$16/2 -> 0.01 | K126: =INT((A126-'Initial Benefits'!$C$5)/365.25) -> 147 | L126: 0.01 | N126: 0 | O126: 0 | P126: 0 | Q126: 0 | R126: 0 | S126: 0 | T126: 0 | U126: 0 | V126: 0 | W126: 0 | X126: 0 | Y126: 0 | Z126: 0 | AA126: 0 | AB126: 0 | AC126: 0 | AD126: 0 | AE126: 0
A127: 2047-12-26 | B127: 2048-06-25 | C127: =A127>'Initial Benefits'!$C$6 -> TRUE | D127: =B127>'Initial Benefits'!$C$6 -> TRUE | E127: FALSE | F127: =IF(E127=TRUE,'Initial Benefits'!$C$6-Data3!A127+1,0) -> 0 | G127: 183 | H127: 0 | I127: ='Initial Benefits'!$C$16/2 -> 0.01 | J127: ='Initial Benefits'!$C$16/2 -> 0.01 | K127: =INT((A127-'Initial Benefits'!$C$5)/365.25) -> 147 | L127: 0.01 | N127: 0 | O127: 0 | P127: 0 | Q127: 0 | R127: 0 | S127: 0 | T127: 0 | U127: 0 | V127: 0 | W127: 0 | X127: 0 | Y127: 0 | Z127: 0 | AA127: 0 | AB127: 0 | AC127: 0 | AD127: 0 | AE127: 0
A128: 2048-06-26 | B128: 2048-12-25 | C128: =A128>'Initial Benefits'!$C$6 -> TRUE | D128: =B128>'Initial Benefits'!$C$6 -> TRUE | E128: FALSE | F128: =IF(E128=TRUE,'Initial Benefits'!$C$6-Data3!A128+1,0) -> 0 | G128: 183 | H128: 0 | I128: ='Initial Benefits'!$C$16/2 -> 0.01 | J128: ='Initial Benefits'!$C$16/2 -> 0.01 | K128: =INT((A128-'Initial Benefits'!$C$5)/365.25) -> 148 | L128: 0.01 | N128: 0 | O128: 0 | P128: 0 | Q128: 0 | R128: 0 | S128: 0 | T128: 0 | U128: 0 | V128: 0 | W128: 0 | X128: 0 | Y128: 0 | Z128: 0 | AA128: 0 | AB128: 0 | AC128: 0 | AD128: 0 | AE128: 0
A129: 2048-12-26 | B129: 2049-06-26 | C129: =A129>'Initial Benefits'!$C$6 -> TRUE | D129: =B129>'Initial Benefits'!$C$6 -> TRUE | E129: FALSE | F129: =IF(E129=TRUE,'Initial Benefits'!$C$6-Data3!A129+1,0) -> 0 | G129: 183 | H129: 0 | I129: ='Initial Benefits'!$C$16/2 -> 0.01 | J129: ='Initial Benefits'!$C$16/2 -> 0.01 | K129: =INT((A129-'Initial Benefits'!$C$5)/365.25) -> 148 | L129: 0.01 | N129: 0 | O129: 0 | P129: 0 | Q129: 0 | R129: 0 | S129: 0 | T129: 0 | U129: 0 | V129: 0 | W129: 0 | X129: 0 | Y129: 0 | Z129: 0 | AA129: 0 | AB129: 0 | AC129: 0 | AD129: 0 | AE129: 0
A130: 2049-06-27 | B130: 2049-12-26 | C130: =A130>'Initial Benefits'!$C$6 -> TRUE | D130: =B130>'Initial Benefits'!$C$6 -> TRUE | E130: FALSE | F130: =IF(E130=TRUE,'Initial Benefits'!$C$6-Data3!A130+1,0) -> 0 | G130: 183 | H130: 0 | I130: ='Initial Benefits'!$C$16/2 -> 0.01 | J130: ='Initial Benefits'!$C$16/2 -> 0.01 | K130: =INT((A130-'Initial Benefits'!$C$5)/365.25) -> 149 | L130: 0.01 | N130: 0 | O130: 0 | P130: 0 | Q130: 0 | R130: 0 | S130: 0 | T130: 0 | U130: 0 | V130: 0 | W130: 0 | X130: 0 | Y130: 0 | Z130: 0 | AA130: 0 | AB130: 0 | AC130: 0 | AD130: 0 | AE130: 0
A131: 2049-12-27 | B131: 2050-06-27 | C131: =A131>'Initial Benefits'!$C$6 -> TRUE | D131: =B131>'Initial Benefits'!$C$6 -> TRUE | E131: FALSE | F131: =IF(E131=TRUE,'Initial Benefits'!$C$6-Data3!A131+1,0) -> 0 | G131: 183 | H131: 0 | I131: ='Initial Benefits'!$C$16/2 -> 0.01 | J131: ='Initial Benefits'!$C$16/2 -> 0.01 | K131: =INT((A131-'Initial Benefits'!$C$5)/365.25) -> 149 | L131: 0.01 | N131: =ROUND(N130*(1+L131),2) -> 0 | O131: 0 | P131: =Q131/14*365 -> 0 | Q131: 0 | R131: 0 | S131: 0 | T131: 0 | U131: 0 | V131: 0 | W131: 0 | X131: 0 | Y131: 0 | Z131: 0 | AA131: 0 | AB131: 0 | AC131: 0 | AD131: 0 | AE131: 0
A132: 2050-06-28 | B132: 2050-12-27 | C132: =A132>'Initial Benefits'!$C$6 -> TRUE | D132: =B132>'Initial Benefits'!$C$6 -> TRUE | E132: FALSE | F132: =IF(E132=TRUE,'Initial Benefits'!$C$6-Data3!A132+1,0) -> 0 | G132: 183 | H132: 0 | I132: ='Initial Benefits'!$C$16/2 -> 0.01 | J132: ='Initial Benefits'!$C$16/2 -> 0.01 | K132: =INT((A132-'Initial Benefits'!$C$5)/365.25) -> 150 | L132: 0.01 | N132: 0 | O132: =N132/365*14 -> 0 | P132: 0 | Q132: 0 | R132: 0 | S132: 0 | T132: 0 | U132: =T132/365*14 -> 0 | V132: 0 | W132: 0 | X132: 0 | Y132: 0 | Z132: 0 | AA132: 0 | AB132: 0 | AC132: =N132*0.625 -> 0 | AD132: =AB132*0.625 -> 0 | AE132: =AC132-AD132 -> 0
A133: 2050-12-28 | B133: 2051-06-28 | C133: =A133>'Initial Benefits'!$C$6 -> TRUE | D133: =B133>'Initial Benefits'!$C$6 -> TRUE | E133: =AND(D133,NOT(C133)) -> FALSE | F133: =IF(E133=TRUE,'Initial Benefits'!$C$6-Data3!A133+1,0) -> 0 | G133: =IF(C133=FALSE,0,B133-A133+1)+F133 -> 183 | H133: 0 | I133: ='Initial Benefits'!$C$16/2 -> 0.01 | J133: ='Initial Benefits'!$C$16/2 -> 0.01 | K133: =INT((A133-'Initial Benefits'!$C$5)/365.25) -> 150 | L133: 0.01 | N133: 0 | O133: 0 | P133: 0 | Q133: 0 | R133: =ROUND(R132*(1+L133),2) -> 0 | S133: =P133-P132 -> 0 | T133: =T132+S133 -> 0 | U133: 0 | V133: =N133-T133 -> 0 | W133: =W132+O133*G133/14 -> 0 | X133: =X132+U133*G133/14 -> 0 | Y133: =W133-X133 -> 0 | Z133: =ROUND(Z132*(1+L133),2) -> 0 | AA133: =Z133-Z132 -> 0 | AB133: 0 | AC133: 0 | AD133: 0 | AE133: 0
A134: 2051-06-29 | B134: 2051-12-28 | C134: =A134>'Initial Benefits'!$C$6 -> TRUE | D134: =B134>'Initial Benefits'!$C$6 -> TRUE | E134: FALSE | F134: =IF(E134=TRUE,'Initial Benefits'!$C$6-Data3!A134+1,0) -> 0 | G134: 183 | H134: 0 | I134: ='Initial Benefits'!$C$16/2 -> 0.01 | J134: ='Initial Benefits'!$C$16/2 -> 0.01 | K134: =INT((A134-'Initial Benefits'!$C$5)/365.25) -> 151 | L134: 0.01 | N134: 0 | O134: 0 | P134: 0 | Q134: =Q133*(1+L134) -> 0 | R134: 0 | S134: 0 | T134: 0 | U134: 0 | V134: 0 | W134: 0 | X134: 0 | Y134: 0 | Z134: 0 | AA134: 0 | AB134: =AB133+AA134 -> 0 | AC134: 0 | AD134: 0 | AE134: 0
A135: 2051-12-29 | B135: 2052-06-28 | C135: =A135>'Initial Benefits'!$C$6 -> TRUE | D135: =B135>'Initial Benefits'!$C$6 -> TRUE | E135: FALSE | F135: =IF(E135=TRUE,'Initial Benefits'!$C$6-Data3!A135+1,0) -> 0 | G135: 183 | H135: 0 | I135: ='Initial Benefits'!$C$16/2 -> 0.01 | J135: ='Initial Benefits'!$C$16/2 -> 0.01 | K135: =INT((A135-'Initial Benefits'!$C$5)/365.25) -> 151 | L135: 0.01 | N135: 0 | O135: 0 | P135: 0 | Q135: 0 | R135: 0 | S135: 0 | T135: 0 | U135: 0 | V135: 0 | W135: 0 | X135: 0 | Y135: 0 | Z135: 0 | AA135: 0 | AB135: 0 | AC135: 0 | AD135: 0 | AE135: 0
A136: 2052-06-29 | B136: 2052-12-28 | C136: =A136>'Initial Benefits'!$C$6 -> TRUE | D136: =B136>'Initial Benefits'!$C$6 -> TRUE | E136: FALSE | F136: =IF(E136=TRUE,'Initial Benefits'!$C$6-Data3!A136+1,0) -> 0 | G136: 183 | H136: 0 | I136: ='Initial Benefits'!$C$16/2 -> 0.01 | J136: ='Initial Benefits'!$C$16/2 -> 0.01 | K136: =INT((A136-'Initial Benefits'!$C$5)/365.25) -> 152 | L136: 0.01 | N136: 0 | O136: 0 | P136: 0 | Q136: 0 | R136: 0 | S136: 0 | T136: 0 | U136: 0 | V136: 0 | W136: 0 | X136: 0 | Y136: 0 | Z136: 0 | AA136: 0 | AB136: 0 | AC136: 0 | AD136: 0 | AE136: 0
A137: 2052-12-29 | B137: 2053-06-29 | C137: =A137>'Initial Benefits'!$C$6 -> TRUE | D137: =B137>'Initial Benefits'!$C$6 -> TRUE | E137: FALSE | F137: =IF(E137=TRUE,'Initial Benefits'!$C$6-Data3!A137+1,0) -> 0 | G137: 183 | H137: 0 | I137: ='Initial Benefits'!$C$16/2 -> 0.01 | J137: ='Initial Benefits'!$C$16/2 -> 0.01 | K137: =INT((A137-'Initial Benefits'!$C$5)/365.25) -> 152 | L137: 0.01 | N137: 0 | O137: 0 | P137: 0 | Q137: 0 | R137: 0 | S137: 0 | T137: 0 | U137: 0 | V137: 0 | W137: 0 | X137: 0 | Y137: 0 | Z137: 0 | AA137: 0 | AB137: 0 | AC137: 0 | AD137: 0 | AE137: 0
A138: 2053-06-30 | B138: 2053-12-29 | C138: =A138>'Initial Benefits'!$C$6 -> TRUE | D138: =B138>'Initial Benefits'!$C$6 -> TRUE | E138: FALSE | F138: =IF(E138=TRUE,'Initial Benefits'!$C$6-Data3!A138+1,0) -> 0 | G138: 183 | H138: 0 | I138: ='Initial Benefits'!$C$16/2 -> 0.01 | J138: ='Initial Benefits'!$C$16/2 -> 0.01 | K138: =INT((A138-'Initial Benefits'!$C$5)/365.25) -> 153 | L138: 0.01 | N138: 0 | O138: 0 | P138: 0 | Q138: 0 | R138: 0 | S138: 0 | T138: 0 | U138: 0 | V138: 0 | W138: 0 | X138: 0 | Y138: 0 | Z138: 0 | AA138: 0 | AB138: 0 | AC138: 0 | AD138: 0 | AE138: 0
A139: 2053-12-30 | B139: 2054-06-30 | C139: =A139>'Initial Benefits'!$C$6 -> TRUE | D139: =B139>'Initial Benefits'!$C$6 -> TRUE | E139: FALSE | F139: =IF(E139=TRUE,'Initial Benefits'!$C$6-Data3!A139+1,0) -> 0 | G139: 183 | H139: 0 | I139: ='Initial Benefits'!$C$16/2 -> 0.01 | J139: ='Initial Benefits'!$C$16/2 -> 0.01 | K139: =INT((A139-'Initial Benefits'!$C$5)/365.25) -> 153 | L139: 0.01 | N139: 0 | O139: 0 | P139: 0 | Q139: 0 | R139: 0 | S139: 0 | T139: 0 | U139: 0 | V139: 0 | W139: 0 | X139: 0 | Y139: 0 | Z139: 0 | AA139: 0 | AB139: 0 | AC139: 0 | AD139: 0 | AE139: 0
A140: 2054-07-01 | B140: 2054-12-30 | C140: =A140>'Initial Benefits'!$C$6 -> TRUE | D140: =B140>'Initial Benefits'!$C$6 -> TRUE | E140: FALSE | F140: =IF(E140=TRUE,'Initial Benefits'!$C$6-Data3!A140+1,0) -> 0 | G140: 183 | H140: 0 | I140: ='Initial Benefits'!$C$16/2 -> 0.01 | J140: ='Initial Benefits'!$C$16/2 -> 0.01 | K140: =INT((A140-'Initial Benefits'!$C$5)/365.25) -> 154 | L140: 0.01 | N140: 0 | O140: 0 | P140: 0 | Q140: 0 | R140: 0 | S140: 0 | T140: 0 | U140: 0 | V140: 0 | W140: 0 | X140: 0 | Y140: 0 | Z140: 0 | AA140: 0 | AB140: 0 | AC140: 0 | AD140: 0 | AE140: 0
A141: 2054-12-31 | B141: 2055-07-01 | C141: =A141>'Initial Benefits'!$C$6 -> TRUE | D141: =B141>'Initial Benefits'!$C$6 -> TRUE | E141: FALSE | F141: =IF(E141=TRUE,'Initial Benefits'!$C$6-Data3!A141+1,0) -> 0 | G141: 183 | H141: 0 | I141: ='Initial Benefits'!$C$16/2 -> 0.01 | J141: ='Initial Benefits'!$C$16/2 -> 0.01 | K141: =INT((A141-'Initial Benefits'!$C$5)/365.25) -> 155 | L141: 0.01 | N141: 0 | O141: 0 | P141: 0 | Q141: 0 | R141: 0 | S141: 0 | T141: 0 | U141: 0 | V141: 0 | W141: 0 | X141: 0 | Y141: 0 | Z141: 0 | AA141: 0 | AB141: 0 | AC141: 0 | AD141: 0 | AE141: 0
A142: 2055-07-02 | B142: 2055-12-31 | C142: =A142>'Initial Benefits'!$C$6 -> TRUE | D142: =B142>'Initial Benefits'!$C$6 -> TRUE | E142: FALSE | F142: =IF(E142=TRUE,'Initial Benefits'!$C$6-Data3!A142+1,0) -> 0 | G142: 183 | H142: 0 | I142: ='Initial Benefits'!$C$16/2 -> 0.01 | J142: ='Initial Benefits'!$C$16/2 -> 0.01 | K142: =INT((A142-'Initial Benefits'!$C$5)/365.25) -> 155 | L142: 0.01 | N142: 0 | O142: 0 | P142: 0 | Q142: 0 | R142: 0 | S142: 0 | T142: 0 | U142: 0 | V142: 0 | W142: 0 | X142: 0 | Y142: 0 | Z142: 0 | AA142: 0 | AB142: 0 | AC142: 0 | AD142: 0 | AE142: 0
A143: 2056-01-01 | B143: 2056-07-01 | C143: =A143>'Initial Benefits'!$C$6 -> TRUE | D143: =B143>'Initial Benefits'!$C$6 -> TRUE | E143: FALSE | F143: =IF(E143=TRUE,'Initial Benefits'!$C$6-Data3!A143+1,0) -> 0 | G143: 183 | H143: =IF($Q$3=0,0,IF(E142=TRUE,(Q143-$Q$3)/$Q$3)) -> 0 | I143: ='Initial Benefits'!$C$16/2 -> 0.01 | J143: ='Initial Benefits'!$C$16/2 -> 0.01 | K143: =INT((A143-'Initial Benefits'!$C$5)/365.25) -> 156 | L143: =IF(E142=FALSE,IF(C143=FALSE,0,IF(K143<55,J143,I143)),H143) -> 0.01 | N143: 0 | O143: 0 | P143: 0 | Q143: 0 | R143: 0 | S143: 0 | T143: 0 | U143: 0 | V143: 0 | W143: 0 | X143: 0 | Y143: 0 | Z143: 0 | AA143: 0 | AB143: 0 | AC143: 0 | AD143: 0 | AE143: 0
A144: 2056-07-02 | B144: 2056-12-31 | C144: =A144>'Initial Benefits'!$C$6 -> TRUE | D144: =B144>'Initial Benefits'!$C$6 -> TRUE | E144: FALSE | F144: =IF(E144=TRUE,'Initial Benefits'!$C$6-Data3!A144+1,0) -> 0 | G144: 183 | H144: 0 | I144: ='Initial Benefits'!$C$16/2 -> 0.01 | J144: ='Initial Benefits'!$C$16/2 -> 0.01 | K144: =INT((A144-'Initial Benefits'!$C$5)/365.25) -> 156 | L144: 0.01 | N144: 0 | O144: 0 | P144: 0 | Q144: 0 | R144: 0 | S144: 0 | T144: 0 | U144: 0 | V144: 0 | W144: 0 | X144: 0 | Y144: 0 | Z144: 0 | AA144: 0 | AB144: 0 | AC144: 0 | AD144: 0 | AE144: 0
A145: 2057-01-01 | B145: 2057-07-02 | C145: =A145>'Initial Benefits'!$C$6 -> TRUE | D145: =B145>'Initial Benefits'!$C$6 -> TRUE | E145: FALSE | F145: =IF(E145=TRUE,'Initial Benefits'!$C$6-Data3!A145+1,0) -> 0 | G145: 183 | H145: 0 | I145: ='Initial Benefits'!$C$16/2 -> 0.01 | J145: ='Initial Benefits'!$C$16/2 -> 0.01 | K145: =INT((A145-'Initial Benefits'!$C$5)/365.25) -> 157 | L145: 0.01 | N145: 0 | O145: 0 | P145: 0 | Q145: 0 | R145: 0 | S145: 0 | T145: 0 | U145: 0 | V145: 0 | W145: 0 | X145: 0 | Y145: 0 | Z145: 0 | AA145: 0 | AB145: 0 | AC145: 0 | AD145: 0 | AE145: 0
A146: 2057-07-03 | B146: 2058-01-01 | C146: =A146>'Initial Benefits'!$C$6 -> TRUE | D146: =B146>'Initial Benefits'!$C$6 -> TRUE | E146: FALSE | F146: =IF(E146=TRUE,'Initial Benefits'!$C$6-Data3!A146+1,0) -> 0 | G146: 183 | H146: 0 | I146: ='Initial Benefits'!$C$16/2 -> 0.01 | J146: ='Initial Benefits'!$C$16/2 -> 0.01 | K146: =INT((A146-'Initial Benefits'!$C$5)/365.25) -> 157 | L146: 0.01 | N146: 0 | O146: 0 | P146: 0 | Q146: 0 | R146: 0 | S146: 0 | T146: 0 | U146: 0 | V146: 0 | W146: 0 | X146: 0 | Y146: 0 | Z146: 0 | AA146: 0 | AB146: 0 | AC146: 0 | AD146: 0 | AE146: 0
A147: 2058-01-02 | B147: 2058-07-03 | C147: =A147>'Initial Benefits'!$C$6 -> TRUE | D147: =B147>'Initial Benefits'!$C$6 -> TRUE | E147: FALSE | F147: =IF(E147=TRUE,'Initial Benefits'!$C$6-Data3!A147+1,0) -> 0 | G147: 183 | H147: 0 | I147: ='Initial Benefits'!$C$16/2 -> 0.01 | J147: ='Initial Benefits'!$C$16/2 -> 0.01 | K147: =INT((A147-'Initial Benefits'!$C$5)/365.25) -> 158 | L147: 0.01 | N147: 0 | O147: 0 | P147: 0 | Q147: 0 | R147: 0 | S147: 0 | T147: 0 | U147: 0 | V147: 0 | W147: 0 | X147: 0 | Y147: 0 | Z147: 0 | AA147: 0 | AB147: 0 | AC147: 0 | AD147: 0 | AE147: 0
A148: 2058-07-04 | B148: 2059-01-02 | C148: =A148>'Initial Benefits'!$C$6 -> TRUE | D148: =B148>'Initial Benefits'!$C$6 -> TRUE | E148: FALSE | F148: =IF(E148=TRUE,'Initial Benefits'!$C$6-Data3!A148+1,0) -> 0 | G148: 183 | H148: 0 | I148: ='Initial Benefits'!$C$16/2 -> 0.01 | J148: ='Initial Benefits'!$C$16/2 -> 0.01 | K148: =INT((A148-'Initial Benefits'!$C$5)/365.25) -> 158 | L148: 0.01 | N148: 0 | O148: 0 | P148: 0 | Q148: 0 | R148: 0 | S148: 0 | T148: 0 | U148: 0 | V148: 0 | W148: 0 | X148: 0 | Y148: 0 | Z148: 0 | AA148: 0 | AB148: 0 | AC148: 0 | AD148: 0 | AE148: 0
A149: 2059-01-03 | B149: 2059-07-04 | C149: =A149>'Initial Benefits'!$C$6 -> TRUE | D149: =B149>'Initial Benefits'!$C$6 -> TRUE | E149: FALSE | F149: =IF(E149=TRUE,'Initial Benefits'!$C$6-Data3!A149+1,0) -> 0 | G149: 183 | H149: 0 | I149: ='Initial Benefits'!$C$16/2 -> 0.01 | J149: ='Initial Benefits'!$C$16/2 -> 0.01 | K149: =INT((A149-'Initial Benefits'!$C$5)/365.25) -> 159 | L149: 0.01 | N149: 0 | O149: 0 | P149: 0 | Q149: 0 | R149: 0 | S149: 0 | T149: 0 | U149: 0 | V149: 0 | W149: 0 | X149: 0 | Y149: 0 | Z149: 0 | AA149: 0 | AB149: 0 | AC149: 0 | AD149: 0 | AE149: 0
A150: 2059-07-05 | B150: 2060-01-03 | C150: =A150>'Initial Benefits'!$C$6 -> TRUE | D150: =B150>'Initial Benefits'!$C$6 -> TRUE | E150: FALSE | F150: =IF(E150=TRUE,'Initial Benefits'!$C$6-Data3!A150+1,0) -> 0 | G150: 183 | H150: 0 | I150: ='Initial Benefits'!$C$16/2 -> 0.01 | J150: ='Initial Benefits'!$C$16/2 -> 0.01 | K150: =INT((A150-'Initial Benefits'!$C$5)/365.25) -> 159 | L150: 0.01 | N150: 0 | O150: 0 | P150: 0 | Q150: 0 | R150: 0 | S150: 0 | T150: 0 | U150: 0 | V150: 0 | W150: 0 | X150: 0 | Y150: 0 | Z150: 0 | AA150: 0 | AB150: 0 | AC150: 0 | AD150: 0 | AE150: 0
A151: 2060-01-04 | B151: 2060-07-04 | C151: =A151>'Initial Benefits'!$C$6 -> TRUE | D151: =B151>'Initial Benefits'!$C$6 -> TRUE | E151: FALSE | F151: =IF(E151=TRUE,'Initial Benefits'!$C$6-Data3!A151+1,0) -> 0 | G151: 183 | H151: 0 | I151: ='Initial Benefits'!$C$16/2 -> 0.01 | J151: ='Initial Benefits'!$C$16/2 -> 0.01 | K151: =INT((A151-'Initial Benefits'!$C$5)/365.25) -> 160 | L151: 0.01 | N151: 0 | O151: 0 | P151: 0 | Q151: 0 | R151: 0 | S151: 0 | T151: 0 | U151: 0 | V151: 0 | W151: 0 | X151: 0 | Y151: 0 | Z151: 0 | AA151: 0 | AB151: 0 | AC151: 0 | AD151: 0 | AE151: 0
A152: 2060-07-05 | B152: 2061-01-03 | C152: =A152>'Initial Benefits'!$C$6 -> TRUE | D152: =B152>'Initial Benefits'!$C$6 -> TRUE | E152: FALSE | F152: =IF(E152=TRUE,'Initial Benefits'!$C$6-Data3!A152+1,0) -> 0 | G152: 183 | H152: 0 | I152: ='Initial Benefits'!$C$16/2 -> 0.01 | J152: ='Initial Benefits'!$C$16/2 -> 0.01 | K152: =INT((A152-'Initial Benefits'!$C$5)/365.25) -> 160 | L152: 0.01 | N152: 0 | O152: 0 | P152: 0 | Q152: 0 | R152: 0 | S152: 0 | T152: 0 | U152: 0 | V152: 0 | W152: 0 | X152: 0 | Y152: 0 | Z152: 0 | AA152: 0 | AB152: 0 | AC152: 0 | AD152: 0 | AE152: 0
A153: 2061-01-04 | B153: 2061-07-05 | C153: =A153>'Initial Benefits'!$C$6 -> TRUE | D153: =B153>'Initial Benefits'!$C$6 -> TRUE | E153: FALSE | F153: =IF(E153=TRUE,'Initial Benefits'!$C$6-Data3!A153+1,0) -> 0 | G153: 183 | H153: 0 | I153: ='Initial Benefits'!$C$16/2 -> 0.01 | J153: ='Initial Benefits'!$C$16/2 -> 0.01 | K153: =INT((A153-'Initial Benefits'!$C$5)/365.25) -> 161 | L153: 0.01 | N153: 0 | O153: 0 | P153: 0 | Q153: 0 | R153: 0 | S153: 0 | T153: 0 | U153: 0 | V153: 0 | W153: 0 | X153: 0 | Y153: 0 | Z153: 0 | AA153: 0 | AB153: 0 | AC153: 0 | AD153: 0 | AE153: 0
A154: 2061-07-06 | B154: 2062-01-04 | C154: =A154>'Initial Benefits'!$C$6 -> TRUE | D154: =B154>'Initial Benefits'!$C$6 -> TRUE | E154: FALSE | F154: =IF(E154=TRUE,'Initial Benefits'!$C$6-Data3!A154+1,0) -> 0 | G154: 183 | H154: 0 | I154: ='Initial Benefits'!$C$16/2 -> 0.01 | J154: ='Initial Benefits'!$C$16/2 -> 0.01 | K154: =INT((A154-'Initial Benefits'!$C$5)/365.25) -> 161 | L154: 0.01 | N154: 0 | O154: 0 | P154: 0 | Q154: 0 | R154: 0 | S154: 0 | T154: 0 | U154: 0 | V154: 0 | W154: 0 | X154: 0 | Y154: 0 | Z154: 0 | AA154: 0 | AB154: 0 | AC154: 0 | AD154: 0 | AE154: 0
A155: 2062-01-05 | B155: 2062-07-06 | C155: =A155>'Initial Benefits'!$C$6 -> TRUE | D155: =B155>'Initial Benefits'!$C$6 -> TRUE | E155: FALSE | F155: =IF(E155=TRUE,'Initial Benefits'!$C$6-Data3!A155+1,0) -> 0 | G155: 183 | H155: 0 | I155: ='Initial Benefits'!$C$16/2 -> 0.01 | J155: ='Initial Benefits'!$C$16/2 -> 0.01 | K155: =INT((A155-'Initial Benefits'!$C$5)/365.25) -> 162 | L155: 0.01 | N155: 0 | O155: 0 | P155: 0 | Q155: 0 | R155: 0 | S155: 0 | T155: 0 | U155: 0 | V155: 0 | W155: 0 | X155: 0 | Y155: 0 | Z155: 0 | AA155: 0 | AB155: 0 | AC155: 0 | AD155: 0 | AE155: 0
A156: 2062-07-07 | B156: 2063-01-05 | C156: =A156>'Initial Benefits'!$C$6 -> TRUE | D156: =B156>'Initial Benefits'!$C$6 -> TRUE | E156: FALSE | F156: =IF(E156=TRUE,'Initial Benefits'!$C$6-Data3!A156+1,0) -> 0 | G156: 183 | H156: 0 | I156: ='Initial Benefits'!$C$16/2 -> 0.01 | J156: ='Initial Benefits'!$C$16/2 -> 0.01 | K156: =INT((A156-'Initial Benefits'!$C$5)/365.25) -> 162 | L156: 0.01 | N156: 0 | O156: 0 | P156: 0 | Q156: 0 | R156: 0 | S156: 0 | T156: 0 | U156: 0 | V156: 0 | W156: 0 | X156: 0 | Y156: 0 | Z156: 0 | AA156: 0 | AB156: 0 | AC156: 0 | AD156: 0 | AE156: 0
A157: 2063-01-06 | B157: 2063-07-07 | C157: =A157>'Initial Benefits'!$C$6 -> TRUE | D157: =B157>'Initial Benefits'!$C$6 -> TRUE | E157: FALSE | F157: =IF(E157=TRUE,'Initial Benefits'!$C$6-Data3!A157+1,0) -> 0 | G157: 183 | H157: 0 | I157: ='Initial Benefits'!$C$16/2 -> 0.01 | J157: ='Initial Benefits'!$C$16/2 -> 0.01 | K157: =INT((A157-'Initial Benefits'!$C$5)/365.25) -> 163 | L157: 0.01 | N157: 0 | O157: 0 | P157: 0 | Q157: 0 | R157: 0 | S157: 0 | T157: 0 | U157: 0 | V157: 0 | W157: 0 | X157: 0 | Y157: 0 | Z157: 0 | AA157: 0 | AB157: 0 | AC157: 0 | AD157: 0 | AE157: 0
A158: 2063-07-08 | B158: 2064-01-06 | C158: =A158>'Initial Benefits'!$C$6 -> TRUE | D158: =B158>'Initial Benefits'!$C$6 -> TRUE | E158: FALSE | F158: =IF(E158=TRUE,'Initial Benefits'!$C$6-Data3!A158+1,0) -> 0 | G158: 183 | H158: 0 | I158: ='Initial Benefits'!$C$16/2 -> 0.01 | J158: ='Initial Benefits'!$C$16/2 -> 0.01 | K158: =INT((A158-'Initial Benefits'!$C$5)/365.25) -> 163 | L158: 0.01 | N158: 0 | O158: 0 | P158: 0 | Q158: 0 | R158: 0 | S158: 0 | T158: 0 | U158: 0 | V158: 0 | W158: 0 | X158: 0 | Y158: 0 | Z158: 0 | AA158: 0 | AB158: 0 | AC158: 0 | AD158: 0 | AE158: 0
A159: 2064-01-07 | B159: 2064-07-07 | C159: =A159>'Initial Benefits'!$C$6 -> TRUE | D159: =B159>'Initial Benefits'!$C$6 -> TRUE | E159: FALSE | F159: =IF(E159=TRUE,'Initial Benefits'!$C$6-Data3!A159+1,0) -> 0 | G159: 183 | H159: 0 | I159: ='Initial Benefits'!$C$16/2 -> 0.01 | J159: ='Initial Benefits'!$C$16/2 -> 0.01 | K159: =INT((A159-'Initial Benefits'!$C$5)/365.25) -> 164 | L159: 0.01 | N159: 0 | O159: 0 | P159: 0 | Q159: 0 | R159: 0 | S159: 0 | T159: 0 | U159: 0 | V159: 0 | W159: 0 | X159: 0 | Y159: 0 | Z159: 0 | AA159: 0 | AB159: 0 | AC159: 0 | AD159: 0 | AE159: 0
A160: 2064-07-08 | B160: 2065-01-06 | C160: =A160>'Initial Benefits'!$C$6 -> TRUE | D160: =B160>'Initial Benefits'!$C$6 -> TRUE | E160: FALSE | F160: =IF(E160=TRUE,'Initial Benefits'!$C$6-Data3!A160+1,0) -> 0 | G160: 183 | H160: 0 | I160: ='Initial Benefits'!$C$16/2 -> 0.01 | J160: ='Initial Benefits'!$C$16/2 -> 0.01 | K160: =INT((A160-'Initial Benefits'!$C$5)/365.25) -> 164 | L160: 0.01 | N160: 0 | O160: 0 | P160: 0 | Q160: 0 | R160: 0 | S160: 0 | T160: 0 | U160: 0 | V160: 0 | W160: 0 | X160: 0 | Y160: 0 | Z160: 0 | AA160: 0 | AB160: 0 | AC160: 0 | AD160: 0 | AE160: 0
A161: 2065-01-07 | B161: 2065-07-08 | C161: =A161>'Initial Benefits'!$C$6 -> TRUE | D161: =B161>'Initial Benefits'!$C$6 -> TRUE | E161: FALSE | F161: =IF(E161=TRUE,'Initial Benefits'!$C$6-Data3!A161+1,0) -> 0 | G161: 183 | H161: 0 | I161: ='Initial Benefits'!$C$16/2 -> 0.01 | J161: ='Initial Benefits'!$C$16/2 -> 0.01 | K161: =INT((A161-'Initial Benefits'!$C$5)/365.25) -> 165 | L161: 0.01 | N161: 0 | O161: 0 | P161: 0 | Q161: 0 | R161: 0 | S161: 0 | T161: 0 | U161: 0 | V161: 0 | W161: 0 | X161: 0 | Y161: 0 | Z161: 0 | AA161: 0 | AB161: 0 | AC161: 0 | AD161: 0 | AE161: 0
A162: 2065-07-09 | B162: 2066-01-07 | C162: =A162>'Initial Benefits'!$C$6 -> TRUE | D162: =B162>'Initial Benefits'!$C$6 -> TRUE | E162: FALSE | F162: =IF(E162=TRUE,'Initial Benefits'!$C$6-Data3!A162+1,0) -> 0 | G162: 183 | H162: 0 | I162: ='Initial Benefits'!$C$16/2 -> 0.01 | J162: ='Initial Benefits'!$C$16/2 -> 0.01 | K162: =INT((A162-'Initial Benefits'!$C$5)/365.25) -> 165 | L162: 0.01 | N162: 0 | O162: 0 | P162: 0 | Q162: 0 | R162: 0 | S162: 0 | T162: 0 | U162: 0 | V162: 0 | W162: 0 | X162: 0 | Y162: 0 | Z162: 0 | AA162: 0 | AB162: 0 | AC162: 0 | AD162: 0 | AE162: 0
A163: 2066-01-08 | B163: 2066-07-09 | C163: =A163>'Initial Benefits'!$C$6 -> TRUE | D163: =B163>'Initial Benefits'!$C$6 -> TRUE | E163: FALSE | F163: =IF(E163=TRUE,'Initial Benefits'!$C$6-Data3!A163+1,0) -> 0 | G163: 183 | H163: 0 | I163: ='Initial Benefits'!$C$16/2 -> 0.01 | J163: ='Initial Benefits'!$C$16/2 -> 0.01 | K163: =INT((A163-'Initial Benefits'!$C$5)/365.25) -> 166 | L163: 0.01 | N163: 0 | O163: 0 | P163: =Q163/14*365 -> 0 | Q163: 0 | R163: 0 | S163: 0 | T163: 0 | U163: 0 | V163: 0 | W163: 0 | X163: 0 | Y163: 0 | Z163: 0 | AA163: 0 | AB163: 0 | AC163: 0 | AD163: 0 | AE163: 0
A164: 2066-07-10 | B164: 2067-01-08 | C164: =A164>'Initial Benefits'!$C$6 -> TRUE | D164: =B164>'Initial Benefits'!$C$6 -> TRUE | E164: FALSE | F164: =IF(E164=TRUE,'Initial Benefits'!$C$6-Data3!A164+1,0) -> 0 | G164: 183 | H164: 0 | I164: ='Initial Benefits'!$C$16/2 -> 0.01 | J164: ='Initial Benefits'!$C$16/2 -> 0.01 | K164: =INT((A164-'Initial Benefits'!$C$5)/365.25) -> 166 | L164: 0.01 | N164: 0 | O164: 0 | P164: 0 | Q164: 0 | R164: 0 | S164: 0 | T164: 0 | U164: 0 | V164: 0 | W164: 0 | X164: 0 | Y164: 0 | Z164: 0 | AA164: 0 | AB164: 0 | AC164: 0 | AD164: 0 | AE164: 0
A165: 2067-01-09 | B165: 2067-07-10 | C165: =A165>'Initial Benefits'!$C$6 -> TRUE | D165: =B165>'Initial Benefits'!$C$6 -> TRUE | E165: FALSE | F165: =IF(E165=TRUE,'Initial Benefits'!$C$6-Data3!A165+1,0) -> 0 | G165: 183 | H165: 0 | I165: ='Initial Benefits'!$C$16/2 -> 0.01 | J165: ='Initial Benefits'!$C$16/2 -> 0.01 | K165: =INT((A165-'Initial Benefits'!$C$5)/365.25) -> 167 | L165: 0.01 | N165: 0 | O165: 0 | P165: 0 | Q165: 0 | R165: 0 | S165: 0 | T165: 0 | U165: 0 | V165: 0 | W165: 0 | X165: 0 | Y165: 0 | Z165: 0 | AA165: 0 | AB165: 0 | AC165: 0 | AD165: 0 | AE165: 0
A166: 2067-07-11 | B166: 2068-01-09 | C166: =A166>'Initial Benefits'!$C$6 -> TRUE | D166: =B166>'Initial Benefits'!$C$6 -> TRUE | E166: FALSE | F166: =IF(E166=TRUE,'Initial Benefits'!$C$6-Data3!A166+1,0) -> 0 | G166: 183 | H166: 0 | I166: ='Initial Benefits'!$C$16/2 -> 0.01 | J166: ='Initial Benefits'!$C$16/2 -> 0.01 | K166: =INT((A166-'Initial Benefits'!$C$5)/365.25) -> 167 | L166: 0.01 | N166: 0 | O166: 0 | P166: 0 | Q166: 0 | R166: 0 | S166: 0 | T166: 0 | U166: 0 | V166: 0 | W166: 0 | X166: 0 | Y166: 0 | Z166: 0 | AA166: 0 | AB166: 0 | AC166: 0 | AD166: 0 | AE166: 0
